BIOGUIDE_ID,OFFICE,QUARTER,CATEGORY,DATE,PAYEE,START DATE,END DATE,PURPOSE,AMOUNT,YEAR,TRANSCODE,TRANSCODELONG,RECORDID,RECIP (orig.)
,OFFICE OF THE SPEAKER,2013Q1,PERSONNEL BENEFITS,01-23,HON. JOHN A. BOEHNER,01/03/13,01/31/13,OFFICIAL EXPENSES FOR LEADERS,"2,083.33",2013,AP,Accounts payable,00603077,HON. JOHN A. BOEHNER
,OFFICE OF THE SPEAKER,2013Q1,PERSONNEL BENEFITS,02-15,HON. JOHN A. BOEHNER,02/01/13,02/28/13,OFFICIAL EXPENSES FOR LEADERS,"2,083.33",2013,AP,Accounts payable,00623267,HON. JOHN A. BOEHNER
,OFFICE OF THE SPEAKER,2013Q1,PERSONNEL BENEFITS,03-21,HON. JOHN A. BOEHNER,03/01/13,03/27/13,OFFICIAL EXPENSES FOR LEADERS,"2,083.33",2013,AP,Accounts payable,00651019,HON. JOHN A. BOEHNER
,OFFICE OF THE SPEAKER,2013Q1,PERSONNEL COMPENSATION,"","ANDREWS,THOMAS S",01/01/13,01/31/13,SENIOR STAFF ASSISTANT,-200.00,2013,"","","","ANDREWS,THOMAS S"
,OFFICE OF THE SPEAKER,2013Q1,PERSONNEL COMPENSATION,"","ANDREWS,THOMAS S",01/01/13,03/31/13,SENIOR STAFF ASSISTANT,"9,000.00",2013,"","","","ANDREWS,THOMAS S"
,OFFICE OF THE SPEAKER,2013Q1,PERSONNEL COMPENSATION,"","ANDREWS,THOMAS S",01/01/13,02/28/13,SENIOR STAFF ASSISTANT (OVERTIME),"2,544.21",2013,"","","","ANDREWS,THOMAS S"
,OFFICE OF THE SPEAKER,2013Q1,PERSONNEL COMPENSATION,"","AVONDOGLIO,BRYANT J",01/01/13,01/03/13,ADVANCE & DIGITAL PRODUC MGR,-444.44,2013,"","","","AVONDOGLIO,BRYANT J"
,OFFICE OF THE SPEAKER,2013Q1,PERSONNEL COMPENSATION,"","AVONDOGLIO,BRYANT J",01/01/13,03/31/13,ADVANCE & DIGITAL PRODUC MGR,"20,000.01",2013,"","","","AVONDOGLIO,BRYANT J"
,OFFICE OF THE SPEAKER,2013Q1,PERSONNEL COMPENSATION,"","BECKER,ALEXANDER M",01/01/13,01/31/13,STAFF ASSISTANT,-177.78,2013,"","","","BECKER,ALEXANDER M"
,OFFICE OF THE SPEAKER,2013Q1,PERSONNEL COMPENSATION,"","BECKER,ALEXANDER M",01/01/13,03/31/13,STAFF ASSISTANT,"8,000.01",2013,"","","","BECKER,ALEXANDER M"
,OFFICE OF THE SPEAKER,2013Q1,PERSONNEL COMPENSATION,"","BECKER,ALEXANDER M",01/01/13,02/28/13,STAFF ASSISTANT (OVERTIME),"1,246.13",2013,"","","","BECKER,ALEXANDER M"
,OFFICE OF THE SPEAKER,2013Q1,PERSONNEL COMPENSATION,"","BENJAMIN, WILLIAM C",01/01/13,01/31/13,DIR OF INFORMATION TECHNOLOGY,-516.67,2013,"","","","BENJAMIN, WILLIAM C"
,OFFICE OF THE SPEAKER,2013Q1,PERSONNEL COMPENSATION,"","BENJAMIN, WILLIAM C",01/01/13,03/31/13,DIR OF INFORMATION TECHNOLOGY,"23,290.26",2013,"","","","BENJAMIN, WILLIAM C"
,OFFICE OF THE SPEAKER,2013Q1,PERSONNEL COMPENSATION,"","BLAKE,KRISTENE",01/01/13,01/31/13,DIRECTOR OF SCHDLNG/EXEC ASST,-486.11,2013,"","","","BLAKE,KRISTENE"
,OFFICE OF THE SPEAKER,2013Q1,PERSONNEL COMPENSATION,"","BLAKE,KRISTENE",01/01/13,03/31/13,DIRECTOR OF SCHDLNG/EXEC ASST,"21,875.01",2013,"","","","BLAKE,KRISTENE"
,OFFICE OF THE SPEAKER,2013Q1,PERSONNEL COMPENSATION,"","BOLAND,KEVIN P",03/04/13,03/31/13,SPECIAL ASSISTANT,"3,000.00",2013,"","","","BOLAND,KEVIN P"
,OFFICE OF THE SPEAKER,2013Q1,PERSONNEL COMPENSATION,"","BORDEN III, R C",03/08/13,03/31/13,SHARED EMPLOYEE,"10,733.33",2013,"","","","BORDEN III, R C"
,OFFICE OF THE SPEAKER,2013Q1,PERSONNEL COMPENSATION,"","BOYD,KATHRYN E",01/01/13,01/31/13,ASST COMMUNICATIONS DIRECTOR,-444.44,2013,"","","","BOYD,KATHRYN E"
,OFFICE OF THE SPEAKER,2013Q1,PERSONNEL COMPENSATION,"","BOYD,KATHRYN E",01/01/13,03/31/13,ASST COMMUNICATIONS DIRECTOR,"20,000.01",2013,"","","","BOYD,KATHRYN E"
,OFFICE OF THE SPEAKER,2013Q1,PERSONNEL COMPENSATION,"","BOZA-HOLMAN, SOFIA M",01/01/13,01/31/13,STAFF ASSISTANT,-177.78,2013,"","","","BOZA-HOLMAN, SOFIA M"
,OFFICE OF THE SPEAKER,2013Q1,PERSONNEL COMPENSATION,"","BOZA-HOLMAN, SOFIA M",01/01/13,03/31/13,STAFF ASSISTANT,"8,000.01",2013,"","","","BOZA-HOLMAN, SOFIA M"
,OFFICE OF THE SPEAKER,2013Q1,PERSONNEL COMPENSATION,"","BOZA-HOLMAN, SOFIA M",01/01/13,02/28/13,STAFF ASSISTANT (OVERTIME),796.14,2013,"","","","BOZA-HOLMAN, SOFIA M"
,OFFICE OF THE SPEAKER,2013Q1,PERSONNEL COMPENSATION,"","BROWN,MARYAM S",01/01/13,01/31/13,ASST TO SPEAKER FOR POLICY,-933.33,2013,"","","","BROWN,MARYAM S"
,OFFICE OF THE SPEAKER,2013Q1,PERSONNEL COMPENSATION,"","BROWN,MARYAM S",01/01/13,03/31/13,ASST TO SPEAKER FOR POLICY,"42,000.00",2013,"","","","BROWN,MARYAM S"
,OFFICE OF THE SPEAKER,2013Q1,PERSONNEL COMPENSATION,"","BUCK, BRENDAN K",01/01/13,01/06/13,PRESS SECRETARY,-766.67,2013,"","","","BUCK, BRENDAN K"
,OFFICE OF THE SPEAKER,2013Q1,PERSONNEL COMPENSATION,"","BUCK, BRENDAN K",01/01/13,03/31/13,PRESS SECRETARY,"34,500.00",2013,"","","","BUCK, BRENDAN K"
,OFFICE OF THE SPEAKER,2013Q1,PERSONNEL COMPENSATION,"","BUNKER,ANDREW R",01/01/13,01/31/13,FLOOR ASSISTANT,-188.89,2013,"","","","BUNKER,ANDREW R"
,OFFICE OF THE SPEAKER,2013Q1,PERSONNEL COMPENSATION,"","BUNKER,ANDREW R",01/01/13,03/31/13,FLOOR ASSISTANT,"8,499.99",2013,"","","","BUNKER,ANDREW R"
,OFFICE OF THE SPEAKER,2013Q1,PERSONNEL COMPENSATION,"","CALIO,LYDIA E",01/01/13,01/31/13,DEPUTY FLOOR DIRECTOR,-444.44,2013,"","","","CALIO,LYDIA E"
,OFFICE OF THE SPEAKER,2013Q1,PERSONNEL COMPENSATION,"","CALIO,LYDIA E",01/07/13,03/31/13,DEPUTY FLOOR DIRECTOR,"23,333.33",2013,"","","","CALIO,LYDIA E"
,OFFICE OF THE SPEAKER,2013Q1,PERSONNEL COMPENSATION,"","CASSIDY, ED",01/01/13,01/31/13,DIRECTOR OF HOUSE OPERATIONS,-933.33,2013,"","","","CASSIDY, ED"
,OFFICE OF THE SPEAKER,2013Q1,PERSONNEL COMPENSATION,"","CASSIDY, ED",01/01/13,03/31/13,DIRECTOR OF HOUSE OPERATIONS,"42,000.00",2013,"","","","CASSIDY, ED"
,OFFICE OF THE SPEAKER,2013Q1,PERSONNEL COMPENSATION,"","DESTEFANO,JOHN",01/01/13,01/31/13,SR ADVISOR FOR MEMBER SERVICES,-916.67,2013,"","","","DESTEFANO,JOHN"
,OFFICE OF THE SPEAKER,2013Q1,PERSONNEL COMPENSATION,"","DESTEFANO,JOHN",01/01/13,02/28/13,SR ADVISOR FOR MEMBER SERVICES,"27,500.00",2013,"","","","DESTEFANO,JOHN"
,OFFICE OF THE SPEAKER,2013Q1,PERSONNEL COMPENSATION,"","DESTEFANO,JOHN",03/01/13,03/31/13,SENIOR ADVISOR,"13,750.00",2013,"","","","DESTEFANO,JOHN"
,OFFICE OF THE SPEAKER,2013Q1,PERSONNEL COMPENSATION,"","EASBY-SMITH,ANNE S",01/01/13,01/31/13,STAFF ASSISTANT,-177.78,2013,"","","","EASBY-SMITH,ANNE S"
,OFFICE OF THE SPEAKER,2013Q1,PERSONNEL COMPENSATION,"","EASBY-SMITH,ANNE S",01/01/13,03/31/13,STAFF ASSISTANT,"8,000.01",2013,"","","","EASBY-SMITH,ANNE S"
,OFFICE OF THE SPEAKER,2013Q1,PERSONNEL COMPENSATION,"","EASBY-SMITH,ANNE S",01/01/13,02/28/13,STAFF ASSISTANT (OVERTIME),"1,355.76",2013,"","","","EASBY-SMITH,ANNE S"
,OFFICE OF THE SPEAKER,2013Q1,PERSONNEL COMPENSATION,"","ECKARD,NASTASHA",01/01/13,01/31/13,LEGISLATIVE ASSISTANT,-372.22,2013,"","","","ECKARD,NASTASHA"
,OFFICE OF THE SPEAKER,2013Q1,PERSONNEL COMPENSATION,"","ECKARD,NASTASHA",01/01/13,01/31/13,LEGISLATIVE ASSISTANT,"5,583.33",2013,"","","","ECKARD,NASTASHA"
,OFFICE OF THE SPEAKER,2013Q1,PERSONNEL COMPENSATION,"","ECKARD,NASTASHA",02/01/13,03/31/13,ASSIST TO SPEAKER FOR POLICY,"11,166.66",2013,"","","","ECKARD,NASTASHA"
,OFFICE OF THE SPEAKER,2013Q1,PERSONNEL COMPENSATION,"","EICHHORN, JARED D",01/01/13,01/31/13,FLOOR ASSISTANT,-266.67,2013,"","","","EICHHORN, JARED D"
,OFFICE OF THE SPEAKER,2013Q1,PERSONNEL COMPENSATION,"","EICHHORN, JARED D",01/01/13,03/31/13,FLOOR ASSISTANT,"12,000.00",2013,"","","","EICHHORN, JARED D"
,OFFICE OF THE SPEAKER,2013Q1,PERSONNEL COMPENSATION,"","EMBLER, ELIZABETH G",01/01/13,01/31/13,DIRECTOR OF ADVANCE,-416.11,2013,"","","","EMBLER, ELIZABETH G"
,OFFICE OF THE SPEAKER,2013Q1,PERSONNEL COMPENSATION,"","EMBLER, ELIZABETH G",01/01/13,03/31/13,DIRECTOR OF ADVANCE,"18,725.01",2013,"","","","EMBLER, ELIZABETH G"
,OFFICE OF THE SPEAKER,2013Q1,PERSONNEL COMPENSATION,"","FINNEGAN,PATRICK",01/01/13,01/31/13,SPECIAL ASSISTANT TO THE SPEAK,-238.89,2013,"","","","FINNEGAN,PATRICK"
,OFFICE OF THE SPEAKER,2013Q1,PERSONNEL COMPENSATION,"","FINNEGAN,PATRICK",01/01/13,03/31/13,SPECIAL ASSISTANT TO THE SPEAK,"10,749.99",2013,"","","","FINNEGAN,PATRICK"
,OFFICE OF THE SPEAKER,2013Q1,PERSONNEL COMPENSATION,"","GILLESPIE,MAURA M",01/01/13,01/31/13,DEPUTY SCHEDULER,-222.22,2013,"","","","GILLESPIE,MAURA M"
,OFFICE OF THE SPEAKER,2013Q1,PERSONNEL COMPENSATION,"","GILLESPIE,MAURA M",01/01/13,03/31/13,DEPUTY SCHEDULER,"9,999.99",2013,"","","","GILLESPIE,MAURA M"
,OFFICE OF THE SPEAKER,2013Q1,PERSONNEL COMPENSATION,"","GREEN, JO-MARIE S",01/01/13,01/31/13,GEN COUNSEL & CHIEF OF LEG OPS,-958.33,2013,"","","","GREEN, JO-MARIE S"
,OFFICE OF THE SPEAKER,2013Q1,PERSONNEL COMPENSATION,"","GREEN, JO-MARIE S",01/01/13,03/31/13,GEN COUNSEL & CHIEF OF LEG OPS,"43,125.00",2013,"","","","GREEN, JO-MARIE S"
,OFFICE OF THE SPEAKER,2013Q1,PERSONNEL COMPENSATION,"","GREENE,WILLIAM P",01/01/13,01/31/13,DIRECTOR-OUTREACH,-751.67,2013,"","","","GREENE,WILLIAM P"
,OFFICE OF THE SPEAKER,2013Q1,PERSONNEL COMPENSATION,"","GREENE,WILLIAM P",01/01/13,03/31/13,DIRECTOR-OUTREACH,"33,825.00",2013,"","","","GREENE,WILLIAM P"
,OFFICE OF THE SPEAKER,2013Q1,PERSONNEL COMPENSATION,"","HALEY, KATHERINE C",01/01/13,01/31/13,ASST TO SPEAKER FOR POLICY,-491.67,2013,"","","","HALEY, KATHERINE C"
,OFFICE OF THE SPEAKER,2013Q1,PERSONNEL COMPENSATION,"","HALEY, KATHERINE C",01/01/13,03/31/13,ASST TO SPEAKER FOR POLICY,"24,041.66",2013,"","","","HALEY, KATHERINE C"
,OFFICE OF THE SPEAKER,2013Q1,PERSONNEL COMPENSATION,"","HARROUN, TIMOTHY J",01/01/13,01/31/13,MANAGER REPUBLICAN CLOAKROOM,-739.72,2013,"","","","HARROUN, TIMOTHY J"
,OFFICE OF THE SPEAKER,2013Q1,PERSONNEL COMPENSATION,"","HARROUN, TIMOTHY J",01/01/13,03/31/13,MANAGER REPUBLICAN CLOAKROOM,"33,287.49",2013,"","","","HARROUN, TIMOTHY J"
,OFFICE OF THE SPEAKER,2013Q1,PERSONNEL COMPENSATION,"","HENRIQUEZ,RAUL E",03/13/13,03/31/13,STAFF ASSISTANT,"1,500.00",2013,"","","","HENRIQUEZ,RAUL E"
,OFFICE OF THE SPEAKER,2013Q1,PERSONNEL COMPENSATION,"","HERRLE, CYNTHIA A",01/01/13,01/31/13,ASST TO THE SPEAKER FOR POLICY,-790.00,2013,"","","","HERRLE, CYNTHIA A"
,OFFICE OF THE SPEAKER,2013Q1,PERSONNEL COMPENSATION,"","HERRLE, CYNTHIA A",01/01/13,03/31/13,ASST TO THE SPEAKER FOR POLICY,"36,850.00",2013,"","","","HERRLE, CYNTHIA A"
,OFFICE OF THE SPEAKER,2013Q1,PERSONNEL COMPENSATION,"","IVANCIC,CHARLOTTE S",03/14/13,03/31/13,ASSIST TO SPEAKER FOR POLICY,"6,847.22",2013,"","","","IVANCIC,CHARLOTTE S"
,OFFICE OF THE SPEAKER,2013Q1,PERSONNEL COMPENSATION,"","KAMIS,KYLA M",01/01/13,01/31/13,DIRECTOR OF SPECIAL EVENTS,-305.56,2013,"","","","KAMIS,KYLA M"
,OFFICE OF THE SPEAKER,2013Q1,PERSONNEL COMPENSATION,"","KAMIS,KYLA M",01/01/13,03/31/13,DIRECTOR OF SPECIAL EVENTS,"13,749.99",2013,"","","","KAMIS,KYLA M"
,OFFICE OF THE SPEAKER,2013Q1,PERSONNEL COMPENSATION,"","KINZEL,WILL C",01/01/13,01/31/13,ASST TO THE SPEAKER FOR POLICY,-635.56,2013,"","","","KINZEL,WILL C"
,OFFICE OF THE SPEAKER,2013Q1,PERSONNEL COMPENSATION,"","KINZEL,WILL C",01/01/13,03/31/13,ASST TO THE SPEAKER FOR POLICY,"28,599.99",2013,"","","","KINZEL,WILL C"
,OFFICE OF THE SPEAKER,2013Q1,PERSONNEL COMPENSATION,"","KOLEGO, TREVOR W",01/01/13,01/31/13,DEPUTY DIR MEMBER SERVICES,-722.22,2013,"","","","KOLEGO, TREVOR W"
,OFFICE OF THE SPEAKER,2013Q1,PERSONNEL COMPENSATION,"","KOLEGO, TREVOR W",01/01/13,03/31/13,DEPUTY DIR MEMBERS SERVICES,"32,499.99",2013,"","","","KOLEGO, TREVOR W"
,OFFICE OF THE SPEAKER,2013Q1,PERSONNEL COMPENSATION,"","LAMPERT,JUSTIN",01/01/13,01/31/13,RESEARCH ASSISTANT,-250.00,2013,"","","","LAMPERT,JUSTIN"
,OFFICE OF THE SPEAKER,2013Q1,PERSONNEL COMPENSATION,"","LAMPERT,JUSTIN",01/01/13,03/31/13,RESEARCH ASSISTANT,"11,250.00",2013,"","","","LAMPERT,JUSTIN"
,OFFICE OF THE SPEAKER,2013Q1,PERSONNEL COMPENSATION,"","LEOPOLD,PATRICK R",01/01/13,01/31/13,SHARED EMPLOYEE,-414.81,2013,"","","","LEOPOLD,PATRICK R"
,OFFICE OF THE SPEAKER,2013Q1,PERSONNEL COMPENSATION,"","LEOPOLD,PATRICK R",01/03/13,03/31/13,SHARED EMPLOYEE,"19,555.56",2013,"","","","LEOPOLD,PATRICK R"
,OFFICE OF THE SPEAKER,2013Q1,PERSONNEL COMPENSATION,"","LOHMEYER,SONJA M",01/01/13,01/31/13,DIRECTOR OF PUBLIC LIASION,-722.22,2013,"","","","LOHMEYER,SONJA M"
,OFFICE OF THE SPEAKER,2013Q1,PERSONNEL COMPENSATION,"","LOHMEYER,SONJA M",01/01/13,03/31/13,DIRECTOR OF PUBLIC LIAISON,"32,499.99",2013,"","","","LOHMEYER,SONJA M"
,OFFICE OF THE SPEAKER,2013Q1,PERSONNEL COMPENSATION,"","LOPER,BRETT S",01/01/13,01/31/13,DEPUTY CHIEF OF STAFF,-958.33,2013,"","","","LOPER,BRETT S"
,OFFICE OF THE SPEAKER,2013Q1,PERSONNEL COMPENSATION,"","LOPER,BRETT S",01/01/13,03/31/13,DEPUTY CHIEF OF STAFF,"43,125.00",2013,"","","","LOPER,BRETT S"
,OFFICE OF THE SPEAKER,2013Q1,PERSONNEL COMPENSATION,"","LOZUPONE, AMY S",01/01/13,01/31/13,DIRECTOR OF ADMIN OPERATIONS,-916.67,2013,"","","","LOZUPONE, AMY S"
,OFFICE OF THE SPEAKER,2013Q1,PERSONNEL COMPENSATION,"","LOZUPONE, AMY S",01/01/13,03/31/13,DIRECTOR OF ADMIN OPERATIONS,"41,250.00",2013,"","","","LOZUPONE, AMY S"
,OFFICE OF THE SPEAKER,2013Q1,PERSONNEL COMPENSATION,"","LUKEMAN,KATHERINE A",01/01/13,01/31/13,ASSIST TO THE SPEAKER F/POLICY,-491.67,2013,"","","","LUKEMAN,KATHERINE A"
,OFFICE OF THE SPEAKER,2013Q1,PERSONNEL COMPENSATION,"","LUKEMAN,KATHERINE A",01/01/13,03/31/13,ASSIST TO THE SPEAKER F/POLICY,"22,125.00",2013,"","","","LUKEMAN,KATHERINE A"
,OFFICE OF THE SPEAKER,2013Q1,PERSONNEL COMPENSATION,"","MACDONALD, B",01/01/13,01/31/13,SHARED EMPLOYEE,-444.44,2013,"","","","MACDONALD, B"
,OFFICE OF THE SPEAKER,2013Q1,PERSONNEL COMPENSATION,"","MACDONALD, B",01/01/13,03/31/13,SHARED EMPLOYEE,"20,000.01",2013,"","","","MACDONALD, B"
,OFFICE OF THE SPEAKER,2013Q1,PERSONNEL COMPENSATION,"","MILLER,WILLIAM",01/01/13,01/31/13,STAFF ASSISTANT,-177.78,2013,"","","","MILLER,WILLIAM"
,OFFICE OF THE SPEAKER,2013Q1,PERSONNEL COMPENSATION,"","MILLER,WILLIAM",01/01/13,03/31/13,STAFF ASSISTANT,"8,000.01",2013,"","","","MILLER,WILLIAM"
,OFFICE OF THE SPEAKER,2013Q1,PERSONNEL COMPENSATION,"","MILLER,WILLIAM",01/01/13,02/28/13,STAFF ASSISTANT (OVERTIME),"1,321.14",2013,"","","","MILLER,WILLIAM"
,OFFICE OF THE SPEAKER,2013Q1,PERSONNEL COMPENSATION,"","MINKLER,ANN W",01/01/13,01/31/13,FLOOR ASSISTANT,-183.33,2013,"","","","MINKLER,ANN W"
,OFFICE OF THE SPEAKER,2013Q1,PERSONNEL COMPENSATION,"","MINKLER,ANN W",01/01/13,03/31/13,FLOOR ASSISTANT,"8,250.00",2013,"","","","MINKLER,ANN W"
,OFFICE OF THE SPEAKER,2013Q1,PERSONNEL COMPENSATION,"","PORTER, EMILY S",01/01/13,01/31/13,ASST TO THE SPEAKER FOR POLICY,-611.11,2013,"","","","PORTER, EMILY S"
,OFFICE OF THE SPEAKER,2013Q1,PERSONNEL COMPENSATION,"","PORTER, EMILY S",01/01/13,02/15/13,ASST TO THE SPEAKER FOR POLICY,"13,750.00",2013,"","","","PORTER, EMILY S"
,OFFICE OF THE SPEAKER,2013Q1,PERSONNEL COMPENSATION,"","PORTER, EMILY S",02/01/13,02/15/13,ASST TO THE SPEAKER FOR POLICY (OTHER COMPENSATION),"6,416.67",2013,"","","","PORTER, EMILY S"
,OFFICE OF THE SPEAKER,2013Q1,PERSONNEL COMPENSATION,"","PROPP,ELIZABETH R",01/01/13,01/31/13,DEPUTY PRESS SECRETARY,-316.67,2013,"","","","PROPP,ELIZABETH R"
,OFFICE OF THE SPEAKER,2013Q1,PERSONNEL COMPENSATION,"","PROPP,ELIZABETH R",01/01/13,03/31/13,DEPUTY PRESS SECRETARY,"14,250.00",2013,"","","","PROPP,ELIZABETH R"
,OFFICE OF THE SPEAKER,2013Q1,PERSONNEL COMPENSATION,"","RATCLIFFE,RAMSEY E",01/01/13,01/31/13,SPECIAL EVENTS COORDINATOR,-194.44,2013,"","","","RATCLIFFE,RAMSEY E"
,OFFICE OF THE SPEAKER,2013Q1,PERSONNEL COMPENSATION,"","RATCLIFFE,RAMSEY E",01/01/13,02/28/13,SPECIAL EVENTS COORDINATOR,"5,833.34",2013,"","","","RATCLIFFE,RAMSEY E"
,OFFICE OF THE SPEAKER,2013Q1,PERSONNEL COMPENSATION,"","RATCLIFFE,RAMSEY E",03/01/13,03/31/13,SPECIAL EVENTS ASSISTANT,"2,916.67",2013,"","","","RATCLIFFE,RAMSEY E"
,OFFICE OF THE SPEAKER,2013Q1,PERSONNEL COMPENSATION,"","REED, HEATHER E",01/01/13,01/31/13,ASSISTANT PRESS SECRETARY,-250.00,2013,"","","","REED, HEATHER E"
,OFFICE OF THE SPEAKER,2013Q1,PERSONNEL COMPENSATION,"","REED, HEATHER E",01/01/13,03/31/13,ASSISTANT PRESS SECRETARY,"11,250.00",2013,"","","","REED, HEATHER E"
,OFFICE OF THE SPEAKER,2013Q1,PERSONNEL COMPENSATION,"","REED, MARY K",01/01/13,01/31/13,SHARED EMPLOYEE,-191.11,2013,"","","","REED, MARY K"
,OFFICE OF THE SPEAKER,2013Q1,PERSONNEL COMPENSATION,"","REED, MARY K",01/01/13,03/31/13,SHARED EMPLOYEE,"8,600.01",2013,"","","","REED, MARY K"
,OFFICE OF THE SPEAKER,2013Q1,PERSONNEL COMPENSATION,"","RENZ, BRANDON",01/01/13,01/31/13,SHARED EMPLOYEE,-414.81,2013,"","","","RENZ, BRANDON"
,OFFICE OF THE SPEAKER,2013Q1,PERSONNEL COMPENSATION,"","RENZ, BRANDON",01/03/13,03/31/13,SHARED EMPLOYEE,"19,555.56",2013,"","","","RENZ, BRANDON"
,OFFICE OF THE SPEAKER,2013Q1,PERSONNEL COMPENSATION,"","RICCI,MICHAEL",01/01/13,01/31/13,DIRECTOR OF SPEECHWRITING,-766.67,2013,"","","","RICCI,MICHAEL"
,OFFICE OF THE SPEAKER,2013Q1,PERSONNEL COMPENSATION,"","RICCI,MICHAEL",01/01/13,03/31/13,DIRECTOR OF SPEECHWRITING,"34,500.00",2013,"","","","RICCI,MICHAEL"
,OFFICE OF THE SPEAKER,2013Q1,PERSONNEL COMPENSATION,"","SAGER,MICHAEL J",01/01/13,01/31/13,SYSTEMS ADMINISTRATOR,-444.44,2013,"","","","SAGER,MICHAEL J"
,OFFICE OF THE SPEAKER,2013Q1,PERSONNEL COMPENSATION,"","SAGER,MICHAEL J",01/01/13,03/31/13,SYSTEMS ADMINISTRATOR,"20,000.01",2013,"","","","SAGER,MICHAEL J"
,OFFICE OF THE SPEAKER,2013Q1,PERSONNEL COMPENSATION,"","SCHNITTGER, DAVID M",01/01/13,01/31/13,DEPUTY CHIEF OF STAFF,-958.33,2013,"","","","SCHNITTGER, DAVID M"
,OFFICE OF THE SPEAKER,2013Q1,PERSONNEL COMPENSATION,"","SCHNITTGER, DAVID M",01/01/13,03/31/13,DEPUTY CHIEF OF STAFF,"43,125.00",2013,"","","","SCHNITTGER, DAVID M"
,OFFICE OF THE SPEAKER,2013Q1,PERSONNEL COMPENSATION,"","SEYMOUR JR, DONALD P",01/01/13,01/31/13,DIGITAL COMMUNICATIONS DIRECTO,-727.78,2013,"","","","SEYMOUR JR, DONALD P"
,OFFICE OF THE SPEAKER,2013Q1,PERSONNEL COMPENSATION,"","SEYMOUR JR, DONALD P",01/01/13,03/31/13,DIGITAL COMMUNICATIONS DIRECTO,"32,750.01",2013,"","","","SEYMOUR JR, DONALD P"
,OFFICE OF THE SPEAKER,2013Q1,PERSONNEL COMPENSATION,"","SMITH, KEVIN",01/01/13,01/31/13,DIRECTOR OF COMMUNICATIONS,-863.89,2013,"","","","SMITH, KEVIN"
,OFFICE OF THE SPEAKER,2013Q1,PERSONNEL COMPENSATION,"","SMITH, KEVIN",01/01/13,03/31/13,DIRECTOR OF COMMUNICATIONS,"38,874.99",2013,"","","","SMITH, KEVIN"
,OFFICE OF THE SPEAKER,2013Q1,PERSONNEL COMPENSATION,"","SOMMERS, MICHAEL J",01/01/13,01/31/13,CHIEF OF STAFF,-958.33,2013,"","","","SOMMERS, MICHAEL J"
,OFFICE OF THE SPEAKER,2013Q1,PERSONNEL COMPENSATION,"","SOMMERS, MICHAEL J",01/01/13,03/31/13,CHIEF OF STAFF,"43,125.00",2013,"","","","SOMMERS, MICHAEL J"
,OFFICE OF THE SPEAKER,2013Q1,PERSONNEL COMPENSATION,"","STEEL, MICHAEL",01/01/13,01/31/13,PRESS SECRETARY,-833.33,2013,"","","","STEEL, MICHAEL"
,OFFICE OF THE SPEAKER,2013Q1,PERSONNEL COMPENSATION,"","STEEL, MICHAEL",01/01/13,03/31/13,PRESS SECRETARY,"37,500.00",2013,"","","","STEEL, MICHAEL"
,OFFICE OF THE SPEAKER,2013Q1,PERSONNEL COMPENSATION,"","STEWART, DAVID B",01/01/13,01/31/13,ASST TO SPEAKER FOR POLICY,-916.67,2013,"","","","STEWART, DAVID B"
,OFFICE OF THE SPEAKER,2013Q1,PERSONNEL COMPENSATION,"","STEWART, DAVID B",01/01/13,03/31/13,ASST TO SPEAKER FOR POLICY,"41,250.00",2013,"","","","STEWART, DAVID B"
,OFFICE OF THE SPEAKER,2013Q1,PERSONNEL COMPENSATION,"","STEWART, JENNIFER M",01/01/13,01/31/13,ASST TO SPEAKER FOR POLICY,-611.11,2013,"","","","STEWART, JENNIFER M"
,OFFICE OF THE SPEAKER,2013Q1,PERSONNEL COMPENSATION,"","STEWART, JENNIFER M",01/01/13,03/31/13,ASST TO SPEAKER FOR POLICY,"27,500.01",2013,"","","","STEWART, JENNIFER M"
,OFFICE OF THE SPEAKER,2013Q1,PERSONNEL COMPENSATION,"","STRUNK, JEFFREY A",01/01/13,01/04/13,DEPUTY FLOOR DIRECTOR,-416.67,2013,"","","","STRUNK, JEFFREY A"
,OFFICE OF THE SPEAKER,2013Q1,PERSONNEL COMPENSATION,"","STRUNK, JEFFREY A",01/01/13,01/04/13,DEPUTY FLOOR DIRECTOR,833.33,2013,"","","","STRUNK, JEFFREY A"
,OFFICE OF THE SPEAKER,2013Q1,PERSONNEL COMPENSATION,"","STRUNK, JEFFREY A",01/01/13,01/04/13,DEPUTY FLOOR DIRECTOR (OTHER COMPENSATION),"3,125.00",2013,"","","","STRUNK, JEFFREY A"
,OFFICE OF THE SPEAKER,2013Q1,PERSONNEL COMPENSATION,"","SWANSON,RANDY A",01/01/13,01/31/13,SHARED EMPLOYEE,-414.81,2013,"","","","SWANSON,RANDY A"
,OFFICE OF THE SPEAKER,2013Q1,PERSONNEL COMPENSATION,"","SWANSON,RANDY A",01/03/13,03/31/13,SHARED EMPLOYEE,"19,555.56",2013,"","","","SWANSON,RANDY A"
,OFFICE OF THE SPEAKER,2013Q1,PERSONNEL COMPENSATION,"","THORSEN, ANNE B",01/01/13,01/31/13,FLOOR DIRECTOR,-916.67,2013,"","","","THORSEN, ANNE B"
,OFFICE OF THE SPEAKER,2013Q1,PERSONNEL COMPENSATION,"","THORSEN, ANNE B",01/01/13,03/31/13,FLOOR DIRECTOR,"41,250.00",2013,"","","","THORSEN, ANNE B"
,OFFICE OF THE SPEAKER,2013Q1,PERSONNEL COMPENSATION,"","WORTH,BRIAN A",01/01/13,01/31/13,SHARED EMPLOYEE,-518.52,2013,"","","","WORTH,BRIAN A"
,OFFICE OF THE SPEAKER,2013Q1,PERSONNEL COMPENSATION,"","WORTH,BRIAN A",01/03/13,03/31/13,SHARED EMPLOYEE,"24,444.44",2013,"","","","WORTH,BRIAN A"
,OFFICE OF THE SPEAKER,2013Q1,TRAVEL,03-14,"ECKARD,NASTASHA",03/01/13,03/02/13,COMMERCIAL TRANSPORTATION,228.30,2013,AP,Accounts payable,00641559,"ECKARD,NASTASHA"
,OFFICE OF THE SPEAKER,2013Q1,TRAVEL,03-14,"ECKARD,NASTASHA",03/01/13,03/02/13,LODGING,88.75,2013,AP,Accounts payable,00641565,"ECKARD,NASTASHA"
,OFFICE OF THE SPEAKER,2013Q1,TRAVEL,03-14,"ECKARD,NASTASHA",03/02/13,03/02/13,GASOLINE,19.87,2013,AP,Accounts payable,00641566,"ECKARD,NASTASHA"
,OFFICE OF THE SPEAKER,2013Q1,TRAVEL,03-14,"ECKARD,NASTASHA",03/01/13,03/02/13,MEALS,39.54,2013,AP,Accounts payable,00641568,"ECKARD,NASTASHA"
,OFFICE OF THE SPEAKER,2013Q1,TRAVEL,03-18,"ECKARD,NASTASHA",03/01/13,03/02/13,CAR RENTAL,58.78,2013,AP,Accounts payable,00645382,"ECKARD,NASTASHA"
,OFFICE OF THE SPEAKER,2013Q1,PRINTING AND REPRODUCTION,01-29,"",01/01/13,01/31/13,PHOTOGRAPHIC (TRANSFER),"1,341.10",2013,GL,General ledger,PIX0026042,""
,OFFICE OF THE SPEAKER,2013Q1,PRINTING AND REPRODUCTION,02-25,"",02/01/13,02/28/13,PHOTOGRAPHIC (TRANSFER),77.30,2013,GL,General ledger,PIX0026824,""
,OFFICE OF THE SPEAKER,2013Q1,PRINTING AND REPRODUCTION,03-25,"",03/01/13,03/31/13,PHOTOGRAPHIC (TRANSFER),729.60,2013,GL,General ledger,PIX0027668,""
,OFFICE OF THE SPEAKER,2013Q1,SUPPLIES AND MATERIALS,01-23,HAGUE QUALITY WATER OF MD INC,01/04/13,01/04/13,WATER,252.00,2013,AP,Accounts payable,00605945,HAGUE QUALITY WATER OF MD INC
,OFFICE OF THE SPEAKER,2013Q1,SUPPLIES AND MATERIALS,02-07,COCA-COLA ENTERPRISES,01/18/13,01/18/13,FOOD & BEVERAGE,221.04,2013,AP,Accounts payable,00617059,COCA-COLA ENTERPRISES
,OFFICE OF THE SPEAKER,2013Q1,SUPPLIES AND MATERIALS,02-07,JOE RAGAN'S COFFEE LTD,01/31/13,01/31/13,FOOD & BEVERAGE,480.46,2013,AP,Accounts payable,00617063,JOE RAGAN'S COFFEE LTD
,OFFICE OF THE SPEAKER,2013Q1,SUPPLIES AND MATERIALS,02-07,JOE RAGAN'S COFFEE LTD,01/31/13,01/31/13,FOOD & BEVERAGE,31.90,2013,AP,Accounts payable,00617067,JOE RAGAN'S COFFEE LTD
,OFFICE OF THE SPEAKER,2013Q1,SUPPLIES AND MATERIALS,02-07,HAGUE QUALITY WATER OF MD INC,02/04/13,02/04/13,WATER,252.00,2013,AP,Accounts payable,00617082,HAGUE QUALITY WATER OF MD INC
,OFFICE OF THE SPEAKER,2013Q1,SUPPLIES AND MATERIALS,02-07,JOE RAGAN'S COFFEE LTD,01/03/13,01/03/13,FOOD & BEVERAGE,593.44,2013,AP,Accounts payable,00617086,JOE RAGAN'S COFFEE LTD
,OFFICE OF THE SPEAKER,2013Q1,SUPPLIES AND MATERIALS,02-07,JOE RAGAN'S COFFEE LTD,01/10/13,01/10/13,FOOD & BEVERAGE,511.00,2013,AP,Accounts payable,00617088,JOE RAGAN'S COFFEE LTD
,OFFICE OF THE SPEAKER,2013Q1,SUPPLIES AND MATERIALS,02-07,JOE RAGAN'S COFFEE LTD,01/17/13,01/17/13,FOOD & BEVERAGE,475.09,2013,AP,Accounts payable,00617090,JOE RAGAN'S COFFEE LTD
,OFFICE OF THE SPEAKER,2013Q1,SUPPLIES AND MATERIALS,02-07,JOE RAGAN'S COFFEE LTD,01/24/13,01/24/13,FOOD & BEVERAGE,395.93,2013,AP,Accounts payable,00617094,JOE RAGAN'S COFFEE LTD
,OFFICE OF THE SPEAKER,2013Q1,SUPPLIES AND MATERIALS,02-22,CITI PCARD-CAPITOL HOST (RIDGEWEL,01/03/13,01/28/13,FOOD & BEVERAGE,180.00,2013,AP,Accounts payable,00629027,CITI PCARD-CAPITOL HOST (RIDGEWEL
,OFFICE OF THE SPEAKER,2013Q1,SUPPLIES AND MATERIALS,02-22,CITI PCARD-CARMINE S,01/03/13,01/28/13,FOOD & BEVERAGE,"5,290.00",2013,AP,Accounts payable,00629027,CITI PCARD-CARMINE S
,OFFICE OF THE SPEAKER,2013Q1,SUPPLIES AND MATERIALS,02-22,CITI PCARD-CORNER BAKERY,01/03/13,01/28/13,FOOD & BEVERAGE,"2,536.90",2013,AP,Accounts payable,00629027,CITI PCARD-CORNER BAKERY
,OFFICE OF THE SPEAKER,2013Q1,SUPPLIES AND MATERIALS,02-22,CITI PCARD-TAYLOR GOURMET,01/03/13,01/28/13,FOOD & BEVERAGE,163.65,2013,AP,Accounts payable,00629027,CITI PCARD-TAYLOR GOURMET
,OFFICE OF THE SPEAKER,2013Q1,SUPPLIES AND MATERIALS,02-27,COCA-COLA ENTERPRISES,02/12/13,02/12/13,FOOD & BEVERAGE,174.96,2013,AP,Accounts payable,00632434,COCA-COLA ENTERPRISES
,OFFICE OF THE SPEAKER,2013Q1,SUPPLIES AND MATERIALS,03-14,HAGUE QUALITY WATER OF MD INC,03/04/13,03/04/13,WATER,252.00,2013,AP,Accounts payable,00641546,HAGUE QUALITY WATER OF MD INC
,OFFICE OF THE SPEAKER,2013Q1,SUPPLIES AND MATERIALS,03-14,JOE RAGAN'S COFFEE LTD,01/29/13,01/29/13,FOOD & BEVERAGE,44.85,2013,AP,Accounts payable,00641572,JOE RAGAN'S COFFEE LTD
,OFFICE OF THE SPEAKER,2013Q1,SUPPLIES AND MATERIALS,03-14,JOE RAGAN'S COFFEE LTD,02/05/13,02/05/13,FOOD & BEVERAGE,399.05,2013,AP,Accounts payable,00641575,JOE RAGAN'S COFFEE LTD
,OFFICE OF THE SPEAKER,2013Q1,SUPPLIES AND MATERIALS,03-14,JOE RAGAN'S COFFEE LTD,02/12/13,02/12/13,FOOD & BEVERAGE,630.00,2013,AP,Accounts payable,00641577,JOE RAGAN'S COFFEE LTD
,OFFICE OF THE SPEAKER,2013Q1,SUPPLIES AND MATERIALS,03-14,JOE RAGAN'S COFFEE LTD,02/19/13,02/19/13,FOOD & BEVERAGE,47.85,2013,AP,Accounts payable,00641584,JOE RAGAN'S COFFEE LTD
,OFFICE OF THE SPEAKER,2013Q1,SUPPLIES AND MATERIALS,03-18,JOE RAGAN'S COFFEE LTD,02/26/13,02/26/13,FOOD & BEVERAGE,549.69,2013,AP,Accounts payable,00641551,JOE RAGAN'S COFFEE LTD
,OFFICE OF THE SPEAKER,2013Q1,SUPPLIES AND MATERIALS,03-18,JOE RAGAN'S COFFEE LTD,02/26/13,02/26/13,FOOD & BEVERAGE,387.90,2013,AP,Accounts payable,00641582,JOE RAGAN'S COFFEE LTD
,OFFICE OF THE SPEAKER,2013Q1,SUPPLIES AND MATERIALS,03-27,POLITICO,02/13/13,02/12/14,PUBLICATIONS/REFERENCE MAT'L,"3,495.00",2013,AP,Accounts payable,00637046,POLITICO
,OFFICE OF THE SPEAKER,2013Q1,SUPPLIES AND MATERIALS,03-27,COCA-COLA REFRESHMENTS,02/26/13,02/26/13,FOOD & BEVERAGE,129.60,2013,AP,Accounts payable,00637048,COCA-COLA REFRESHMENTS
,OFFICE OF THE SPEAKER,2013Q1,SUPPLIES AND MATERIALS,04-30,CITIBANK P CARD,01/03/13,01/28/13,FOOD & BEVERAGE,"-8,170.55",2013,AP,Accounts payable,00636390,CITIBANK P CARD
,OFFICE OF THE SPEAKER,2013Q1,SUPPLIES AND MATERIALS,02-22,CITI PCARD-BAJA FRESH,12/29/12,01/02/13,FOOD & BEVERAGE,369.31,2012,AP,Accounts payable,00629027,CITI PCARD-BAJA FRESH
,OFFICE OF THE SPEAKER,2013Q1,SUPPLIES AND MATERIALS,02-22,CITI PCARD-CAPITOL HOST (RIDGEWEL,12/29/12,01/02/13,FOOD & BEVERAGE,90.00,2012,AP,Accounts payable,00629027,CITI PCARD-CAPITOL HOST (RIDGEWEL
,OFFICE OF THE SPEAKER,2013Q1,SUPPLIES AND MATERIALS,02-22,CITI PCARD-CORNER BAKERY,12/29/12,01/02/13,FOOD & BEVERAGE,414.70,2012,AP,Accounts payable,00629027,CITI PCARD-CORNER BAKERY
,OFFICE OF THE SPEAKER,2013Q1,SUPPLIES AND MATERIALS,02-22,CITI PCARD-DUNKIN,12/29/12,01/02/13,FOOD & BEVERAGE,12.04,2012,AP,Accounts payable,00629027,CITI PCARD-DUNKIN
,OFFICE OF THE SPEAKER,2013Q1,SUPPLIES AND MATERIALS,02-22,CITI PCARD-MATCHBOX CAPITOL HILL,12/29/12,01/02/13,FOOD & BEVERAGE,563.00,2012,AP,Accounts payable,00629027,CITI PCARD-MATCHBOX CAPITOL HILL
,OFFICE OF THE SPEAKER,2013Q1,SUPPLIES AND MATERIALS,02-22,CITI PCARD-WHOLEFDS PST,12/29/12,01/02/13,FOOD & BEVERAGE,-146.30,2012,AP,Accounts payable,00629027,CITI PCARD-WHOLEFDS PST
,OFFICE OF THE SPEAKER,2013Q1,SUPPLIES AND MATERIALS,02-28,CITIBANK P CARD,12/29/12,01/02/13,FOOD & BEVERAGE,"-1,302.75",2012,AP,Accounts payable,00636600,CITIBANK P CARD
,OFFICE OF THE MAJORITY LEADER,2013Q1,PERSONNEL COMPENSATION,"","BARRERA,AMY D",01/01/13,01/31/13,DIRECTOR OF ADMINISTRATION,-138.89,2013,"","","","BARRERA,AMY D"
,OFFICE OF THE MAJORITY LEADER,2013Q1,PERSONNEL COMPENSATION,"","BARRERA,AMY D",01/01/13,03/31/13,DIRECTOR OF ADMINISTRATION,"6,249.99",2013,"","","","BARRERA,AMY D"
,OFFICE OF THE MAJORITY LEADER,2013Q1,PERSONNEL COMPENSATION,"","BORDEN III, R C",03/08/13,03/31/13,SHARED EMPLOYEE,76.67,2013,"","","","BORDEN III, R C"
,OFFICE OF THE MAJORITY LEADER,2013Q1,PERSONNEL COMPENSATION,"","BRADLEY, NEIL L",01/01/13,01/31/13,DEPUTY CHIEF OF STAFF,-958.33,2013,"","","","BRADLEY, NEIL L"
,OFFICE OF THE MAJORITY LEADER,2013Q1,PERSONNEL COMPENSATION,"","BRADLEY, NEIL L",01/01/13,03/31/13,DEPUTY CHEIF OF STAFF,"43,125.00",2013,"","","","BRADLEY, NEIL L"
,OFFICE OF THE MAJORITY LEADER,2013Q1,PERSONNEL COMPENSATION,"","CHRISTENSEN, AUTUMN",01/01/13,01/31/13,SHARED EMPLOYEE,-66.67,2013,"","","","CHRISTENSEN, AUTUMN"
,OFFICE OF THE MAJORITY LEADER,2013Q1,PERSONNEL COMPENSATION,"","CHRISTENSEN, AUTUMN",01/01/13,03/31/13,SHARED EMPLOYEE,"3,000.00",2013,"","","","CHRISTENSEN, AUTUMN"
,OFFICE OF THE MAJORITY LEADER,2013Q1,PERSONNEL COMPENSATION,"","COOPER,RORY S",01/01/13,01/31/13,DIRECTOR OF COMMUNICATIONS,-805.56,2013,"","","","COOPER,RORY S"
,OFFICE OF THE MAJORITY LEADER,2013Q1,PERSONNEL COMPENSATION,"","COOPER,RORY S",01/01/13,03/31/13,DIRECTOR OF COMMUNICATIONS,"36,249.99",2013,"","","","COOPER,RORY S"
,OFFICE OF THE MAJORITY LEADER,2013Q1,PERSONNEL COMPENSATION,"","CUMMINGS,TIMOTHY P",01/01/13,01/31/13,STAFF ASSISTANT,-133.33,2013,"","","","CUMMINGS,TIMOTHY P"
,OFFICE OF THE MAJORITY LEADER,2013Q1,PERSONNEL COMPENSATION,"","CUMMINGS,TIMOTHY P",01/01/13,03/31/13,STAFF ASSISTANT,"6,083.33",2013,"","","","CUMMINGS,TIMOTHY P"
,OFFICE OF THE MAJORITY LEADER,2013Q1,PERSONNEL COMPENSATION,"","CUTLER,AARON",02/04/13,03/31/13,SR. ADV FOR POLICY & OUTREACH,"19,791.67",2013,"","","","CUTLER,AARON"
,OFFICE OF THE MAJORITY LEADER,2013Q1,PERSONNEL COMPENSATION,"","DOLBOW, WILLIAM R",01/01/13,01/06/13,SENIOR ADVISOR,-191.67,2013,"","","","DOLBOW, WILLIAM R"
,OFFICE OF THE MAJORITY LEADER,2013Q1,PERSONNEL COMPENSATION,"","DOLBOW, WILLIAM R",01/01/13,01/06/13,SENIOR ADVISOR,"2,875.00",2013,"","","","DOLBOW, WILLIAM R"
,OFFICE OF THE MAJORITY LEADER,2013Q1,PERSONNEL COMPENSATION,"","FARRAR,KATHARINE D",01/01/13,01/31/13,STAFF ASSISTANT,-138.89,2013,"","","","FARRAR,KATHARINE D"
,OFFICE OF THE MAJORITY LEADER,2013Q1,PERSONNEL COMPENSATION,"","FARRAR,KATHARINE D",01/01/13,03/31/13,STAFF ASSISTANT,"6,249.99",2013,"","","","FARRAR,KATHARINE D"
,OFFICE OF THE MAJORITY LEADER,2013Q1,PERSONNEL COMPENSATION,"","FERENCE, MICHAEL J",01/01/13,01/16/13,DIRECTOR OF OUTREACH,-935.62,2013,"","","","FERENCE, MICHAEL J"
,OFFICE OF THE MAJORITY LEADER,2013Q1,PERSONNEL COMPENSATION,"","FERENCE, MICHAEL J",01/01/13,01/16/13,DIRECTOR OF OUTREACH,"7,484.93",2013,"","","","FERENCE, MICHAEL J"
,OFFICE OF THE MAJORITY LEADER,2013Q1,PERSONNEL COMPENSATION,"","GUSTAFSON,NICOLE M",01/01/13,01/31/13,POLICY ADVISOR/COUNSEL,-344.44,2013,"","","","GUSTAFSON,NICOLE M"
,OFFICE OF THE MAJORITY LEADER,2013Q1,PERSONNEL COMPENSATION,"","GUSTAFSON,NICOLE M",01/01/13,03/31/13,POLICY ADVISOR/COUNSEL,"15,500.01",2013,"","","","GUSTAFSON,NICOLE M"
,OFFICE OF THE MAJORITY LEADER,2013Q1,PERSONNEL COMPENSATION,"","HEYE,DOUGLAS R",01/01/13,01/31/13,DEPUTY CHIEF OF STAFF-COMMUNIC,-933.33,2013,"","","","HEYE,DOUGLAS R"
,OFFICE OF THE MAJORITY LEADER,2013Q1,PERSONNEL COMPENSATION,"","HEYE,DOUGLAS R",01/01/13,03/31/13,DEPUTY CHIEF OF STAFF-COMMUNIC,"42,000.00",2013,"","","","HEYE,DOUGLAS R"
,OFFICE OF THE MAJORITY LEADER,2013Q1,PERSONNEL COMPENSATION,"","JAEGER, CHERYL L",01/01/13,01/31/13,SENIOR POLICY ADVISOR,-458.89,2013,"","","","JAEGER, CHERYL L"
,OFFICE OF THE MAJORITY LEADER,2013Q1,PERSONNEL COMPENSATION,"","JAEGER, CHERYL L",01/01/13,03/31/13,SENIOR POLICY ADVISOR,"20,649.99",2013,"","","","JAEGER, CHERYL L"
,OFFICE OF THE MAJORITY LEADER,2013Q1,PERSONNEL COMPENSATION,"","JOSEPH,COURTNEY E",01/01/13,01/31/13,CONGRESSIONAL STAFF,-111.11,2013,"","","","JOSEPH,COURTNEY E"
,OFFICE OF THE MAJORITY LEADER,2013Q1,PERSONNEL COMPENSATION,"","JOSEPH,COURTNEY E",01/01/13,03/31/13,CONGRESSIONAL STAFF,"5,000.01",2013,"","","","JOSEPH,COURTNEY E"
,OFFICE OF THE MAJORITY LEADER,2013Q1,PERSONNEL COMPENSATION,"","KAREM,ROBERT S",01/01/13,01/31/13,SENIOR POLICY ADVISOR,-650.00,2013,"","","","KAREM,ROBERT S"
,OFFICE OF THE MAJORITY LEADER,2013Q1,PERSONNEL COMPENSATION,"","KAREM,ROBERT S",01/01/13,03/31/13,SENIOR POLICY ADVISOR,"29,250.00",2013,"","","","KAREM,ROBERT S"
,OFFICE OF THE MAJORITY LEADER,2013Q1,PERSONNEL COMPENSATION,"","KEECH,EMILY H",01/01/13,01/31/13,DEPUTY DIRECTOR OF MEMBER SVCS,-166.67,2013,"","","","KEECH,EMILY H"
,OFFICE OF THE MAJORITY LEADER,2013Q1,PERSONNEL COMPENSATION,"","KEECH,EMILY H",01/01/13,03/31/13,DEPUTY DIRECTOR OF MEMBER SVCS,"7,500.00",2013,"","","","KEECH,EMILY H"
,OFFICE OF THE MAJORITY LEADER,2013Q1,PERSONNEL COMPENSATION,"","KISH,SARAH M",01/01/13,01/31/13,FLOOR ASSISTANT,-277.78,2013,"","","","KISH,SARAH M"
,OFFICE OF THE MAJORITY LEADER,2013Q1,PERSONNEL COMPENSATION,"","KISH,SARAH M",01/01/13,03/31/13,FLOOR ASSISTANT,"12,500.01",2013,"","","","KISH,SARAH M"
,OFFICE OF THE MAJORITY LEADER,2013Q1,PERSONNEL COMPENSATION,"","LIRA,MATHEW L",01/01/13,01/31/13,DIRECTOR OF DIGITAL MEDIA,-527.78,2013,"","","","LIRA,MATHEW L"
,OFFICE OF THE MAJORITY LEADER,2013Q1,PERSONNEL COMPENSATION,"","LIRA,MATHEW L",01/01/13,02/03/13,DIRECTOR OF DIGITAL MEDIA,"8,708.34",2013,"","","","LIRA,MATHEW L"
,OFFICE OF THE MAJORITY LEADER,2013Q1,PERSONNEL COMPENSATION,"","LIRA,MATHEW L",02/04/13,03/31/13,SENIOR ADVISOR,"14,513.89",2013,"","","","LIRA,MATHEW L"
,OFFICE OF THE MAJORITY LEADER,2013Q1,PERSONNEL COMPENSATION,"","MAHAN,ROGER A",01/01/13,01/31/13,POLICY ADVISOR,-319.44,2013,"","","","MAHAN,ROGER A"
,OFFICE OF THE MAJORITY LEADER,2013Q1,PERSONNEL COMPENSATION,"","MAHAN,ROGER A",01/01/13,03/31/13,POLICY ADVISOR,"14,375.01",2013,"","","","MAHAN,ROGER A"
,OFFICE OF THE MAJORITY LEADER,2013Q1,PERSONNEL COMPENSATION,"","NELSON, VALERIE S",01/01/13,01/31/13,DIR OF MEMBER SERVICES,-638.89,2013,"","","","NELSON, VALERIE S"
,OFFICE OF THE MAJORITY LEADER,2013Q1,PERSONNEL COMPENSATION,"","NELSON, VALERIE S",01/01/13,03/31/13,DIR OF MEMBER SERVICES,"28,749.99",2013,"","","","NELSON, VALERIE S"
,OFFICE OF THE MAJORITY LEADER,2013Q1,PERSONNEL COMPENSATION,"","NEVINS, KYLE W",01/01/13,01/31/13,DEPUTY CHIEF OF STAFF,-958.33,2013,"","","","NEVINS, KYLE W"
,OFFICE OF THE MAJORITY LEADER,2013Q1,PERSONNEL COMPENSATION,"","NEVINS, KYLE W",01/01/13,03/31/13,DEPUTY CHIEF OF STAFF,"43,125.00",2013,"","","","NEVINS, KYLE W"
,OFFICE OF THE MAJORITY LEADER,2013Q1,PERSONNEL COMPENSATION,"","STAPLETON,JOHN O",03/07/13,03/31/13,SPEECH WRITER,"3,666.67",2013,"","","","STAPLETON,JOHN O"
,OFFICE OF THE MAJORITY LEADER,2013Q1,PERSONNEL COMPENSATION,"","STOMBRES, STEVEN C",01/01/13,01/31/13,CHIEF OF STAFF,-958.33,2013,"","","","STOMBRES, STEVEN C"
,OFFICE OF THE MAJORITY LEADER,2013Q1,PERSONNEL COMPENSATION,"","STOMBRES, STEVEN C",01/01/13,03/31/13,CHIEF OF STAFF,"43,125.00",2013,"","","","STOMBRES, STEVEN C"
,OFFICE OF THE MAJORITY LEADER,2013Q1,PERSONNEL COMPENSATION,"","VIESON, CHRISTOPHER W",01/01/13,01/31/13,DEPUTY DIRECTOR OF FLOOR OPERA,-650.00,2013,"","","","VIESON, CHRISTOPHER W"
,OFFICE OF THE MAJORITY LEADER,2013Q1,PERSONNEL COMPENSATION,"","VIESON, CHRISTOPHER W",01/01/13,03/31/13,DEPUTY DIRECTOR OF FLOOR OPERA,"29,250.00",2013,"","","","VIESON, CHRISTOPHER W"
,OFFICE OF THE MAJORITY LEADER,2013Q1,PERSONNEL COMPENSATION,"","WALSH,WILLIAM C",01/01/13,01/31/13,DEPUTY DIR OF DIGITAL SERVICES,-222.22,2013,"","","","WALSH,WILLIAM C"
,OFFICE OF THE MAJORITY LEADER,2013Q1,PERSONNEL COMPENSATION,"","WALSH,WILLIAM C",01/01/13,03/31/13,DEPUTY DIR OF DIGITAL SERVICES,"9,999.99",2013,"","","","WALSH,WILLIAM C"
,OFFICE OF THE MAJORITY LEADER,2013Q1,PERSONNEL COMPENSATION,"","WILLIAMS, KELLY K",01/01/13,01/31/13,FINANCIAL ADMINISTRATOR,-200.00,2013,"","","","WILLIAMS, KELLY K"
,OFFICE OF THE MAJORITY LEADER,2013Q1,PERSONNEL COMPENSATION,"","WILLIAMS, KELLY K",01/01/13,02/28/13,FINANCIAL ADMINISTRATOR,"6,000.00",2013,"","","","WILLIAMS, KELLY K"
,OFFICE OF THE MAJORITY LEADER,2013Q1,PERSONNEL COMPENSATION,"","WILLIAMS, KELLY K",03/01/13,03/31/13,DIR OF PROTOCOL & OPERATIONS,"3,000.00",2013,"","","","WILLIAMS, KELLY K"
,OFFICE OF THE MAJORITY LEADER,2013Q1,PERSONNEL COMPENSATION,"","ZACKON,MATTHEW R",01/01/13,01/31/13,SPECIAL ASSISTANT,-138.89,2013,"","","","ZACKON,MATTHEW R"
,OFFICE OF THE MAJORITY LEADER,2013Q1,PERSONNEL COMPENSATION,"","ZACKON,MATTHEW R",01/01/13,03/31/13,SPECIAL ASSISTANT,"6,249.99",2013,"","","","ZACKON,MATTHEW R"
,OFFICE OF THE MAJORITY LEADER,2013Q1,TRAVEL,01-28,"NELSON, VALERIE S",01/11/13,01/11/13,PRIVATE AUTO MILEAGE,121.20,2013,AP,Accounts payable,00611282,"NELSON, VALERIE S"
,OFFICE OF THE MAJORITY LEADER,2013Q1,TRAVEL,02-15,"ZACKON, MATTHEW",02/04/13,02/04/13,TAXI/PARKING/TOLLS,19.00,2013,AP,Accounts payable,00622256,"ZACKON, MATTHEW"
,OFFICE OF THE MAJORITY LEADER,2013Q1,TRAVEL,03-04,"JAEGER, CHERYL L",01/07/13,01/15/13,TAXI/PARKING/TOLLS,90.00,2013,AP,Accounts payable,00634692,"JAEGER, CHERYL L"
,OFFICE OF THE MAJORITY LEADER,2013Q1,TRAVEL,03-14,"KEECH, EMILY H",01/15/13,03/06/13,PRIVATE AUTO MILEAGE,73.73,2013,AP,Accounts payable,00641587,"KEECH, EMILY H"
,OFFICE OF THE MAJORITY LEADER,2013Q1,TRAVEL,03-21,"NELSON, VALERIE S",02/25/13,02/25/13,TAXI/PARKING/TOLLS,37.00,2013,AP,Accounts payable,00650532,"NELSON, VALERIE S"
,OFFICE OF THE MAJORITY LEADER,2013Q1,PRINTING AND REPRODUCTION,01-29,"",01/01/13,01/31/13,PHOTOGRAPHIC (TRANSFER),72.70,2013,GL,General ledger,PIX0026042,""
,OFFICE OF THE MAJORITY LEADER,2013Q1,PRINTING AND REPRODUCTION,02-25,"",02/01/13,02/28/13,PHOTOGRAPHIC (TRANSFER),52.70,2013,GL,General ledger,PIX0026824,""
,OFFICE OF THE MAJORITY LEADER,2013Q1,PRINTING AND REPRODUCTION,03-25,"",03/01/13,03/31/13,PHOTOGRAPHIC (TRANSFER),88.20,2013,GL,General ledger,PIX0027668,""
,OFFICE OF THE MAJORITY LEADER,2013Q1,SUPPLIES AND MATERIALS,01-29,"WILLIAMS, KELLY K",01/23/13,01/23/13,HABITATION EXPENSE,63.55,2013,AP,Accounts payable,00611733,"WILLIAMS, KELLY K"
,OFFICE OF THE MAJORITY LEADER,2013Q1,SUPPLIES AND MATERIALS,02-22,CITI PCARD-D J WALL ST JOURNAL,01/03/13,01/28/13,PUBLICATIONS/REFERENCE MAT'L,113.75,2013,AP,Accounts payable,00629027,CITI PCARD-D J WALL ST JOURNAL
,OFFICE OF THE MAJORITY LEADER,2013Q1,SUPPLIES AND MATERIALS,02-22,CITI PCARD-DUNKIN DONUTS COM QPS,01/03/13,01/28/13,FOOD & BEVERAGE,141.00,2013,AP,Accounts payable,00629027,CITI PCARD-DUNKIN DONUTS COM QPS
,OFFICE OF THE MAJORITY LEADER,2013Q1,SUPPLIES AND MATERIALS,02-22,CITI PCARD-HARRIS TEETER,01/03/13,01/28/13,FOOD & BEVERAGE,348.18,2013,AP,Accounts payable,00629027,CITI PCARD-HARRIS TEETER
,OFFICE OF THE MAJORITY LEADER,2013Q1,SUPPLIES AND MATERIALS,02-22,CITI PCARD-NEW YORK TIMES DIGITAL,01/03/13,01/28/13,PUBLICATIONS/REFERENCE MAT'L,37.10,2013,AP,Accounts payable,00629027,CITI PCARD-NEW YORK TIMES DIGITAL
,OFFICE OF THE MAJORITY LEADER,2013Q1,SUPPLIES AND MATERIALS,02-22,CITI PCARD-NEWSPAPER DIRECT INQPS,01/03/13,01/28/13,PUBLICATIONS/REFERENCE MAT'L,29.95,2013,AP,Accounts payable,00629027,CITI PCARD-NEWSPAPER DIRECT INQPS
,OFFICE OF THE MAJORITY LEADER,2013Q1,SUPPLIES AND MATERIALS,02-22,CITI PCARD-WME RTD PAPER SUBSCRIP,01/03/13,01/28/13,PUBLICATIONS/REFERENCE MAT'L,18.00,2013,AP,Accounts payable,00629027,CITI PCARD-WME RTD PAPER SUBSCRIP
,OFFICE OF THE MAJORITY LEADER,2013Q1,SUPPLIES AND MATERIALS,03-04,LEXIS-NEXIS,01/01/13,01/31/13,PUBLICATIONS/REFERENCE MAT'L,625.00,2013,AP,Accounts payable,00634698,LEXIS-NEXIS
,OFFICE OF THE MAJORITY LEADER,2013Q1,SUPPLIES AND MATERIALS,03-21,CITI PCARD-AMAZON MKTPLACE PMTS,01/29/13,02/28/13,PUBLICATIONS/REFERENCE MAT'L,10.79,2013,AP,Accounts payable,00650124,CITI PCARD-AMAZON MKTPLACE PMTS
,OFFICE OF THE MAJORITY LEADER,2013Q1,SUPPLIES AND MATERIALS,03-21,CITI PCARD-AMAZON.COM,01/29/13,02/28/13,PUBLICATIONS/REFERENCE MAT'L,149.56,2013,AP,Accounts payable,00650124,CITI PCARD-AMAZON.COM
,OFFICE OF THE MAJORITY LEADER,2013Q1,SUPPLIES AND MATERIALS,03-21,CITI PCARD-APL APPLE ITUNES STORE,01/29/13,02/28/13,PUBLICATIONS/REFERENCE MAT'L,30.71,2013,AP,Accounts payable,00650124,CITI PCARD-APL APPLE ITUNES STORE
,OFFICE OF THE MAJORITY LEADER,2013Q1,SUPPLIES AND MATERIALS,03-21,CITI PCARD-DEER PARK WATER,01/29/13,02/28/13,WATER,730.29,2013,AP,Accounts payable,00650124,CITI PCARD-DEER PARK WATER
,OFFICE OF THE MAJORITY LEADER,2013Q1,SUPPLIES AND MATERIALS,03-21,CITI PCARD-DUNKIN DONUTS COM,01/29/13,02/28/13,FOOD & BEVERAGE,141.00,2013,AP,Accounts payable,00650124,CITI PCARD-DUNKIN DONUTS COM
,OFFICE OF THE MAJORITY LEADER,2013Q1,SUPPLIES AND MATERIALS,03-21,CITI PCARD-HARRIS TEETER,01/29/13,02/28/13,FOOD & BEVERAGE,161.73,2013,AP,Accounts payable,00650124,CITI PCARD-HARRIS TEETER
,OFFICE OF THE MAJORITY LEADER,2013Q1,SUPPLIES AND MATERIALS,03-21,CITI PCARD-NEW YORK TIMES DIGITAL,01/29/13,02/28/13,PUBLICATIONS/REFERENCE MAT'L,37.10,2013,AP,Accounts payable,00650124,CITI PCARD-NEW YORK TIMES DIGITAL
,OFFICE OF THE MAJORITY LEADER,2013Q1,SUPPLIES AND MATERIALS,03-21,CITI PCARD-NEWSPAPER DIRECT INQPS,01/29/13,02/28/13,PUBLICATIONS/REFERENCE MAT'L,29.95,2013,AP,Accounts payable,00650124,CITI PCARD-NEWSPAPER DIRECT INQPS
,OFFICE OF THE MAJORITY LEADER,2013Q1,SUPPLIES AND MATERIALS,03-21,CITI PCARD-SAFEWAY STORE,01/29/13,02/28/13,FOOD & BEVERAGE,477.23,2013,AP,Accounts payable,00650124,CITI PCARD-SAFEWAY STORE
,OFFICE OF THE MAJORITY LEADER,2013Q1,SUPPLIES AND MATERIALS,03-21,COCA-COLA REFRESHMENTS,02/26/13,02/26/13,FOOD & BEVERAGE,301.32,2013,AP,Accounts payable,00650535,COCA-COLA REFRESHMENTS
,OFFICE OF THE MAJORITY LEADER,2013Q1,SUPPLIES AND MATERIALS,03-29,"WILLIAMS, KELLY K",01/23/13,01/23/13,HABITATION EXPENSE,-63.55,2013,AP,Accounts payable,00660272,"WILLIAMS, KELLY K"
,OFFICE OF THE MAJORITY LEADER,2013Q1,SUPPLIES AND MATERIALS,03-29,"WILLIAMS, KELLY K",01/23/13,01/23/13,OFFICE SUPPLIES (OUTSIDE),63.55,2013,AP,Accounts payable,00660272,"WILLIAMS, KELLY K"
,OFFICE OF THE MAJORITY LEADER,2013Q1,SUPPLIES AND MATERIALS,02-22,CITI PCARD-DEER PARK WATER,12/29/12,01/02/13,WATER,400.48,2012,AP,Accounts payable,00629027,CITI PCARD-DEER PARK WATER
,OFFICE OF THE MAJORITY LEADER,2013Q1,SUPPLIES AND MATERIALS,02-22,CITI PCARD-HARRIS TEETER,12/29/12,01/02/13,FOOD & BEVERAGE,243.48,2012,AP,Accounts payable,00629027,CITI PCARD-HARRIS TEETER
,OFFICE OF THE MINORITY LEADER,2013Q1,SUPPLIES AND MATERIALS,02-22,CITI PCARD-COSI,01/03/13,01/28/13,FOOD & BEVERAGE,248.82,2013,AP,Accounts payable,00629027,CITI PCARD-COSI
,OFFICE OF THE MINORITY LEADER,2013Q1,SUPPLIES AND MATERIALS,02-22,CITI PCARD-CVS PHARMACY,01/03/13,01/28/13,FOOD & BEVERAGE,31.96,2013,AP,Accounts payable,00629027,CITI PCARD-CVS PHARMACY
,OFFICE OF THE MINORITY LEADER,2013Q1,SUPPLIES AND MATERIALS,02-22,CITI PCARD-MATCHBOX CAPITOL HILL,01/03/13,01/28/13,FOOD & BEVERAGE,301.40,2013,AP,Accounts payable,00629027,CITI PCARD-MATCHBOX CAPITOL HILL
,OFFICE OF THE MINORITY LEADER,2013Q1,SUPPLIES AND MATERIALS,02-22,CITI PCARD-SQ THE SWEET LOBBY,01/03/13,01/28/13,FOOD & BEVERAGE,74.85,2013,AP,Accounts payable,00629027,CITI PCARD-SQ THE SWEET LOBBY
,OFFICE OF THE MINORITY LEADER,2013Q1,SUPPLIES AND MATERIALS,02-22,CITI PCARD-TARGET,01/03/13,01/28/13,FOOD & BEVERAGE,184.20,2013,AP,Accounts payable,00629027,CITI PCARD-TARGET
,OFFICE OF THE MINORITY LEADER,2013Q1,SUPPLIES AND MATERIALS,02-22,CITI PCARD-WHOLEFDS PST,01/03/13,01/28/13,FOOD & BEVERAGE,7.99,2013,AP,Accounts payable,00629027,CITI PCARD-WHOLEFDS PST
,OFFICE OF THE MINORITY LEADER,2013Q1,SUPPLIES AND MATERIALS,02-26,CITIBANK GOV CARD SERVICE,01/18/13,01/18/13,FOOD & BEVERAGE,475.00,2013,AP,Accounts payable,00632065,CITIBANK GOV CARD SERVICE
,OFFICE OF THE MINORITY LEADER,2013Q1,PERSONNEL COMPENSATION,"","ABOUCHAR, KEITH S",01/01/13,01/31/13,SENIOR POLICY ADVISOR,-726.67,2013,"","","","ABOUCHAR, KEITH S"
,OFFICE OF THE MINORITY LEADER,2013Q1,PERSONNEL COMPENSATION,"","ABOUCHAR, KEITH S",01/01/13,03/31/13,SENIOR POLICY ADVISOR,"32,700.00",2013,"","","","ABOUCHAR, KEITH S"
,OFFICE OF THE MINORITY LEADER,2013Q1,PERSONNEL COMPENSATION,"","BARRY,MARY K",01/01/13,01/31/13,DEPUTY DIRECTOR OF ADVANCE,-416.67,2013,"","","","BARRY,MARY K"
,OFFICE OF THE MINORITY LEADER,2013Q1,PERSONNEL COMPENSATION,"","BARRY,MARY K",01/01/13,03/31/13,DEPUTY DIRECTOR OF ADVANCE,"18,750.00",2013,"","","","BARRY,MARY K"
,OFFICE OF THE MINORITY LEADER,2013Q1,PERSONNEL COMPENSATION,"","BLOOM, MICHAEL T",01/01/13,01/31/13,DEPUTY POLICY DIRECTOR,-429.79,2013,"","","","BLOOM, MICHAEL T"
,OFFICE OF THE MINORITY LEADER,2013Q1,PERSONNEL COMPENSATION,"","BLOOM, MICHAEL T",01/01/13,03/31/13,DEPUTY POLICY DIRECTOR,"19,340.76",2013,"","","","BLOOM, MICHAEL T"
,OFFICE OF THE MINORITY LEADER,2013Q1,PERSONNEL COMPENSATION,"","CAPRON, MARGARET W",01/01/13,01/31/13,SENIOR ADV POLICY & COMM,-709.43,2013,"","","","CAPRON, MARGARET W"
,OFFICE OF THE MINORITY LEADER,2013Q1,PERSONNEL COMPENSATION,"","CAPRON, MARGARET W",01/01/13,03/31/13,SENIOR ADV POLICY & COMM,"31,924.26",2013,"","","","CAPRON, MARGARET W"
,OFFICE OF THE MINORITY LEADER,2013Q1,PERSONNEL COMPENSATION,"","CASHMAN,MARY D",01/01/13,01/31/13,ASST TO THE CHIEF OF STAFF,-400.00,2013,"","","","CASHMAN,MARY D"
,OFFICE OF THE MINORITY LEADER,2013Q1,PERSONNEL COMPENSATION,"","CASHMAN,MARY D",01/01/13,03/31/13,ASST TO THE CHIEF OF STAFF,"18,000.00",2013,"","","","CASHMAN,MARY D"
,OFFICE OF THE MINORITY LEADER,2013Q1,PERSONNEL COMPENSATION,"","CHARVILLE,BRIDGET F",01/01/13,01/31/13,DIRECTOR OF PROTOCOL,-654.82,2013,"","","","CHARVILLE,BRIDGET F"
,OFFICE OF THE MINORITY LEADER,2013Q1,PERSONNEL COMPENSATION,"","CHARVILLE,BRIDGET F",01/01/13,03/31/13,DIRECTOR OF PROTOCOL,"29,466.75",2013,"","","","CHARVILLE,BRIDGET F"
,OFFICE OF THE MINORITY LEADER,2013Q1,PERSONNEL COMPENSATION,"","CHERRY,STEPHANIE",01/01/13,01/31/13,PRESS ADVISOR,-399.16,2013,"","","","CHERRY,STEPHANIE"
,OFFICE OF THE MINORITY LEADER,2013Q1,PERSONNEL COMPENSATION,"","CHERRY,STEPHANIE",01/01/13,03/31/13,PRESS ADVISOR,"17,962.26",2013,"","","","CHERRY,STEPHANIE"
,OFFICE OF THE MINORITY LEADER,2013Q1,PERSONNEL COMPENSATION,"","COVEY-BRANDT, ALEXIS",01/01/13,01/31/13,FLOOR DIRECTOR,-951.67,2013,"","","","COVEY-BRANDT, ALEXIS"
,OFFICE OF THE MINORITY LEADER,2013Q1,PERSONNEL COMPENSATION,"","COVEY-BRANDT, ALEXIS",01/01/13,03/31/13,FLOOR DIRECTOR,"42,825.00",2013,"","","","COVEY-BRANDT, ALEXIS"
,OFFICE OF THE MINORITY LEADER,2013Q1,PERSONNEL COMPENSATION,"","DAY,TAMIKA K",01/01/13,01/31/13,SR STAFF ASST SYS ADMIN,-277.78,2013,"","","","DAY,TAMIKA K"
,OFFICE OF THE MINORITY LEADER,2013Q1,PERSONNEL COMPENSATION,"","DAY,TAMIKA K",01/01/13,03/31/13,SR STAFF ASST SYS ADMIN,"12,500.01",2013,"","","","DAY,TAMIKA K"
,OFFICE OF THE MINORITY LEADER,2013Q1,PERSONNEL COMPENSATION,"","DEGRAFF, KENNETH B",01/01/13,01/31/13,SENIOR POLICY ADVISOR,-638.89,2013,"","","","DEGRAFF, KENNETH B"
,OFFICE OF THE MINORITY LEADER,2013Q1,PERSONNEL COMPENSATION,"","DEGRAFF, KENNETH B",01/01/13,03/31/13,SENIOR POLICY ADVISOR,"28,749.99",2013,"","","","DEGRAFF, KENNETH B"
,OFFICE OF THE MINORITY LEADER,2013Q1,PERSONNEL COMPENSATION,"","DEVLIN, PATRICK J",01/01/13,01/31/13,COMMUNICATIONS DIRECTOR,-694.44,2013,"","","","DEVLIN, PATRICK J"
,OFFICE OF THE MINORITY LEADER,2013Q1,PERSONNEL COMPENSATION,"","DEVLIN, PATRICK J",01/01/13,03/31/13,COMMUNICATIONS DIRECTOR,"31,250.01",2013,"","","","DEVLIN, PATRICK J"
,OFFICE OF THE MINORITY LEADER,2013Q1,PERSONNEL COMPENSATION,"","DEWHIRST, DIANE",01/01/13,01/31/13,SENIOR ADVISOR,-655.55,2013,"","","","DEWHIRST, DIANE"
,OFFICE OF THE MINORITY LEADER,2013Q1,PERSONNEL COMPENSATION,"","DEWHIRST, DIANE",01/01/13,03/31/13,SENIOR ADVISOR,"29,499.99",2013,"","","","DEWHIRST, DIANE"
,OFFICE OF THE MINORITY LEADER,2013Q1,PERSONNEL COMPENSATION,"","ELLISON,MATTHEW B",01/01/13,01/31/13,RESEARCH ASSISTANT,-166.67,2013,"","","","ELLISON,MATTHEW B"
,OFFICE OF THE MINORITY LEADER,2013Q1,PERSONNEL COMPENSATION,"","ELLISON,MATTHEW B",01/01/13,03/31/13,RESEARCH ASSISTANT,"7,500.00",2013,"","","","ELLISON,MATTHEW B"
,OFFICE OF THE MINORITY LEADER,2013Q1,PERSONNEL COMPENSATION,"","ELSHAMI,NADEEM",01/01/13,01/31/13,COMM DIR/SENIOR ADV (STAT),-958.33,2013,"","","","ELSHAMI,NADEEM"
,OFFICE OF THE MINORITY LEADER,2013Q1,PERSONNEL COMPENSATION,"","ELSHAMI,NADEEM",01/01/13,01/31/13,COMM DIR/SENIOR ADVISOR (STAT),"14,375.00",2013,"","","","ELSHAMI,NADEEM"
,OFFICE OF THE MINORITY LEADER,2013Q1,PERSONNEL COMPENSATION,"","ELSHAMI,NADEEM",02/01/13,03/31/13,CHIEF OF STAFF,"28,750.00",2013,"","","","ELSHAMI,NADEEM"
,OFFICE OF THE MINORITY LEADER,2013Q1,PERSONNEL COMPENSATION,"","ETIENNE,ASHLEY D",02/07/13,03/31/13,DEPUTY COMM DIRECTOR,"19,500.00",2013,"","","","ETIENNE,ASHLEY D"
,OFFICE OF THE MINORITY LEADER,2013Q1,PERSONNEL COMPENSATION,"","FISCHER JR, ROBERT V",01/01/13,01/31/13,ASST FLOOR CHIEF,-739.77,2013,"","","","FISCHER JR, ROBERT V"
,OFFICE OF THE MINORITY LEADER,2013Q1,PERSONNEL COMPENSATION,"","FISCHER JR, ROBERT V",01/01/13,03/31/13,ASST FLOOR CHIEF,"33,289.50",2013,"","","","FISCHER JR, ROBERT V"
,OFFICE OF THE MINORITY LEADER,2013Q1,PERSONNEL COMPENSATION,"","GEORGE,EVANGELINE M",01/01/13,01/31/13,PRESS ADVISOR,-308.33,2013,"","","","GEORGE,EVANGELINE M"
,OFFICE OF THE MINORITY LEADER,2013Q1,PERSONNEL COMPENSATION,"","GEORGE,EVANGELINE M",01/01/13,02/28/13,PRESS ADVISOR,"9,250.00",2013,"","","","GEORGE,EVANGELINE M"
,OFFICE OF THE MINORITY LEADER,2013Q1,PERSONNEL COMPENSATION,"","GEORGE,EVANGELINE M",03/01/13,03/31/13,PRESS SECRETARY,"4,625.00",2013,"","","","GEORGE,EVANGELINE M"
,OFFICE OF THE MINORITY LEADER,2013Q1,PERSONNEL COMPENSATION,"","GREENER, APRIL L",01/01/13,01/31/13,RESEARCH DIRECTOR,-472.22,2013,"","","","GREENER, APRIL L"
,OFFICE OF THE MINORITY LEADER,2013Q1,PERSONNEL COMPENSATION,"","GREENER, APRIL L",01/01/13,03/31/13,RESEARCH DIRECTOR,"21,249.99",2013,"","","","GREENER, APRIL L"
,OFFICE OF THE MINORITY LEADER,2013Q1,PERSONNEL COMPENSATION,"","HAMMILL, ANDREW T",01/01/13,01/31/13,PRESS SEC & DEP COMM DIR,-910.40,2013,"","","","HAMMILL, ANDREW T"
,OFFICE OF THE MINORITY LEADER,2013Q1,PERSONNEL COMPENSATION,"","HAMMILL, ANDREW T",01/01/13,01/31/13,PRESS SEC & DEPUTY COMM DIR,"13,656.00",2013,"","","","HAMMILL, ANDREW T"
,OFFICE OF THE MINORITY LEADER,2013Q1,PERSONNEL COMPENSATION,"","HAMMILL, ANDREW T",02/01/13,03/31/13,COMM DIR/SENIOR ADVISOR,"28,750.00",2013,"","","","HAMMILL, ANDREW T"
,OFFICE OF THE MINORITY LEADER,2013Q1,PERSONNEL COMPENSATION,"","HARTZ, JERRY",01/01/13,01/31/13,DIRECTOR OF FLOOR OPERATIONS,-958.33,2013,"","","","HARTZ, JERRY"
,OFFICE OF THE MINORITY LEADER,2013Q1,PERSONNEL COMPENSATION,"","HARTZ, JERRY",01/01/13,03/31/13,DIRECTOR OF FLOOR OPERATIONS,"43,125.00",2013,"","","","HARTZ, JERRY"
,OFFICE OF THE MINORITY LEADER,2013Q1,PERSONNEL COMPENSATION,"","HAYNES JR, WILFRED J",01/01/13,01/31/13,IT DIRECTOR,-545.12,2013,"","","","HAYNES JR, WILFRED J"
,OFFICE OF THE MINORITY LEADER,2013Q1,PERSONNEL COMPENSATION,"","HAYNES JR, WILFRED J",01/01/13,03/31/13,IT DIRECTOR,"24,530.49",2013,"","","","HAYNES JR, WILFRED J"
,OFFICE OF THE MINORITY LEADER,2013Q1,PERSONNEL COMPENSATION,"","HUGHES,JOHN C",01/01/13,01/18/13,SENIOR POLICY ADVISOR,"6,440.00",2013,"","","","HUGHES,JOHN C"
,OFFICE OF THE MINORITY LEADER,2013Q1,PERSONNEL COMPENSATION,"","HUGHES,JOHN C",01/01/13,01/31/13,SENIOR POLICY ADVISOR,-715.56,2013,"","","","HUGHES,JOHN C"
,OFFICE OF THE MINORITY LEADER,2013Q1,PERSONNEL COMPENSATION,"","IVESTER, WREN",01/01/13,01/31/13,ASST FLOOR CHIEF,-666.10,2013,"","","","IVESTER, WREN"
,OFFICE OF THE MINORITY LEADER,2013Q1,PERSONNEL COMPENSATION,"","IVESTER, WREN",01/01/13,03/31/13,ASST FLOOR CHIEF,"29,974.50",2013,"","","","IVESTER, WREN"
,OFFICE OF THE MINORITY LEADER,2013Q1,PERSONNEL COMPENSATION,"","JUDGE, KRISTINE A",01/01/13,01/31/13,SENIOR ADV/POLICY COMM,-709.43,2013,"","","","JUDGE, KRISTINE A"
,OFFICE OF THE MINORITY LEADER,2013Q1,PERSONNEL COMPENSATION,"","JUDGE, KRISTINE A",01/01/13,03/31/13,SENIOR ADVISOR/POLICY COMM,"31,924.26",2013,"","","","JUDGE, KRISTINE A"
,OFFICE OF THE MINORITY LEADER,2013Q1,PERSONNEL COMPENSATION,"","KEITA,KAMILAH Z",01/01/13,01/31/13,DEP INFORMATION TECH. DIRECT,-495.18,2013,"","","","KEITA,KAMILAH Z"
,OFFICE OF THE MINORITY LEADER,2013Q1,PERSONNEL COMPENSATION,"","KEITA,KAMILAH Z",01/01/13,03/31/13,DEPUTY INFOMATION TECH. DIRECT,"22,283.01",2013,"","","","KEITA,KAMILAH Z"
,OFFICE OF THE MINORITY LEADER,2013Q1,PERSONNEL COMPENSATION,"","KING,RYAN M",01/01/13,01/31/13,PRESS ASSISTANT,-183.33,2013,"","","","KING,RYAN M"
,OFFICE OF THE MINORITY LEADER,2013Q1,PERSONNEL COMPENSATION,"","KING,RYAN M",01/01/13,01/31/13,PRESS ASSISTANT,"2,750.00",2013,"","","","KING,RYAN M"
,OFFICE OF THE MINORITY LEADER,2013Q1,PERSONNEL COMPENSATION,"","KING,RYAN M",02/01/13,03/31/13,PRESS ADVISOR,"5,500.00",2013,"","","","KING,RYAN M"
,OFFICE OF THE MINORITY LEADER,2013Q1,PERSONNEL COMPENSATION,"","KING,RYAN M",01/01/13,01/31/13,PRESS ASSISTANT (OVERTIME),"1,142.29",2013,"","","","KING,RYAN M"
,OFFICE OF THE MINORITY LEADER,2013Q1,PERSONNEL COMPENSATION,"","KING,RYAN M",02/01/13,02/28/13,PRESS ADVISOR (OVERTIME),"1,398.12",2013,"","","","KING,RYAN M"
,OFFICE OF THE MINORITY LEADER,2013Q1,PERSONNEL COMPENSATION,"","KRETMAN,MATTHEW A",03/01/13,03/31/13,DIRECTOR OF OUTREACH,"3,333.33",2013,"","","","KRETMAN,MATTHEW A"
,OFFICE OF THE MINORITY LEADER,2013Q1,PERSONNEL COMPENSATION,"","KUNDANIS, GEORGE",01/01/13,01/31/13,DEPUTY CHIEF OF STAFF,-958.33,2013,"","","","KUNDANIS, GEORGE"
,OFFICE OF THE MINORITY LEADER,2013Q1,PERSONNEL COMPENSATION,"","KUNDANIS, GEORGE",01/01/13,03/31/13,DEPUTY CHIEF OF STAFF,"43,125.00",2013,"","","","KUNDANIS, GEORGE"
,OFFICE OF THE MINORITY LEADER,2013Q1,PERSONNEL COMPENSATION,"","LAWRENCE, JOHN A",01/01/13,01/31/13,CHIEF OF STAFF,-958.33,2013,"","","","LAWRENCE, JOHN A"
,OFFICE OF THE MINORITY LEADER,2013Q1,PERSONNEL COMPENSATION,"","LAWRENCE, JOHN A",01/01/13,02/01/13,CHIEF OF STAFF,"14,854.17",2013,"","","","LAWRENCE, JOHN A"
,OFFICE OF THE MINORITY LEADER,2013Q1,PERSONNEL COMPENSATION,"","LAWRENCE, JOHN A",02/01/13,02/01/13,CHIEF OF STAFF (OTHER COMPENSATION),"13,895.83",2013,"","","","LAWRENCE, JOHN A"
,OFFICE OF THE MINORITY LEADER,2013Q1,PERSONNEL COMPENSATION,"","LIZARRAGA, JAIME E",01/01/13,01/31/13,SR ADV & DIR OF MEMBER SVC,-886.79,2013,"","","","LIZARRAGA, JAIME E"
,OFFICE OF THE MINORITY LEADER,2013Q1,PERSONNEL COMPENSATION,"","LIZARRAGA, JAIME E",01/01/13,03/31/13,SR ADV & DIR OF MEMBER SVC,"39,905.49",2013,"","","","LIZARRAGA, JAIME E"
,OFFICE OF THE MINORITY LEADER,2013Q1,PERSONNEL COMPENSATION,"","LONG,MICHAEL G",01/01/13,01/31/13,DEPUTY DIR OF MEMBER SVCS,-416.67,2013,"","","","LONG,MICHAEL G"
,OFFICE OF THE MINORITY LEADER,2013Q1,PERSONNEL COMPENSATION,"","LONG,MICHAEL G",01/01/13,03/31/13,DEPUTY DIRECTOR OF MEMBER SVCS,"18,750.00",2013,"","","","LONG,MICHAEL G"
,OFFICE OF THE MINORITY LEADER,2013Q1,PERSONNEL COMPENSATION,"","MAHR,THOMAS",01/01/13,01/31/13,POLICY DIRECTOR,-660.00,2013,"","","","MAHR,THOMAS"
,OFFICE OF THE MINORITY LEADER,2013Q1,PERSONNEL COMPENSATION,"","MAHR,THOMAS",01/01/13,03/31/13,POLICY DIRECTOR,"29,700.00",2013,"","","","MAHR,THOMAS"
,OFFICE OF THE MINORITY LEADER,2013Q1,PERSONNEL COMPENSATION,"","MANGRUM, PEARL J",01/01/13,01/31/13,FINANCIAL ADMINISTRATOR,-286.11,2013,"","","","MANGRUM, PEARL J"
,OFFICE OF THE MINORITY LEADER,2013Q1,PERSONNEL COMPENSATION,"","MANGRUM, PEARL J",01/01/13,03/31/13,FINANCIAL ADMINISTRATOR,"7,041.67",2013,"","","","MANGRUM, PEARL J"
,OFFICE OF THE MINORITY LEADER,2013Q1,PERSONNEL COMPENSATION,"","MEDLIN,MELINDA L",01/01/13,01/31/13,DIRECTOR OF SCHEDULING,-796.60,2013,"","","","MEDLIN,MELINDA L"
,OFFICE OF THE MINORITY LEADER,2013Q1,PERSONNEL COMPENSATION,"","MEDLIN,MELINDA L",01/01/13,03/31/13,DIRECTOR OF SCHEDULING,"35,847.00",2013,"","","","MEDLIN,MELINDA L"
,OFFICE OF THE MINORITY LEADER,2013Q1,PERSONNEL COMPENSATION,"","MELTZER,RICHARD",01/01/13,01/31/13,POLICY DIRECTOR,-958.33,2013,"","","","MELTZER,RICHARD"
,OFFICE OF THE MINORITY LEADER,2013Q1,PERSONNEL COMPENSATION,"","MELTZER,RICHARD",01/01/13,03/31/13,POLICY DIRECTOR,"43,125.00",2013,"","","","MELTZER,RICHARD"
,OFFICE OF THE MINORITY LEADER,2013Q1,PERSONNEL COMPENSATION,"","MERZ, JULIE E",01/01/13,01/31/13,DIR OF MEMBER SERVICES,-555.55,2013,"","","","MERZ, JULIE E"
,OFFICE OF THE MINORITY LEADER,2013Q1,PERSONNEL COMPENSATION,"","MERZ, JULIE E",01/01/13,03/31/13,DIR OF MEMBER SERVICES,"24,999.99",2013,"","","","MERZ, JULIE E"
,OFFICE OF THE MINORITY LEADER,2013Q1,PERSONNEL COMPENSATION,"","MILLER,AMY M",01/01/13,01/31/13,SENIOR ADVISOR,-555.56,2013,"","","","MILLER,AMY M"
,OFFICE OF THE MINORITY LEADER,2013Q1,PERSONNEL COMPENSATION,"","MILLER,AMY M",01/01/13,03/31/13,SENIOR ADVISOR,"24,999.99",2013,"","","","MILLER,AMY M"
,OFFICE OF THE MINORITY LEADER,2013Q1,PERSONNEL COMPENSATION,"","MURRAY, ELIZABETH M",01/19/13,03/31/13,SENIOR POLICY ADVISOR,"25,759.99",2013,"","","","MURRAY, ELIZABETH M"
,OFFICE OF THE MINORITY LEADER,2013Q1,PERSONNEL COMPENSATION,"","O'NEILL, CATLIN W",01/01/13,01/31/13,CHIEF OF STAFF,-416.67,2013,"","","","O'NEILL, CATLIN W"
,OFFICE OF THE MINORITY LEADER,2013Q1,PERSONNEL COMPENSATION,"","O'NEILL, CATLIN W",01/01/13,03/31/13,CHIEF OF STAFF,"12,916.66",2013,"","","","O'NEILL, CATLIN W"
,OFFICE OF THE MINORITY LEADER,2013Q1,PERSONNEL COMPENSATION,"","PARDUE, LAURA E",01/01/13,01/31/13,DEPUTY DIR.- FL OPERATIONS,-694.44,2013,"","","","PARDUE, LAURA E"
,OFFICE OF THE MINORITY LEADER,2013Q1,PERSONNEL COMPENSATION,"","PARDUE, LAURA E",01/01/13,03/31/13,DEPUTY DIR. - FLOOR OPERATIONS,"31,250.01",2013,"","","","PARDUE, LAURA E"
,OFFICE OF THE MINORITY LEADER,2013Q1,PERSONNEL COMPENSATION,"","PARKER, WYNDEE R",01/01/13,01/31/13,SENIOR POLICY ADVISOR,-958.33,2013,"","","","PARKER, WYNDEE R"
,OFFICE OF THE MINORITY LEADER,2013Q1,PERSONNEL COMPENSATION,"","PARKER, WYNDEE R",01/01/13,03/31/13,SENIOR POLICY ADVISOR,"43,125.00",2013,"","","","PARKER, WYNDEE R"
,OFFICE OF THE MINORITY LEADER,2013Q1,PERSONNEL COMPENSATION,"","PATTI,VERNA A",01/01/13,01/31/13,DISTRIC SCHEDULER,-66.67,2013,"","","","PATTI,VERNA A"
,OFFICE OF THE MINORITY LEADER,2013Q1,PERSONNEL COMPENSATION,"","PATTI,VERNA A",01/01/13,03/31/13,DISTRICT SCHEDULER,"3,000.00",2013,"","","","PATTI,VERNA A"
,OFFICE OF THE MINORITY LEADER,2013Q1,PERSONNEL COMPENSATION,"","POWELL,JONATHAN M",01/01/13,01/31/13,DEPUTY SPEECHWRITER,-444.44,2013,"","","","POWELL,JONATHAN M"
,OFFICE OF THE MINORITY LEADER,2013Q1,PERSONNEL COMPENSATION,"","POWELL,JONATHAN M",01/01/13,01/31/13,DEPUTY SPEECHWRITER,"6,666.67",2013,"","","","POWELL,JONATHAN M"
,OFFICE OF THE MINORITY LEADER,2013Q1,PERSONNEL COMPENSATION,"","POWELL,JONATHAN M",02/01/13,03/31/13,DIRECTOR OF SPEECHWRITING,"13,333.34",2013,"","","","POWELL,JONATHAN M"
,OFFICE OF THE MINORITY LEADER,2013Q1,PERSONNEL COMPENSATION,"","PRICE, REVA B",01/01/13,01/31/13,OUTREACH DIRECTOR & ADV,-709.43,2013,"","","","PRICE, REVA B"
,OFFICE OF THE MINORITY LEADER,2013Q1,PERSONNEL COMPENSATION,"","PRICE, REVA B",01/01/13,03/31/13,OUTREACH DIRECTOR & ADVISOR,"31,924.26",2013,"","","","PRICE, REVA B"
,OFFICE OF THE MINORITY LEADER,2013Q1,PERSONNEL COMPENSATION,"","PRIMUS, WENDELL E",01/01/13,01/31/13,SENIOR POLICY ADVISOR,-958.33,2013,"","","","PRIMUS, WENDELL E"
,OFFICE OF THE MINORITY LEADER,2013Q1,PERSONNEL COMPENSATION,"","PRIMUS, WENDELL E",01/01/13,03/31/13,SENIOR POLICY ADVISOR,"43,125.00",2013,"","","","PRIMUS, WENDELL E"
,OFFICE OF THE MINORITY LEADER,2013Q1,PERSONNEL COMPENSATION,"","REPKO,MARY F",01/01/13,01/31/13,SENIOR POLICY ADVISOR,-732.22,2013,"","","","REPKO,MARY F"
,OFFICE OF THE MINORITY LEADER,2013Q1,PERSONNEL COMPENSATION,"","REPKO,MARY F",01/01/13,03/31/13,SENIOR POLICY ADVISOR,"32,949.99",2013,"","","","REPKO,MARY F"
,OFFICE OF THE MINORITY LEADER,2013Q1,PERSONNEL COMPENSATION,"","ROLLAND,STACEY L",01/01/13,01/31/13,POLICY ADVISOR -TAX,-666.67,2013,"","","","ROLLAND,STACEY L"
,OFFICE OF THE MINORITY LEADER,2013Q1,PERSONNEL COMPENSATION,"","ROLLAND,STACEY L",01/01/13,03/31/13,POLICY ADVISOR - TAX,"30,000.00",2013,"","","","ROLLAND,STACEY L"
,OFFICE OF THE MINORITY LEADER,2013Q1,PERSONNEL COMPENSATION,"","ROMICK, BRIAN",01/01/13,01/31/13,MEMBER SERVICES DIRECTOR,-798.89,2013,"","","","ROMICK, BRIAN"
,OFFICE OF THE MINORITY LEADER,2013Q1,PERSONNEL COMPENSATION,"","ROMICK, BRIAN",01/01/13,03/31/13,MEMBER SERVICES DIRECTOR,"35,949.99",2013,"","","","ROMICK, BRIAN"
,OFFICE OF THE MINORITY LEADER,2013Q1,PERSONNEL COMPENSATION,"","SANCHEZ, CARLOS S",01/01/13,01/02/13,PRESS ADVISOR,-444.44,2013,"","","","SANCHEZ, CARLOS S"
,OFFICE OF THE MINORITY LEADER,2013Q1,PERSONNEL COMPENSATION,"","SHAKIR,FAIZ R",01/01/13,01/31/13,DIR OF NEW MEDIA & SR ADV,-750.00,2013,"","","","SHAKIR,FAIZ R"
,OFFICE OF THE MINORITY LEADER,2013Q1,PERSONNEL COMPENSATION,"","SHAKIR,FAIZ R",01/01/13,02/28/13,DIR OF NEW MEDIA & SENIOR ADV,"22,500.00",2013,"","","","SHAKIR,FAIZ R"
,OFFICE OF THE MINORITY LEADER,2013Q1,PERSONNEL COMPENSATION,"","SHAKIR,FAIZ R",03/01/13,03/08/13,STAFF ASSISTANT,"3,000.00",2013,"","","","SHAKIR,FAIZ R"
,OFFICE OF THE MINORITY LEADER,2013Q1,PERSONNEL COMPENSATION,"","SHAKIR,FAIZ R",03/01/13,03/31/13,DIR OF NEW MEDIA & SENIOR ADV (OTHER COMPENSATION),"10,500.00",2013,"","","","SHAKIR,FAIZ R"
,OFFICE OF THE MINORITY LEADER,2013Q1,PERSONNEL COMPENSATION,"","SINGLETARY, BARVETTA",01/01/13,01/31/13,POLICY DIRECTOR,-738.89,2013,"","","","SINGLETARY, BARVETTA"
,OFFICE OF THE MINORITY LEADER,2013Q1,PERSONNEL COMPENSATION,"","SINGLETARY, BARVETTA",01/01/13,03/31/13,POLICY DIRECTOR,"33,249.99",2013,"","","","SINGLETARY, BARVETTA"
,OFFICE OF THE MINORITY LEADER,2013Q1,PERSONNEL COMPENSATION,"","SKEWES-COX,CHRISTINA J",01/01/13,01/03/13,ADVANCE DIRECTOR,-444.44,2013,"","","","SKEWES-COX,CHRISTINA J"
,OFFICE OF THE MINORITY LEADER,2013Q1,PERSONNEL COMPENSATION,"","SKEWES-COX,CHRISTINA J",01/01/13,01/03/13,ADVANCE DIRECTOR,666.67,2013,"","","","SKEWES-COX,CHRISTINA J"
,OFFICE OF THE MINORITY LEADER,2013Q1,PERSONNEL COMPENSATION,"","SMITH,KELSEY L",01/01/13,01/31/13,DEPUTY DIRECTOR OF SCHEDULING,-252.78,2013,"","","","SMITH,KELSEY L"
,OFFICE OF THE MINORITY LEADER,2013Q1,PERSONNEL COMPENSATION,"","SMITH,KELSEY L",01/01/13,03/31/13,DEPUTY DIRECTOR OF SCHEDULING,"11,375.01",2013,"","","","SMITH,KELSEY L"
,OFFICE OF THE MINORITY LEADER,2013Q1,PERSONNEL COMPENSATION,"","SMITH,KELSEY L",01/01/13,02/28/13,DEPUTY DIRECTOR OF SCHEDULING (OVERTIME),"3,396.05",2013,"","","","SMITH,KELSEY L"
,OFFICE OF THE MINORITY LEADER,2013Q1,PERSONNEL COMPENSATION,"","STIVERS, JONATHAN",01/01/13,01/31/13,SENIOR ADVISOR,-777.78,2013,"","","","STIVERS, JONATHAN"
,OFFICE OF THE MINORITY LEADER,2013Q1,PERSONNEL COMPENSATION,"","STIVERS, JONATHAN",01/01/13,03/31/13,SENIOR ADVISOR,"35,000.01",2013,"","","","STIVERS, JONATHAN"
,OFFICE OF THE MINORITY LEADER,2013Q1,PERSONNEL COMPENSATION,"","SULLIVAN, BARRY K",01/01/13,01/31/13,CHIEF FLOOR SERVICE (MIN),-958.33,2013,"","","","SULLIVAN, BARRY K"
,OFFICE OF THE MINORITY LEADER,2013Q1,PERSONNEL COMPENSATION,"","SULLIVAN, BARRY K",01/01/13,03/31/13,CHIEF FLOOR SERVICE (MIN),"43,125.00",2013,"","","","SULLIVAN, BARRY K"
,OFFICE OF THE MINORITY LEADER,2013Q1,PERSONNEL COMPENSATION,"","SURGEON,BINA G",01/01/13,01/31/13,SPECIAL ASST TO THE LEADER,-388.89,2013,"","","","SURGEON,BINA G"
,OFFICE OF THE MINORITY LEADER,2013Q1,PERSONNEL COMPENSATION,"","SURGEON,BINA G",01/01/13,03/31/13,SPECIAL ASST TO THE LEADER,"17,499.99",2013,"","","","SURGEON,BINA G"
,OFFICE OF THE MINORITY LEADER,2013Q1,PERSONNEL COMPENSATION,"","TECKLENBURG, MICHAEL H",01/01/13,01/31/13,COUNSEL,-722.22,2013,"","","","TECKLENBURG, MICHAEL H"
,OFFICE OF THE MINORITY LEADER,2013Q1,PERSONNEL COMPENSATION,"","TECKLENBURG, MICHAEL H",01/01/13,03/31/13,COUNSEL,"32,499.99",2013,"","","","TECKLENBURG, MICHAEL H"
,OFFICE OF THE MINORITY LEADER,2013Q1,PERSONNEL COMPENSATION,"","UENG,STEPHANIE L",01/01/13,01/06/13,OUTREACH ADVISOR,-304.03,2013,"","","","UENG,STEPHANIE L"
,OFFICE OF THE MINORITY LEADER,2013Q1,PERSONNEL COMPENSATION,"","UENG,STEPHANIE L",01/01/13,01/06/13,OUTREACH ADVISOR,912.10,2013,"","","","UENG,STEPHANIE L"
,OFFICE OF THE MINORITY LEADER,2013Q1,PERSONNEL COMPENSATION,"","WATKINS, YELBERTON R",01/01/13,01/31/13,CHIEF OF STAFF,-916.67,2013,"","","","WATKINS, YELBERTON R"
,OFFICE OF THE MINORITY LEADER,2013Q1,PERSONNEL COMPENSATION,"","WATKINS, YELBERTON R",01/01/13,03/31/13,CHIEF OF STAFF,"41,250.00",2013,"","","","WATKINS, YELBERTON R"
,OFFICE OF THE MINORITY LEADER,2013Q1,PERSONNEL COMPENSATION,"","WEST,JULIUS L",01/01/13,01/31/13,DISTRICT ASSISTANT,-250.00,2013,"","","","WEST,JULIUS L"
,OFFICE OF THE MINORITY LEADER,2013Q1,PERSONNEL COMPENSATION,"","WEST,JULIUS L",01/01/13,03/31/13,DISTRICT ASSISTANT,"11,666.67",2013,"","","","WEST,JULIUS L"
,OFFICE OF THE MINORITY LEADER,2013Q1,PERSONNEL COMPENSATION,"","WILEDEN,LYDIA",01/01/13,01/31/13,STAFF ASST/PERSONAL CORR,-183.33,2013,"","","","WILEDEN,LYDIA"
,OFFICE OF THE MINORITY LEADER,2013Q1,PERSONNEL COMPENSATION,"","WILEDEN,LYDIA",01/01/13,02/24/13,STAFF ASST/PERSONAL CORR,"4,950.00",2013,"","","","WILEDEN,LYDIA"
,OFFICE OF THE MINORITY LEADER,2013Q1,PERSONNEL COMPENSATION,"","WILEDEN,LYDIA",01/01/13,02/24/13,STAFF ASST/PERSONAL CORR (OVERTIME),"3,307.89",2013,"","","","WILEDEN,LYDIA"
,OFFICE OF THE MINORITY LEADER,2013Q1,PERSONNEL COMPENSATION,"","WILEDEN,LYDIA",02/01/13,02/24/13,STAFF ASST/PERSONAL CORR (OTHER COMPENSATION),"1,283.33",2013,"","","","WILEDEN,LYDIA"
,OFFICE OF THE MINORITY LEADER,2013Q1,PERSONNEL COMPENSATION,"","WOLTERS, KATE",01/01/13,01/31/13,PERSONAL ASSISTANT,-858.81,2013,"","","","WOLTERS, KATE"
,OFFICE OF THE MINORITY LEADER,2013Q1,PERSONNEL COMPENSATION,"","WOLTERS, KATE",01/01/13,03/31/13,PERSONAL ASSISTANT,"35,979.83",2013,"","","","WOLTERS, KATE"
,OFFICE OF THE MINORITY LEADER,2013Q1,TRAVEL,02-01,"STIVERS, JONATHAN",01/14/13,01/14/13,TAXI/PARKING/TOLLS,12.00,2013,AP,Accounts payable,00613960,"STIVERS, JONATHAN"
,OFFICE OF THE MINORITY LEADER,2013Q1,TRAVEL,02-20,CITIBANK GOV CARD SERVICE,01/23/13,02/01/13,COMMERCIAL TRANSPORTATION,"2,013.90",2013,AP,Accounts payable,00626989,CITIBANK GOV CARD SERVICE
,OFFICE OF THE MINORITY LEADER,2013Q1,TRAVEL,03-08,CITIBANK GOV CARD SERVICE,02/07/13,02/24/13,TRAVEL SUBSISTENCE,"3,027.03",2013,AP,Accounts payable,00638340,CITIBANK GOV CARD SERVICE
,OFFICE OF THE MINORITY LEADER,2013Q1,TRAVEL,03-08,CITIBANK GOV CARD SERVICE,01/21/13,03/01/13,COMMERCIAL TRANSPORTATION,"2,624.10",2013,AP,Accounts payable,00638343,CITIBANK GOV CARD SERVICE
,OFFICE OF THE MINORITY LEADER,2013Q1,"RENT, COMMUNICATION, UTILITIES",02-22,CITI PCARD-TIV TIVO SERVICE,01/03/13,01/28/13,RECORDING (OUTSIDE),150.32,2013,AP,Accounts payable,00629027,CITI PCARD-TIV TIVO SERVICE
,OFFICE OF THE MINORITY LEADER,2013Q1,PRINTING AND REPRODUCTION,01-29,"",01/01/13,01/31/13,PHOTOGRAPHIC (TRANSFER),741.90,2013,GL,General ledger,PIX0026042,""
,OFFICE OF THE MINORITY LEADER,2013Q1,PRINTING AND REPRODUCTION,02-25,"",02/01/13,02/28/13,PHOTOGRAPHIC (TRANSFER),974.90,2013,GL,General ledger,PIX0026824,""
,OFFICE OF THE MINORITY LEADER,2013Q1,PRINTING AND REPRODUCTION,03-25,"",03/01/13,03/31/13,PHOTOGRAPHIC (TRANSFER),661.25,2013,GL,General ledger,PIX0027668,""
,OFFICE OF THE MINORITY LEADER,2013Q1,OTHER SERVICES,01-23,NEAL R. GROSS & CO INC,01/04/13,01/04/13,STENOGRAPHIC REPORTING,750.00,2013,AP,Accounts payable,00605895,NEAL R. GROSS & CO INC
,OFFICE OF THE MINORITY LEADER,2013Q1,OTHER SERVICES,02-25,BERNARD RAIMO,01/01/13,01/31/13,CONSULTANT CONTRACT SERVICE,"7,628.00",2013,AP,Accounts payable,00630227,BERNARD RAIMO
,OFFICE OF THE MINORITY LEADER,2013Q1,OTHER SERVICES,03-05,BERNARD RAIMO,02/01/13,02/28/13,CONSULTANT CONTRACT SERVICE,"7,628.00",2013,AP,Accounts payable,00637006,BERNARD RAIMO
,OFFICE OF THE MINORITY LEADER,2013Q1,SUPPLIES AND MATERIALS,01-23,BLOOMBERG FINANCE LP,01/03/13,01/02/14,PUBLICATIONS/REFERENCE MAT'L,"5,039.57",2013,AP,Accounts payable,00605891,BLOOMBERG FINANCE LP
,OFFICE OF THE MINORITY LEADER,2013Q1,SUPPLIES AND MATERIALS,01-23,CQ ROLL CALL,01/14/13,01/13/14,PUBLICATIONS/REFERENCE MAT'L,"67,615.00",2013,AP,Accounts payable,00605894,CQ ROLL CALL
,OFFICE OF THE MINORITY LEADER,2013Q1,SUPPLIES AND MATERIALS,02-01,HAGUE QUALITY WATER OF MD INC,01/01/13,01/31/13,WATER,378.00,2013,AP,Accounts payable,00613946,HAGUE QUALITY WATER OF MD INC
,OFFICE OF THE MINORITY LEADER,2013Q1,SUPPLIES AND MATERIALS,02-01,BRONTO SOFTWARE,01/03/13,02/02/13,PUBLICATIONS/REFERENCE MAT'L,445.30,2013,AP,Accounts payable,00613948,BRONTO SOFTWARE
,OFFICE OF THE MINORITY LEADER,2013Q1,SUPPLIES AND MATERIALS,02-01,"WOLTERS, KATE",01/10/13,01/10/13,FOOD & BEVERAGE,122.09,2013,AP,Accounts payable,00613956,"WOLTERS, KATE"
,OFFICE OF THE MINORITY LEADER,2013Q1,SUPPLIES AND MATERIALS,02-15,CITIBANK GOV CARD SERVICE,01/18/13,01/18/13,FOOD & BEVERAGE,475.00,2013,AP,Accounts payable,00622337,CITIBANK GOV CARD SERVICE
,OFFICE OF THE MINORITY LEADER,2013Q1,SUPPLIES AND MATERIALS,02-26,CITIBANK GOV CARD SERVICE,01/18/13,01/18/13,FOOD & BEVERAGE,-475.00,2013,AP,Accounts payable,00632065,CITIBANK GOV CARD SERVICE
,OFFICE OF THE MINORITY LEADER,2013Q1,SUPPLIES AND MATERIALS,03-21,CITI PCARD-DUNKIN,01/29/13,02/28/13,FOOD & BEVERAGE,33.05,2013,AP,Accounts payable,00650124,CITI PCARD-DUNKIN
,OFFICE OF THE MINORITY LEADER,2013Q1,SUPPLIES AND MATERIALS,03-21,CITI PCARD-FIREHOOK,01/29/13,02/28/13,FOOD & BEVERAGE,32.00,2013,AP,Accounts payable,00650124,CITI PCARD-FIREHOOK
,OFFICE OF THE MINORITY LEADER,2013Q1,SUPPLIES AND MATERIALS,03-21,CITI PCARD-HARRIS TEETER,01/29/13,02/28/13,FOOD & BEVERAGE,244.90,2013,AP,Accounts payable,00650124,CITI PCARD-HARRIS TEETER
,OFFICE OF THE MINORITY LEADER,2013Q1,SUPPLIES AND MATERIALS,03-21,CITI PCARD-SAFEWAY STORE,01/29/13,02/28/13,FOOD & BEVERAGE,18.01,2013,AP,Accounts payable,00650124,CITI PCARD-SAFEWAY STORE
,OFFICE OF THE MINORITY LEADER,2013Q1,SUPPLIES AND MATERIALS,03-21,CITI PCARD-TARGET,01/29/13,02/28/13,FOOD & BEVERAGE,294.45,2013,AP,Accounts payable,00650124,CITI PCARD-TARGET
,OFFICE OF THE MINORITY LEADER,2013Q1,SUPPLIES AND MATERIALS,03-21,CITI PCARD-WHOLEFDS PST,01/29/13,02/28/13,FOOD & BEVERAGE,14.58,2013,AP,Accounts payable,00650124,CITI PCARD-WHOLEFDS PST
,OFFICE OF THE MINORITY LEADER,2013Q1,SUPPLIES AND MATERIALS,02-22,CITI PCARD-COSI,12/29/12,01/02/13,FOOD & BEVERAGE,149.77,2012,AP,Accounts payable,00629027,CITI PCARD-COSI
,OFFICE OF THE MINORITY LEADER,2013Q1,SUPPLIES AND MATERIALS,02-22,CITI PCARD-HARRIS TEETER,12/29/12,01/02/13,FOOD & BEVERAGE,59.33,2012,AP,Accounts payable,00629027,CITI PCARD-HARRIS TEETER
,OFFICE OF THE MINORITY LEADER,2013Q1,SUPPLIES AND MATERIALS,02-22,CITI PCARD-MATCHBOX CAPITOL HILL,12/29/12,01/02/13,FOOD & BEVERAGE,375.10,2012,AP,Accounts payable,00629027,CITI PCARD-MATCHBOX CAPITOL HILL
,OFFICE OF THE MINORITY LEADER,2013Q1,SUPPLIES AND MATERIALS,02-22,CITI PCARD-WHOLEFDS PST,12/29/12,01/02/13,FOOD & BEVERAGE,310.93,2012,AP,Accounts payable,00629027,CITI PCARD-WHOLEFDS PST
,OFFICE OF THE MINORITY LEADER,2013Q1,SUPPLIES AND MATERIALS,03-07,"SURGEON,BINA G",11/02/12,12/03/12,FOOD & BEVERAGE,41.97,2012,AP,Accounts payable,00638188,"SURGEON,BINA G"
,OFFICE OF THE MINORITY LEADER,2013Q1,SUPPLIES AND MATERIALS,03-07,HELEN OLIVIA,01/02/13,01/02/13,HABITATION EXPENSE,249.00,2012,AP,Accounts payable,00638191,HELEN OLIVIA
,OFFICE OF THE MINORITY LEADER,2013Q1,SUPPLIES AND MATERIALS,03-07,HELEN OLIVIA,12/28/12,12/28/12,HABITATION EXPENSE,150.00,2012,AP,Accounts payable,00638193,HELEN OLIVIA
,OFFICE OF THE MINORITY LEADER,2013Q1,SUPPLIES AND MATERIALS,03-13,CAPITOLHOST,12/04/12,12/04/12,FOOD & BEVERAGE,94.50,2012,AP,Accounts payable,00640262,CAPITOLHOST
,OFFICE OF THE MINORITY LEADER,2013Q1,SUPPLIES AND MATERIALS,03-13,CAPITOLHOST,12/04/12,12/04/12,FOOD & BEVERAGE,33.00,2012,AP,Accounts payable,00640268,CAPITOLHOST
,OFFICE OF THE MINORITY LEADER,2013Q1,SUPPLIES AND MATERIALS,03-13,CAPITOLHOST,12/11/12,12/11/12,FOOD & BEVERAGE,66.00,2012,AP,Accounts payable,00640272,CAPITOLHOST
,OFFICE OF THE MINORITY LEADER,2013Q1,SUPPLIES AND MATERIALS,03-13,CAPITOLHOST,12/12/12,12/12/12,FOOD & BEVERAGE,280.40,2012,AP,Accounts payable,00640278,CAPITOLHOST
,OFFICE OF THE MINORITY LEADER,2013Q1,SUPPLIES AND MATERIALS,03-13,CAPITOLHOST,12/19/12,12/19/12,FOOD & BEVERAGE,33.00,2012,AP,Accounts payable,00640287,CAPITOLHOST
,OFFICE OF THE MINORITY LEADER,2013Q1,SUPPLIES AND MATERIALS,01-25,HAGUE QUALITY WATER OF MD INC,12/01/12,12/31/12,WATER,378.00,2012,AP,Accounts payable,00605887,HAGUE QUALITY WATER OF MD INC
,OFFICE OF THE MINORITY LEADER,2013Q1,SUPPLIES AND MATERIALS,03-25,BULLETIN NEWS INC,05/18/12,05/17/13,PUBLICATIONS/REFERENCE MAT'L,"-1,163.22",2012,AR,Accounts receivable,AC-07612,BULLETIN NEWS INC
,OFFICE OF THE MAJORITY WHIP,2013Q1,PERSONNEL COMPENSATION,"","BARNES,FREDERIC W",01/01/13,01/31/13,FLOOR ASSISTANT,-266.67,2013,"","","","BARNES,FREDERIC W"
,OFFICE OF THE MAJORITY WHIP,2013Q1,PERSONNEL COMPENSATION,"","BARNES,FREDERIC W",01/01/13,01/31/13,FLOOR ASSISTANT,"4,000.00",2013,"","","","BARNES,FREDERIC W"
,OFFICE OF THE MAJORITY WHIP,2013Q1,PERSONNEL COMPENSATION,"","BERRY,TIMOTHY J",01/01/13,01/31/13,CHIEF OF STAFF,-958.33,2013,"","","","BERRY,TIMOTHY J"
,OFFICE OF THE MAJORITY WHIP,2013Q1,PERSONNEL COMPENSATION,"","BERRY,TIMOTHY J",01/01/13,03/31/13,CHIEF OF STAFF,"43,125.00",2013,"","","","BERRY,TIMOTHY J"
,OFFICE OF THE MAJORITY WHIP,2013Q1,PERSONNEL COMPENSATION,"","BUCHANAN,NATALIE L",01/01/13,01/31/13,DIR OF MEMBER SERVICES,-500.00,2013,"","","","BUCHANAN,NATALIE L"
,OFFICE OF THE MAJORITY WHIP,2013Q1,PERSONNEL COMPENSATION,"","BUCHANAN,NATALIE L",01/01/13,03/31/13,DIR OF MEMBER SERVICES,"22,500.00",2013,"","","","BUCHANAN,NATALIE L"
,OFFICE OF THE MAJORITY WHIP,2013Q1,PERSONNEL COMPENSATION,"","CAREY,BRITTANY M",01/01/13,01/31/13,STAFF ASSISTANT,-250.00,2013,"","","","CAREY,BRITTANY M"
,OFFICE OF THE MAJORITY WHIP,2013Q1,PERSONNEL COMPENSATION,"","CAREY,BRITTANY M",01/01/13,01/31/13,STAFF ASSISTANT,"3,750.00",2013,"","","","CAREY,BRITTANY M"
,OFFICE OF THE MAJORITY WHIP,2013Q1,PERSONNEL COMPENSATION,"","CAREY,BRITTANY M",02/01/13,03/31/13,COALITIONS ASST/ASST. TO COS,"7,000.00",2013,"","","","CAREY,BRITTANY M"
,OFFICE OF THE MAJORITY WHIP,2013Q1,PERSONNEL COMPENSATION,"","DIXON, KELLY A",01/01/13,01/31/13,DEPUTY DIRECTOR OF FLOOR OPERA,-533.33,2013,"","","","DIXON, KELLY A"
,OFFICE OF THE MAJORITY WHIP,2013Q1,PERSONNEL COMPENSATION,"","DIXON, KELLY A",01/01/13,03/31/13,DEPUTY DIRECTOR OF FLOOR OPERA,"24,000.00",2013,"","","","DIXON, KELLY A"
,OFFICE OF THE MAJORITY WHIP,2013Q1,PERSONNEL COMPENSATION,"","ELLIOTT,ERICA L",01/01/13,01/31/13,DIRECTOR OF COMMUNICATIONS,-716.67,2013,"","","","ELLIOTT,ERICA L"
,OFFICE OF THE MAJORITY WHIP,2013Q1,PERSONNEL COMPENSATION,"","ELLIOTT,ERICA L",01/01/13,03/31/13,DIRECTOR OF COMMUNICATIONS,"32,250.00",2013,"","","","ELLIOTT,ERICA L"
,OFFICE OF THE MAJORITY WHIP,2013Q1,PERSONNEL COMPENSATION,"","HENEHAN, EMILY A",01/01/13,01/31/13,POLICY ADVISOR,-500.00,2013,"","","","HENEHAN, EMILY A"
,OFFICE OF THE MAJORITY WHIP,2013Q1,PERSONNEL COMPENSATION,"","HENEHAN, EMILY A",01/01/13,03/31/13,POLICY ADVISOR,"22,500.00",2013,"","","","HENEHAN, EMILY A"
,OFFICE OF THE MAJORITY WHIP,2013Q1,PERSONNEL COMPENSATION,"","HOWARD,BENJAMIN R",01/01/13,01/31/13,FLOOR ASSISTANT,-300.00,2013,"","","","HOWARD,BENJAMIN R"
,OFFICE OF THE MAJORITY WHIP,2013Q1,PERSONNEL COMPENSATION,"","HOWARD,BENJAMIN R",01/01/13,03/31/13,FLOOR ASSISTANT,"13,500.00",2013,"","","","HOWARD,BENJAMIN R"
,OFFICE OF THE MAJORITY WHIP,2013Q1,PERSONNEL COMPENSATION,"","LOFRANCO, JUSTIN V",01/01/13,01/21/13,DIGITAL DIRECTOR,-383.33,2013,"","","","LOFRANCO, JUSTIN V"
,OFFICE OF THE MAJORITY WHIP,2013Q1,PERSONNEL COMPENSATION,"","LOFRANCO, JUSTIN V",01/01/13,01/21/13,DIGITAL DIRECTOR,"4,025.00",2013,"","","","LOFRANCO, JUSTIN V"
,OFFICE OF THE MAJORITY WHIP,2013Q1,PERSONNEL COMPENSATION,"","LONG,MICHAEL P",01/01/13,01/31/13,PRESS SECRETARY,-383.33,2013,"","","","LONG,MICHAEL P"
,OFFICE OF THE MAJORITY WHIP,2013Q1,PERSONNEL COMPENSATION,"","LONG,MICHAEL P",01/01/13,03/31/13,PRESS SECRETARY,"17,250.00",2013,"","","","LONG,MICHAEL P"
,OFFICE OF THE MAJORITY WHIP,2013Q1,PERSONNEL COMPENSATION,"","MCCLELLAND, WESLEY R",01/01/13,01/31/13,POLICY ADVISOR,-500.00,2013,"","","","MCCLELLAND, WESLEY R"
,OFFICE OF THE MAJORITY WHIP,2013Q1,PERSONNEL COMPENSATION,"","MCCLELLAND, WESLEY R",01/01/13,03/31/13,POLICY ADVISOR,"22,500.00",2013,"","","","MCCLELLAND, WESLEY R"
,OFFICE OF THE MAJORITY WHIP,2013Q1,PERSONNEL COMPENSATION,"","METTLER,ASHLEY",01/01/13,01/31/13,SENIOR STAFF ASSISTANT,-250.00,2013,"","","","METTLER,ASHLEY"
,OFFICE OF THE MAJORITY WHIP,2013Q1,PERSONNEL COMPENSATION,"","METTLER,ASHLEY",01/01/13,01/31/13,SENIOR STAFF ASSISTANT,"3,750.00",2013,"","","","METTLER,ASHLEY"
,OFFICE OF THE MAJORITY WHIP,2013Q1,PERSONNEL COMPENSATION,"","METTLER,ASHLEY",02/01/13,03/31/13,MEMBER SERVICES ASSISTANT,"7,500.00",2013,"","","","METTLER,ASHLEY"
,OFFICE OF THE MAJORITY WHIP,2013Q1,PERSONNEL COMPENSATION,"","MIN, JAMES B",01/01/13,01/31/13,DEPUTY CHIEF OF STAFF,-333.33,2013,"","","","MIN, JAMES B"
,OFFICE OF THE MAJORITY WHIP,2013Q1,PERSONNEL COMPENSATION,"","MIN, JAMES B",01/01/13,03/31/13,DEPUTY CHIEF OF STAFF,"18,000.00",2013,"","","","MIN, JAMES B"
,OFFICE OF THE MAJORITY WHIP,2013Q1,PERSONNEL COMPENSATION,"","MOORE,STEVEN E",01/01/13,01/31/13,CHIEF OF STAFF TO THE DEP WHIP,-333.33,2013,"","","","MOORE,STEVEN E"
,OFFICE OF THE MAJORITY WHIP,2013Q1,PERSONNEL COMPENSATION,"","MOORE,STEVEN E",01/01/13,03/31/13,CHIEF OF STAFF TO THE DEP WHIP,"15,000.00",2013,"","","","MOORE,STEVEN E"
,OFFICE OF THE MAJORITY WHIP,2013Q1,PERSONNEL COMPENSATION,"","PATAKI,TIMOTHY A",01/01/13,01/31/13,SPECIAL ASST TO CHIEF DEPUTY W,-166.67,2013,"","","","PATAKI,TIMOTHY A"
,OFFICE OF THE MAJORITY WHIP,2013Q1,PERSONNEL COMPENSATION,"","PATAKI,TIMOTHY A",01/01/13,03/31/13,SPECIAL ASST TO CHIEF DEPUTY W,"7,500.00",2013,"","","","PATAKI,TIMOTHY A"
,OFFICE OF THE MAJORITY WHIP,2013Q1,PERSONNEL COMPENSATION,"","PINKOS,STEPHEN M",01/01/13,01/31/13,POLICY DIR AND GENERAL COUNSEL,-833.33,2013,"","","","PINKOS,STEPHEN M"
,OFFICE OF THE MAJORITY WHIP,2013Q1,PERSONNEL COMPENSATION,"","PINKOS,STEPHEN M",01/01/13,03/31/13,POLICY DIR AND GENERAL COUNSEL,"37,500.00",2013,"","","","PINKOS,STEPHEN M"
,OFFICE OF THE MAJORITY WHIP,2013Q1,PERSONNEL COMPENSATION,"","SPARKS, MATTHEW E",01/01/13,01/31/13,DEPUTY PRESS SECRETARY,-266.67,2013,"","","","SPARKS, MATTHEW E"
,OFFICE OF THE MAJORITY WHIP,2013Q1,PERSONNEL COMPENSATION,"","SPARKS, MATTHEW E",01/01/13,03/31/13,DEPUTY PRESS SECRETARY,"12,000.00",2013,"","","","SPARKS, MATTHEW E"
,OFFICE OF THE MAJORITY WHIP,2013Q1,PERSONNEL COMPENSATION,"","STIPICEVIC, JOHN A",01/01/13,01/31/13,DIRECTOR OF FLOOR OPERATIONS,-716.67,2013,"","","","STIPICEVIC, JOHN A"
,OFFICE OF THE MAJORITY WHIP,2013Q1,PERSONNEL COMPENSATION,"","STIPICEVIC, JOHN A",01/01/13,03/31/13,DIRECTOR OF FLOOR OPERATIONS,"32,250.00",2013,"","","","STIPICEVIC, JOHN A"
,OFFICE OF THE MAJORITY WHIP,2013Q1,PERSONNEL COMPENSATION,"","THOMSON, KRISTIN",01/01/13,01/31/13,EXECUTIVE ASSISTANT,-333.33,2013,"","","","THOMSON, KRISTIN"
,OFFICE OF THE MAJORITY WHIP,2013Q1,PERSONNEL COMPENSATION,"","THOMSON, KRISTIN",01/01/13,03/31/13,EXECUTIVE ASSISTANT,"15,000.00",2013,"","","","THOMSON, KRISTIN"
,OFFICE OF THE MAJORITY WHIP,2013Q1,PERSONNEL COMPENSATION,"","WORTH,BRIAN A",01/01/13,01/31/13,DIRECTOR OF COALITIONS,-216.67,2013,"","","","WORTH,BRIAN A"
,OFFICE OF THE MAJORITY WHIP,2013Q1,PERSONNEL COMPENSATION,"","WORTH,BRIAN A",01/01/13,03/31/13,DIRECTOR OF COALITIONS,"9,250.00",2013,"","","","WORTH,BRIAN A"
,OFFICE OF THE MAJORITY WHIP,2013Q1,PRINTING AND REPRODUCTION,03-25,"",03/01/13,03/31/13,PHOTOGRAPHIC (TRANSFER),34.20,2013,GL,General ledger,PIX0027668,""
,OFFICE OF THE MAJORITY WHIP,2013Q1,SUPPLIES AND MATERIALS,02-13,"MIN, JAMES B",01/20/13,01/20/13,FOOD & BEVERAGE,429.37,2013,AP,Accounts payable,00621222,"MIN, JAMES B"
,OFFICE OF THE MAJORITY WHIP,2013Q1,SUPPLIES AND MATERIALS,02-13,"MIN, JAMES B",02/01/13,02/01/13,FOOD & BEVERAGE,476.23,2013,AP,Accounts payable,00621226,"MIN, JAMES B"
,OFFICE OF THE MAJORITY WHIP,2013Q1,SUPPLIES AND MATERIALS,02-13,"MIN, JAMES B",01/20/13,01/20/13,FOOD & BEVERAGE,110.00,2013,AP,Accounts payable,00621227,"MIN, JAMES B"
,OFFICE OF THE MAJORITY WHIP,2013Q1,SUPPLIES AND MATERIALS,02-21,DEER PARK WATER,12/27/12,01/26/13,WATER,205.60,2013,AP,Accounts payable,00621238,DEER PARK WATER
,OFFICE OF THE MAJORITY WHIP,2013Q1,SUPPLIES AND MATERIALS,02-22,CITI PCARD-BUCA DI BEPPO-WASHINGT,01/03/13,01/28/13,FOOD & BEVERAGE,701.89,2013,AP,Accounts payable,00629027,CITI PCARD-BUCA DI BEPPO-WASHINGT
,OFFICE OF THE MAJORITY WHIP,2013Q1,SUPPLIES AND MATERIALS,02-22,CITI PCARD-CORNER BAKERY,01/03/13,01/28/13,FOOD & BEVERAGE,504.24,2013,AP,Accounts payable,00629027,CITI PCARD-CORNER BAKERY
,OFFICE OF THE MAJORITY WHIP,2013Q1,SUPPLIES AND MATERIALS,02-22,CITI PCARD-JOE RAGAN S COFFEE,01/03/13,01/28/13,FOOD & BEVERAGE,610.94,2013,AP,Accounts payable,00629027,CITI PCARD-JOE RAGAN S COFFEE
,OFFICE OF THE MAJORITY WHIP,2013Q1,SUPPLIES AND MATERIALS,02-22,CITI PCARD-NEW YORK TIMES DIGITAL,01/03/13,01/28/13,PUBLICATIONS/REFERENCE MAT'L,37.10,2013,AP,Accounts payable,00629027,CITI PCARD-NEW YORK TIMES DIGITAL
,OFFICE OF THE MAJORITY WHIP,2013Q1,SUPPLIES AND MATERIALS,02-22,CITI PCARD-ZORBA S CAFE,01/03/13,01/28/13,FOOD & BEVERAGE,718.00,2013,AP,Accounts payable,00629027,CITI PCARD-ZORBA S CAFE
,OFFICE OF THE MAJORITY WHIP,2013Q1,SUPPLIES AND MATERIALS,03-08,"METTLER, ASHLEY",02/14/13,02/14/13,FOOD & BEVERAGE,13.47,2013,AP,Accounts payable,00638098,"METTLER, ASHLEY"
,OFFICE OF THE MAJORITY WHIP,2013Q1,SUPPLIES AND MATERIALS,03-14,"MIN, JAMES B",02/21/13,02/21/13,FOOD & BEVERAGE,313.26,2013,AP,Accounts payable,00642142,"MIN, JAMES B"
,OFFICE OF THE MAJORITY WHIP,2013Q1,SUPPLIES AND MATERIALS,03-21,CITI PCARD-BUCA DI BEPPO,01/29/13,02/28/13,FOOD & BEVERAGE,"2,566.62",2013,AP,Accounts payable,00650124,CITI PCARD-BUCA DI BEPPO
,OFFICE OF THE MAJORITY WHIP,2013Q1,SUPPLIES AND MATERIALS,03-21,CITI PCARD-CAPITOL HOST (RIDGEWEL,01/29/13,02/28/13,FOOD & BEVERAGE,631.00,2013,AP,Accounts payable,00650124,CITI PCARD-CAPITOL HOST (RIDGEWEL
,OFFICE OF THE MAJORITY WHIP,2013Q1,SUPPLIES AND MATERIALS,03-21,CITI PCARD-CORNER BAKERY,01/29/13,02/28/13,FOOD & BEVERAGE,600.60,2013,AP,Accounts payable,00650124,CITI PCARD-CORNER BAKERY
,OFFICE OF THE MAJORITY WHIP,2013Q1,SUPPLIES AND MATERIALS,03-21,CITI PCARD-FAMOUS DAVE'S,01/29/13,02/28/13,FOOD & BEVERAGE,"3,046.51",2013,AP,Accounts payable,00650124,CITI PCARD-FAMOUS DAVE'S
,OFFICE OF THE MAJORITY WHIP,2013Q1,SUPPLIES AND MATERIALS,03-21,CITI PCARD-HARRIS TEETER,01/29/13,02/28/13,FOOD & BEVERAGE,38.49,2013,AP,Accounts payable,00650124,CITI PCARD-HARRIS TEETER
,OFFICE OF THE MAJORITY WHIP,2013Q1,SUPPLIES AND MATERIALS,03-21,CITI PCARD-JOE RAGAN S COFFEE,01/29/13,02/28/13,FOOD & BEVERAGE,826.53,2013,AP,Accounts payable,00650124,CITI PCARD-JOE RAGAN S COFFEE
,OFFICE OF THE MAJORITY WHIP,2013Q1,SUPPLIES AND MATERIALS,03-21,CITI PCARD-NEW YORK TIMES DIGITAL,01/29/13,02/28/13,PUBLICATIONS/REFERENCE MAT'L,37.10,2013,AP,Accounts payable,00650124,CITI PCARD-NEW YORK TIMES DIGITAL
,OFFICE OF THE MAJORITY WHIP,2013Q1,SUPPLIES AND MATERIALS,03-21,CITI PCARD-SAFEWAY STORE,01/29/13,02/28/13,FOOD & BEVERAGE,11.64,2013,AP,Accounts payable,00650124,CITI PCARD-SAFEWAY STORE
,OFFICE OF THE MINORITY WHIP,2013Q1,PERSONNEL COMPENSATION,"","ABOUCHAR, KEITH S",01/01/13,03/31/13,SENIOR POLICY ADVISOR,549.99,2013,"","","","ABOUCHAR, KEITH S"
,OFFICE OF THE MINORITY WHIP,2013Q1,PERSONNEL COMPENSATION,"","AVILES,DANIELLE R",01/01/13,03/31/13,EXECUTIVE ASST OFFICE MANAGER,"11,000.01",2013,"","","","AVILES,DANIELLE R"
,OFFICE OF THE MINORITY WHIP,2013Q1,PERSONNEL COMPENSATION,"","BOHANAN JR, JOHN L",01/01/13,03/31/13,CONSTITUENT LIAISON,"1,500.00",2013,"","","","BOHANAN JR, JOHN L"
,OFFICE OF THE MINORITY WHIP,2013Q1,PERSONNEL COMPENSATION,"","BOSSART, BETSY W",02/01/13,02/28/13,DISTRICT DIRECTOR,"9,000.00",2013,"","","","BOSSART, BETSY W"
,OFFICE OF THE MINORITY WHIP,2013Q1,PERSONNEL COMPENSATION,"","BURNES, AUSTIN W",01/01/13,03/31/13,DIR. OF LEGISLATIVE OPERATIONS,"21,000.00",2013,"","","","BURNES, AUSTIN W"
,OFFICE OF THE MINORITY WHIP,2013Q1,PERSONNEL COMPENSATION,"","COBIA, LINDSEY G",01/01/13,03/31/13,STAFF ASSISTANT,"6,249.99",2013,"","","","COBIA, LINDSEY G"
,OFFICE OF THE MINORITY WHIP,2013Q1,PERSONNEL COMPENSATION,"","COBIA, LINDSEY G",01/01/13,02/28/13,STAFF ASSISTANT (OVERTIME),"1,568.49",2013,"","","","COBIA, LINDSEY G"
,OFFICE OF THE MINORITY WHIP,2013Q1,PERSONNEL COMPENSATION,"","COLLINS, MICHAEL E",01/01/13,03/31/13,CHIEF DEPUTY WHIP,"10,625.01",2013,"","","","COLLINS, MICHAEL E"
,OFFICE OF THE MINORITY WHIP,2013Q1,PERSONNEL COMPENSATION,"","COVEY-BRANDT, ALEXIS",01/01/13,03/31/13,CHIEF OF STAFF,300.00,2013,"","","","COVEY-BRANDT, ALEXIS"
,OFFICE OF THE MINORITY WHIP,2013Q1,PERSONNEL COMPENSATION,"","DEBOSIER, CHRISTOPHER M",01/01/13,03/31/13,DIR OF MEM SERVICES & OUTREACH,"21,875.01",2013,"","","","DEBOSIER, CHRISTOPHER M"
,OFFICE OF THE MINORITY WHIP,2013Q1,PERSONNEL COMPENSATION,"","DWYER, STEPHEN",03/01/13,03/31/13,DIGITAL DIR & POLICY ADV,"2,000.00",2013,"","","","DWYER, STEPHEN"
,OFFICE OF THE MINORITY WHIP,2013Q1,PERSONNEL COMPENSATION,"","FRY,COURTNEY",01/01/13,03/31/13,DEP OUTREACH DIR & MEM SER ADV,"17,499.99",2013,"","","","FRY,COURTNEY"
,OFFICE OF THE MINORITY WHIP,2013Q1,PERSONNEL COMPENSATION,"","GENSEMER,ELLIOT J",01/01/13,02/28/13,STAFF ASSISTANT,"4,666.66",2013,"","","","GENSEMER,ELLIOT J"
,OFFICE OF THE MINORITY WHIP,2013Q1,PERSONNEL COMPENSATION,"","GENSEMER,ELLIOT J",03/01/13,03/31/13,SPECIAL ASSIST & PROJECT COORD,"3,333.33",2013,"","","","GENSEMER,ELLIOT J"
,OFFICE OF THE MINORITY WHIP,2013Q1,PERSONNEL COMPENSATION,"","GENSEMER,ELLIOT J",01/01/13,02/28/13,STAFF ASSISTANT (OVERTIME),"2,725.93",2013,"","","","GENSEMER,ELLIOT J"
,OFFICE OF THE MINORITY WHIP,2013Q1,PERSONNEL COMPENSATION,"","GHOSH,APRATIM",01/01/13,01/31/13,SPECIAL ASSISTANT,"3,333.33",2013,"","","","GHOSH,APRATIM"
,OFFICE OF THE MINORITY WHIP,2013Q1,PERSONNEL COMPENSATION,"","GOFF,SHUWANZA R",01/01/13,03/31/13,DEPUTY DIR LEG OPERATIONS,"17,499.99",2013,"","","","GOFF,SHUWANZA R"
,OFFICE OF THE MINORITY WHIP,2013Q1,PERSONNEL COMPENSATION,"","GRANT,KATHRYN L",01/01/13,03/31/13,COMMUNICATIONS DIRECTOR,"27,500.01",2013,"","","","GRANT,KATHRYN L"
,OFFICE OF THE MINORITY WHIP,2013Q1,PERSONNEL COMPENSATION,"","HUGHES,JOHN C",01/01/13,01/18/13,SENIOR POLICY ADVISOR,710.00,2013,"","","","HUGHES,JOHN C"
,OFFICE OF THE MINORITY WHIP,2013Q1,PERSONNEL COMPENSATION,"","LEUSCHEN, JAMES P",01/01/13,03/31/13,SENIOR POLICY ADVISOR,"28,749.99",2013,"","","","LEUSCHEN, JAMES P"
,OFFICE OF THE MINORITY WHIP,2013Q1,PERSONNEL COMPENSATION,"","MAHR,THOMAS",01/01/13,03/31/13,POLICY DIRECTOR,"10,299.99",2013,"","","","MAHR,THOMAS"
,OFFICE OF THE MINORITY WHIP,2013Q1,PERSONNEL COMPENSATION,"","MARTINEZ, JAVIER D",01/01/13,03/31/13,DEP DIR OF MBR SERV & OUTR ADV,"18,750.00",2013,"","","","MARTINEZ, JAVIER D"
,OFFICE OF THE MINORITY WHIP,2013Q1,PERSONNEL COMPENSATION,"","MEDLEY, ANNA E",01/01/13,03/31/13,DIR OF SCHEDLNG & SPEC EVENTS,"17,499.99",2013,"","","","MEDLEY, ANNA E"
,OFFICE OF THE MINORITY WHIP,2013Q1,PERSONNEL COMPENSATION,"","MOORE, MIKAEL",01/01/13,01/03/13,CHIEF DEPUTY WHIP,333.33,2013,"","","","MOORE, MIKAEL"
,OFFICE OF THE MINORITY WHIP,2013Q1,PERSONNEL COMPENSATION,"","MURRAY, ELIZABETH M",01/01/13,03/31/13,SENIOR POLICY ADVISOR,"7,490.01",2013,"","","","MURRAY, ELIZABETH M"
,OFFICE OF THE MINORITY WHIP,2013Q1,PERSONNEL COMPENSATION,"","OTT,AMANDA M",01/01/13,03/31/13,MIN STAFF CONS/SPECIAL PROJ (P,"9,999.99",2013,"","","","OTT,AMANDA M"
,OFFICE OF THE MINORITY WHIP,2013Q1,PERSONNEL COMPENSATION,"","REPKO,MARY F",01/01/13,03/31/13,SENIOR POLICY ADVISOR,300.00,2013,"","","","REPKO,MARY F"
,OFFICE OF THE MINORITY WHIP,2013Q1,PERSONNEL COMPENSATION,"","RODRIGUEZ,FEDERICO J",03/01/13,03/31/13,STAFF ASSISTANT,"2,083.33",2013,"","","","RODRIGUEZ,FEDERICO J"
,OFFICE OF THE MINORITY WHIP,2013Q1,PERSONNEL COMPENSATION,"","ROMICK, BRIAN",01/01/13,03/31/13,WHIP DIR AND SENIOR ADVISOR,300.00,2013,"","","","ROMICK, BRIAN"
,OFFICE OF THE MINORITY WHIP,2013Q1,PERSONNEL COMPENSATION,"","SAEZ,MARIEL S",01/01/13,03/31/13,DEPUTY PRESS SECRETARY,"9,750.00",2013,"","","","SAEZ,MARIEL S"
,OFFICE OF THE MINORITY WHIP,2013Q1,PERSONNEL COMPENSATION,"","SHOTT,DANIEL",01/01/13,03/31/13,FLOOR ASSISTANT,"12,500.01",2013,"","","","SHOTT,DANIEL"
,OFFICE OF THE MINORITY WHIP,2013Q1,PERSONNEL COMPENSATION,"","SIXKILLER, MARIAH S",01/01/13,03/31/13,SENIOR POLICY ADVISOR,"14,499.99",2013,"","","","SIXKILLER, MARIAH S"
,OFFICE OF THE MINORITY WHIP,2013Q1,PERSONNEL COMPENSATION,"","WEISSMANN, ADAM",01/01/13,03/31/13,SPEECHWRITER,"13,749.99",2013,"","","","WEISSMANN, ADAM"
,OFFICE OF THE MINORITY WHIP,2013Q1,TRAVEL,02-28,"AVILES,DANIELLE R",02/14/13,02/14/13,TAXI/PARKING/TOLLS,24.00,2013,AP,Accounts payable,00633304,"AVILES,DANIELLE R"
,OFFICE OF THE MINORITY WHIP,2013Q1,TRAVEL,02-28,"COBIA, LINDSEY G",01/04/13,01/04/13,TAXI/PARKING/TOLLS,20.00,2013,AP,Accounts payable,00633308,"COBIA, LINDSEY G"
,OFFICE OF THE MINORITY WHIP,2013Q1,TRAVEL,02-28,"GHOSH,APRATIM",01/04/13,01/04/13,TAXI/PARKING/TOLLS,12.00,2013,AP,Accounts payable,00633310,"GHOSH,APRATIM"
,OFFICE OF THE MINORITY WHIP,2013Q1,TRAVEL,02-28,"AVILES,DANIELLE R",01/21/13,01/21/13,TAXI/PARKING/TOLLS,21.00,2013,AP,Accounts payable,00633313,"AVILES,DANIELLE R"
,OFFICE OF THE MINORITY WHIP,2013Q1,TRAVEL,02-28,"GHOSH,APRATIM",01/22/13,01/22/13,TAXI/PARKING/TOLLS,9.00,2013,AP,Accounts payable,00633317,"GHOSH,APRATIM"
,OFFICE OF THE MINORITY WHIP,2013Q1,TRAVEL,02-28,"AVILES,DANIELLE R",02/12/13,02/12/13,TAXI/PARKING/TOLLS,24.00,2013,AP,Accounts payable,00633329,"AVILES,DANIELLE R"
,OFFICE OF THE MINORITY WHIP,2013Q1,SUPPLIES AND MATERIALS,02-22,CITI PCARD-NEW YORK TIMES DIGITAL,01/03/13,01/28/13,PUBLICATIONS/REFERENCE MAT'L,37.10,2013,AP,Accounts payable,00629027,CITI PCARD-NEW YORK TIMES DIGITAL
,OFFICE OF THE MINORITY WHIP,2013Q1,SUPPLIES AND MATERIALS,03-04,PANERA BREAD COMPANY,01/25/13,01/25/13,FOOD & BEVERAGE,80.76,2013,AP,Accounts payable,00634713,PANERA BREAD COMPANY
,OFFICE OF THE MINORITY WHIP,2013Q1,SUPPLIES AND MATERIALS,03-04,CAPITOLHOST,01/10/13,01/10/13,FOOD & BEVERAGE,42.30,2013,AP,Accounts payable,00634730,CAPITOLHOST
,OFFICE OF THE MINORITY WHIP,2013Q1,SUPPLIES AND MATERIALS,03-04,PANERA BREAD COMPANY,01/18/13,01/18/13,FOOD & BEVERAGE,95.75,2013,AP,Accounts payable,00634736,PANERA BREAD COMPANY
,OFFICE OF THE MINORITY WHIP,2013Q1,SUPPLIES AND MATERIALS,03-04,CAPITOLHOST,01/18/13,01/18/13,FOOD & BEVERAGE,42.30,2013,AP,Accounts payable,00634745,CAPITOLHOST
,OFFICE OF THE MINORITY WHIP,2013Q1,SUPPLIES AND MATERIALS,03-04,CAPITOLHOST,01/25/13,01/25/13,FOOD & BEVERAGE,42.30,2013,AP,Accounts payable,00634751,CAPITOLHOST
,OFFICE OF THE MINORITY WHIP,2013Q1,SUPPLIES AND MATERIALS,03-21,CITI PCARD-NEW YORK TIMES DIGITAL,01/29/13,02/28/13,PUBLICATIONS/REFERENCE MAT'L,37.10,2013,AP,Accounts payable,00650124,CITI PCARD-NEW YORK TIMES DIGITAL
,OFFICE OF THE MINORITY WHIP,2013Q1,OTHER SERVICES,01-30,CITIBANK P CARD,09/29/12,09/30/12,NON-TECHNOLOGY SERVICE CONTR,63.97,2012,AP,Accounts payable,00613106,CITIBANK P CARD
,OFFICE OF THE MINORITY WHIP,2013Q1,SUPPLIES AND MATERIALS,01-30,CITIBANK P CARD,09/29/12,09/30/12,FOOD & BEVERAGE,176.87,2012,AP,Accounts payable,00613118,CITIBANK P CARD
,OFFICE OF THE MINORITY WHIP,2013Q1,SUPPLIES AND MATERIALS,01-30,CITIBANK P CARD,09/29/12,09/30/12,PUBLICATIONS/REFERENCE MAT'L,236.10,2012,AP,Accounts payable,00613127,CITIBANK P CARD
,OFFICE OF THE MINORITY WHIP,2013Q1,SUPPLIES AND MATERIALS,02-22,CITI PCARD-NEW YORK TIMES DIGITAL,12/29/12,01/02/13,PUBLICATIONS/REFERENCE MAT'L,37.10,2012,AP,Accounts payable,00629027,CITI PCARD-NEW YORK TIMES DIGITAL
,DEMOCRATIC CAUCUS,2013Q1,PERSONNEL COMPENSATION,"","ALVI,HINA R",02/01/13,03/31/13,SHARED EMPLOYEE,"4,583.33",2013,"","","","ALVI,HINA R"
,DEMOCRATIC CAUCUS,2013Q1,PERSONNEL COMPENSATION,"","ATTAPIT,SIRAT",03/01/13,03/31/13,SENIOR POLICY COUNSEL,"5,083.33",2013,"","","","ATTAPIT,SIRAT"
,DEMOCRATIC CAUCUS,2013Q1,PERSONNEL COMPENSATION,"","AVERY,SAMUEL R",01/03/13,01/30/13,PRESS ASSISTANT,"2,411.11",2013,"","","","AVERY,SAMUEL R"
,DEMOCRATIC CAUCUS,2013Q1,PERSONNEL COMPENSATION,"","AVERY,SAMUEL R",02/01/13,03/31/13,PRESS ASSISTANT,"5,166.66",2013,"","","","AVERY,SAMUEL R"
,DEMOCRATIC CAUCUS,2013Q1,PERSONNEL COMPENSATION,"","AVERY,SAMUEL R",01/01/13,02/28/13,PRESS ASSISTANT (OVERTIME),866.28,2013,"","","","AVERY,SAMUEL R"
,DEMOCRATIC CAUCUS,2013Q1,PERSONNEL COMPENSATION,"","BACKEMEYER,COURTNEY G",01/03/13,03/31/13,COMMUNICTNS DIR TO VICE CHRMN,"6,738.90",2013,"","","","BACKEMEYER,COURTNEY G"
,DEMOCRATIC CAUCUS,2013Q1,PERSONNEL COMPENSATION,"","CASEY, KEVIN",01/03/13,03/31/13,POLICY DIRECTOR / VICE CHAIR,"17,888.90",2013,"","","","CASEY, KEVIN"
,DEMOCRATIC CAUCUS,2013Q1,PERSONNEL COMPENSATION,"","DAGADAKIS,STAMATIOS",01/03/13,01/30/13,DEPUTY EXEC DIRECTOR,"7,000.00",2013,"","","","DAGADAKIS,STAMATIOS"
,DEMOCRATIC CAUCUS,2013Q1,PERSONNEL COMPENSATION,"","DAGADAKIS,STAMATIOS",02/01/13,03/31/13,DEPUTY EXEC DIRECTOR,"15,000.00",2013,"","","","DAGADAKIS,STAMATIOS"
,DEMOCRATIC CAUCUS,2013Q1,PERSONNEL COMPENSATION,"","DAVALOS,LETICIA M",01/10/13,03/31/13,STAFF ASSISTANT,"5,850.01",2013,"","","","DAVALOS,LETICIA M"
,DEMOCRATIC CAUCUS,2013Q1,PERSONNEL COMPENSATION,"","DAVALOS,LETICIA M",01/10/13,02/28/13,STAFF ASSISTANT (OVERTIME),595.31,2013,"","","","DAVALOS,LETICIA M"
,DEMOCRATIC CAUCUS,2013Q1,PERSONNEL COMPENSATION,"","DELANEY, ERIC L",01/01/13,03/31/13,SR MBR OUTREACH ASST,"12,500.01",2013,"","","","DELANEY, ERIC L"
,DEMOCRATIC CAUCUS,2013Q1,PERSONNEL COMPENSATION,"","DELANEY, ERIC L",01/01/13,01/31/13,SR MBR OUTREACH ASST (OTHER COMPENSATION),"2,057.00",2013,"","","","DELANEY, ERIC L"
,DEMOCRATIC CAUCUS,2013Q1,PERSONNEL COMPENSATION,"","DIXON, DEBRA A",01/03/13,02/28/13,CHIEF OF STAFF,"1,933.33",2013,"","","","DIXON, DEBRA A"
,DEMOCRATIC CAUCUS,2013Q1,PERSONNEL COMPENSATION,"","GLEESON,JAMES M",01/03/13,03/31/13,PRESS SEC FOR THE VICE CHAIR,"17,538.90",2013,"","","","GLEESON,JAMES M"
,DEMOCRATIC CAUCUS,2013Q1,PERSONNEL COMPENSATION,"","HERRERA,DANIEL",01/01/13,03/31/13,PRESS SECRETARY,"11,250.00",2013,"","","","HERRERA,DANIEL"
,DEMOCRATIC CAUCUS,2013Q1,PERSONNEL COMPENSATION,"","HERRERA,DANIEL",01/01/13,01/31/13,PRESS SECRETARY (OTHER COMPENSATION),"1,446.00",2013,"","","","HERRERA,DANIEL"
,DEMOCRATIC CAUCUS,2013Q1,PERSONNEL COMPENSATION,"","JAWORSKI, KIMBERLY H",01/03/13,02/15/13,MEMBER SERVICES DIRECTOR,"7,047.22",2013,"","","","JAWORSKI, KIMBERLY H"
,DEMOCRATIC CAUCUS,2013Q1,PERSONNEL COMPENSATION,"","JONES II,MERVYN L",01/23/13,03/31/13,"SPECIAL ASSISTANT,VICE CHAIR","8,400.00",2013,"","","","JONES II,MERVYN L"
,DEMOCRATIC CAUCUS,2013Q1,PERSONNEL COMPENSATION,"","MCCLUSKIE,SEAN E",01/01/13,03/31/13,STAFF DIR FOR THE VICE CHAIR,"17,250.00",2013,"","","","MCCLUSKIE,SEAN E"
,DEMOCRATIC CAUCUS,2013Q1,PERSONNEL COMPENSATION,"","MCMAHON,KYLE A",01/03/13,01/30/13,PRESS ASSISTANT,"2,411.11",2013,"","","","MCMAHON,KYLE A"
,DEMOCRATIC CAUCUS,2013Q1,PERSONNEL COMPENSATION,"","MCMAHON,KYLE A",02/01/13,02/15/13,PRESS ASSISTANT,"1,291.67",2013,"","","","MCMAHON,KYLE A"
,DEMOCRATIC CAUCUS,2013Q1,PERSONNEL COMPENSATION,"","PEREZ-SANCHEZ,NOEL",01/01/13,03/31/13,MEMBER OUTREACH ASSISTANT,"9,999.99",2013,"","","","PEREZ-SANCHEZ,NOEL"
,DEMOCRATIC CAUCUS,2013Q1,PERSONNEL COMPENSATION,"","PEREZ-SANCHEZ,NOEL",01/01/13,01/31/13,MEMBER OUTREACH ASSISTANT (OTHER COMPENSATION),"2,061.00",2013,"","","","PEREZ-SANCHEZ,NOEL"
,DEMOCRATIC CAUCUS,2013Q1,PERSONNEL COMPENSATION,"","PERONACE,ANTONIO",01/03/13,01/30/13,CREATIVE DIRECTOR,"6,222.22",2013,"","","","PERONACE,ANTONIO"
,DEMOCRATIC CAUCUS,2013Q1,PERSONNEL COMPENSATION,"","PERONACE,ANTONIO",02/01/13,03/31/13,CREATIVE DIRECTOR,"13,333.34",2013,"","","","PERONACE,ANTONIO"
,DEMOCRATIC CAUCUS,2013Q1,PERSONNEL COMPENSATION,"","RODRIGUEZ-CIAMPOLI,FABIOLA",01/25/13,03/31/13,EXECUTIVE DIRECTOR,"24,750.00",2013,"","","","RODRIGUEZ-CIAMPOLI,FABIOLA"
,DEMOCRATIC CAUCUS,2013Q1,PERSONNEL COMPENSATION,"","SACHSE,ANDREW M",01/15/13,03/31/13,STAFF ASSISTANT,"6,333.33",2013,"","","","SACHSE,ANDREW M"
,DEMOCRATIC CAUCUS,2013Q1,PERSONNEL COMPENSATION,"","SKILES, KATHLEE",01/01/13,03/31/13,PRESS SEC& DIR OF ONLINE STRAT,"13,749.99",2013,"","","","SKILES, KATHLEE"
,DEMOCRATIC CAUCUS,2013Q1,PERSONNEL COMPENSATION,"","SKILES, KATHLEE",01/01/13,01/31/13,PRESS SEC& DIR OF ONLINE STRAT (OTHER COMPENSATION),"1,446.00",2013,"","","","SKILES, KATHLEE"
,DEMOCRATIC CAUCUS,2013Q1,PERSONNEL COMPENSATION,"","VENEGAS,STEPHANIE A",01/03/13,03/31/13,DEPUTY DIR OF OPERATIONS,"13,444.44",2013,"","","","VENEGAS,STEPHANIE A"
,DEMOCRATIC CAUCUS,2013Q1,PERSONNEL COMPENSATION,"","WINKLER, KATHERINE E",01/03/13,03/31/13,SHARED EMPLOYEE,"17,888.90",2013,"","","","WINKLER, KATHERINE E"
,DEMOCRATIC CAUCUS,2013Q1,TRAVEL,03-12,"DELANEY, ERIC",02/05/13,02/05/13,GASOLINE,50.00,2013,AP,Accounts payable,00639538,"DELANEY, ERIC"
,DEMOCRATIC CAUCUS,2013Q1,PRINTING AND REPRODUCTION,03-21,CITI PCARD-CHESAPEAKE GRAPHICS,01/29/13,02/28/13,PRINTING & REPRODUCTION,"1,304.36",2013,AP,Accounts payable,00650124,CITI PCARD-CHESAPEAKE GRAPHICS
,DEMOCRATIC CAUCUS,2013Q1,PRINTING AND REPRODUCTION,03-21,CITI PCARD-LAMINATION SERVICES,01/29/13,02/28/13,PRINTING & REPRODUCTION,219.88,2013,AP,Accounts payable,00650124,CITI PCARD-LAMINATION SERVICES
,DEMOCRATIC CAUCUS,2013Q1,PRINTING AND REPRODUCTION,03-25,"",03/01/13,03/31/13,PHOTOGRAPHIC (TRANSFER),81.50,2013,GL,General ledger,PIX0027668,""
,DEMOCRATIC CAUCUS,2013Q1,OTHER SERVICES,02-22,CITI PCARD-CAPITOL VALET,01/03/13,01/28/13,LAUNDRY SERVICES,300.00,2013,AP,Accounts payable,00629027,CITI PCARD-CAPITOL VALET
,DEMOCRATIC CAUCUS,2013Q1,SUPPLIES AND MATERIALS,02-22,CITI PCARD-DREAMZ CATERING,01/03/13,01/28/13,FOOD & BEVERAGE,"1,056.50",2013,AP,Accounts payable,00629027,CITI PCARD-DREAMZ CATERING
,DEMOCRATIC CAUCUS,2013Q1,SUPPLIES AND MATERIALS,02-22,CITI PCARD-HARRIS TEETER,01/03/13,01/28/13,FOOD & BEVERAGE,239.44,2013,AP,Accounts payable,00629027,CITI PCARD-HARRIS TEETER
,DEMOCRATIC CAUCUS,2013Q1,SUPPLIES AND MATERIALS,03-12,"PEREZ-SANCHEZ,NOEL",02/05/13,02/05/13,FOOD & BEVERAGE,50.00,2013,AP,Accounts payable,00639536,"PEREZ-SANCHEZ,NOEL"
,DEMOCRATIC CAUCUS,2013Q1,SUPPLIES AND MATERIALS,03-21,CITI PCARD-AP MANUAL DE ESTILO,01/29/13,02/28/13,PUBLICATIONS/REFERENCE MAT'L,17.00,2013,AP,Accounts payable,00650124,CITI PCARD-AP MANUAL DE ESTILO
,DEMOCRATIC CAUCUS,2013Q1,SUPPLIES AND MATERIALS,03-21,CITI PCARD-DOMINO'S,01/29/13,02/28/13,FOOD & BEVERAGE,143.00,2013,AP,Accounts payable,00650124,CITI PCARD-DOMINO'S
,DEMOCRATIC CAUCUS,2013Q1,SUPPLIES AND MATERIALS,03-21,CITI PCARD-DREAMZ CATERING,01/29/13,02/28/13,FOOD & BEVERAGE,"1,052.00",2013,AP,Accounts payable,00650124,CITI PCARD-DREAMZ CATERING
,DEMOCRATIC CAUCUS,2013Q1,SUPPLIES AND MATERIALS,03-21,CITI PCARD-FIREHOOK,01/29/13,02/28/13,FOOD & BEVERAGE,"1,915.00",2013,AP,Accounts payable,00650124,CITI PCARD-FIREHOOK
,DEMOCRATIC CAUCUS,2013Q1,SUPPLIES AND MATERIALS,03-21,CITI PCARD-FIREHOOK BAKERY,01/29/13,02/28/13,FOOD & BEVERAGE,288.90,2013,AP,Accounts payable,00650124,CITI PCARD-FIREHOOK BAKERY
,DEMOCRATIC CAUCUS,2013Q1,SUPPLIES AND MATERIALS,03-21,CITI PCARD-HARRIS TEETER,01/29/13,02/28/13,FOOD & BEVERAGE,630.08,2013,AP,Accounts payable,00650124,CITI PCARD-HARRIS TEETER
,DEMOCRATIC CAUCUS,2013Q1,SUPPLIES AND MATERIALS,03-21,CITI PCARD-WHOLEFDS PST,01/29/13,02/28/13,FOOD & BEVERAGE,21.29,2013,AP,Accounts payable,00650124,CITI PCARD-WHOLEFDS PST
,DEMOCRATIC CAUCUS,2013Q1,SUPPLIES AND MATERIALS,03-22,CQ ROLL CALL,01/01/13,12/31/13,PUBLICATIONS/REFERENCE MAT'L,"9,872.00",2013,AP,Accounts payable,00639534,CQ ROLL CALL
,DEMOCRATIC CAUCUS,2013Q1,OTHER SERVICES,01-04,BOX INC,08/27/12,09/26/12,TECHNOLOGY SERVICE CONTRACTS,100.00,2012,AP,Accounts payable,00593271,BOX INC
,DEMOCRATIC CAUCUS,2013Q1,OTHER SERVICES,01-04,BOX INC,09/27/12,10/26/12,TECHNOLOGY SERVICE CONTRACTS,100.00,2012,AP,Accounts payable,00593275,BOX INC
,DEMOCRATIC CAUCUS,2013Q1,SUPPLIES AND MATERIALS,01-25,"DAGADAKIS,STAMATIOS",01/08/12,07/08/12,PUBLICATIONS/REFERENCE MAT'L,693.00,2012,AP,Accounts payable,00608375,"DAGADAKIS,STAMATIOS"
,DEMOCRATIC CAUCUS,2013Q1,SUPPLIES AND MATERIALS,01-25,"ESPARZA DIGGS, IRMA Y",12/30/12,01/01/13,FOOD & BEVERAGE,810.22,2012,AP,Accounts payable,00608381,"ESPARZA DIGGS, IRMA Y"
,DEMOCRATIC CAUCUS,2013Q1,SUPPLIES AND MATERIALS,01-25,"BRACHMAN, ELLIS A",01/01/13,01/01/13,FOOD & BEVERAGE,186.56,2012,AP,Accounts payable,00608384,"BRACHMAN, ELLIS A"
,DEMOCRATIC CAUCUS,2013Q1,SUPPLIES AND MATERIALS,03-14,CHANTILLY DONUTS,09/21/12,09/21/12,FOOD & BEVERAGE,37.15,2012,AP,Accounts payable,00641918,CHANTILLY DONUTS
,REPUBLICAN CONFERENCE,2013Q1,PERSONNEL COMPENSATION,"","BEDARD,EDWARD A",01/03/13,03/31/13,STAFF ASSISTANT,"8,555.56",2013,"","","","BEDARD,EDWARD A"
,REPUBLICAN CONFERENCE,2013Q1,PERSONNEL COMPENSATION,"","BETZ, KIMBERLY S",01/01/13,01/31/13,POLICY DIRECTOR,-833.33,2013,"","","","BETZ, KIMBERLY S"
,REPUBLICAN CONFERENCE,2013Q1,PERSONNEL COMPENSATION,"","BETZ, KIMBERLY S",01/01/13,03/31/13,POLICY DIRECTOR,"37,500.00",2013,"","","","BETZ, KIMBERLY S"
,REPUBLICAN CONFERENCE,2013Q1,PERSONNEL COMPENSATION,"","CAMERON,TIMOTHY M",01/22/13,03/31/13,DIRECTOR OF DIGITAL MEDIA,"17,216.66",2013,"","","","CAMERON,TIMOTHY M"
,REPUBLICAN CONFERENCE,2013Q1,PERSONNEL COMPENSATION,"","COLLIGAN,DYLAN H",01/01/13,01/31/13,STAFF ASSISTANT,-183.33,2013,"","","","COLLIGAN,DYLAN H"
,REPUBLICAN CONFERENCE,2013Q1,PERSONNEL COMPENSATION,"","COLLIGAN,DYLAN H",01/01/13,01/31/13,STAFF ASSISTANT,"2,750.00",2013,"","","","COLLIGAN,DYLAN H"
,REPUBLICAN CONFERENCE,2013Q1,PERSONNEL COMPENSATION,"","COLLIGAN,DYLAN H",02/01/13,03/31/13,DEPUTY PRESS SECRETARY,"5,833.34",2013,"","","","COLLIGAN,DYLAN H"
,REPUBLICAN CONFERENCE,2013Q1,PERSONNEL COMPENSATION,"","COLLINS,LISA J",01/03/13,01/13/13,POLICY ADVISOR,"-1,011.11",2013,"","","","COLLINS,LISA J"
,REPUBLICAN CONFERENCE,2013Q1,PERSONNEL COMPENSATION,"","COLLINS,LISA J",01/05/13,01/13/13,POLICY ADVISOR,"2,022.22",2013,"","","","COLLINS,LISA J"
,REPUBLICAN CONFERENCE,2013Q1,PERSONNEL COMPENSATION,"","CONNELL, MARJORIE F",01/01/13,01/31/13,DIRECTOR OF OPERATIONS,-444.44,2013,"","","","CONNELL, MARJORIE F"
,REPUBLICAN CONFERENCE,2013Q1,PERSONNEL COMPENSATION,"","CONNELL, MARJORIE F",01/01/13,03/31/13,DIRECTOR OF OPERATIONS,"20,000.01",2013,"","","","CONNELL, MARJORIE F"
,REPUBLICAN CONFERENCE,2013Q1,PERSONNEL COMPENSATION,"","DEUTSCH,JEREMY",01/03/13,03/31/13,CHIEF OF STAFF,"21,111.11",2013,"","","","DEUTSCH,JEREMY"
,REPUBLICAN CONFERENCE,2013Q1,PERSONNEL COMPENSATION,"","GAITAN,WADI",02/01/13,03/31/13,DEP PRESS SECY HISPANIC MEDIA,"8,000.00",2013,"","","","GAITAN,WADI"
,REPUBLICAN CONFERENCE,2013Q1,PERSONNEL COMPENSATION,"","GRAVES,JOEL D",01/08/13,03/31/13,STAFF ASSISTANT,"7,377.78",2013,"","","","GRAVES,JOEL D"
,REPUBLICAN CONFERENCE,2013Q1,PERSONNEL COMPENSATION,"","HILER,JONATHAN D",01/01/13,01/13/13,POLICY ADVISOR,-294.44,2013,"","","","HILER,JONATHAN D"
,REPUBLICAN CONFERENCE,2013Q1,PERSONNEL COMPENSATION,"","HILER,JONATHAN D",01/01/13,01/13/13,POLICY ADVISOR,"1,913.89",2013,"","","","HILER,JONATHAN D"
,REPUBLICAN CONFERENCE,2013Q1,PERSONNEL COMPENSATION,"","HODSON,NATHAN M",01/03/13,03/31/13,DIRECTOR OF COMMUNICATIONS,"28,111.10",2013,"","","","HODSON,NATHAN M"
,REPUBLICAN CONFERENCE,2013Q1,PERSONNEL COMPENSATION,"","KLINGLER,HANS J",01/01/13,01/20/13,DEPUTY CHIEF OF STAFF,-804.86,2013,"","","","KLINGLER,HANS J"
,REPUBLICAN CONFERENCE,2013Q1,PERSONNEL COMPENSATION,"","KLINGLER,HANS J",01/01/13,01/20/13,DEPUTY CHIEF OF STAFF,"8,048.61",2013,"","","","KLINGLER,HANS J"
,REPUBLICAN CONFERENCE,2013Q1,PERSONNEL COMPENSATION,"","LITMAN,RIVA",01/03/13,03/31/13,PRESS SECRETARY,"16,377.77",2013,"","","","LITMAN,RIVA"
,REPUBLICAN CONFERENCE,2013Q1,PERSONNEL COMPENSATION,"","MAKIN, SARAH E",01/01/13,01/06/13,"SR POL ADV, DIR OF COALITIONS",-310.19,2013,"","","","MAKIN, SARAH E"
,REPUBLICAN CONFERENCE,2013Q1,PERSONNEL COMPENSATION,"","MAKIN, SARAH E",01/01/13,01/06/13,"SR POL ADV, DIR OF COALITIONS",930.56,2013,"","","","MAKIN, SARAH E"
,REPUBLICAN CONFERENCE,2013Q1,PERSONNEL COMPENSATION,"","MURPHY,SHAUGHNESSY P",01/03/13,03/31/13,SENIOR ADVISOR,"29,223.33",2013,"","","","MURPHY,SHAUGHNESSY P"
,REPUBLICAN CONFERENCE,2013Q1,PERSONNEL COMPENSATION,"","MUZIN,NICOLAS D",01/03/13,03/31/13,DIRECTOR OF OUTREACH,"33,000.00",2013,"","","","MUZIN,NICOLAS D"
,REPUBLICAN CONFERENCE,2013Q1,PERSONNEL COMPENSATION,"","PATRU, KATHRYN M",01/03/13,03/31/13,DIR OF MEMBER SERVICES,"36,666.67",2013,"","","","PATRU, KATHRYN M"
,REPUBLICAN CONFERENCE,2013Q1,PERSONNEL COMPENSATION,"","PINEGAR,PHILLIP",01/03/13,03/31/13,STAFF ASSISTANT,"8,555.56",2013,"","","","PINEGAR,PHILLIP"
,REPUBLICAN CONFERENCE,2013Q1,PERSONNEL COMPENSATION,"","QUALTERE,THOMAS A",01/01/13,01/31/13,SPEECHWRITER,-233.33,2013,"","","","QUALTERE,THOMAS A"
,REPUBLICAN CONFERENCE,2013Q1,PERSONNEL COMPENSATION,"","QUALTERE,THOMAS A",01/01/13,01/31/13,SPEECHWRITER,"3,500.00",2013,"","","","QUALTERE,THOMAS A"
,REPUBLICAN CONFERENCE,2013Q1,PERSONNEL COMPENSATION,"","RABBITT,CAROLINE",01/01/13,01/25/13,DEPUTY PRESS SECRETARY,"2,916.67",2013,"","","","RABBITT,CAROLINE"
,REPUBLICAN CONFERENCE,2013Q1,PERSONNEL COMPENSATION,"","RABBITT,CAROLINE",01/01/13,01/27/13,DEPUTY PRESS SECRETARY,-216.05,2013,"","","","RABBITT,CAROLINE"
,REPUBLICAN CONFERENCE,2013Q1,PERSONNEL COMPENSATION,"","SHORE,STANLEY",01/01/13,01/31/13,SENIOR ADVISOR,-833.33,2013,"","","","SHORE,STANLEY"
,REPUBLICAN CONFERENCE,2013Q1,PERSONNEL COMPENSATION,"","SHORE,STANLEY",01/01/13,03/31/13,SENIOR ADVISOR,"26,500.00",2013,"","","","SHORE,STANLEY"
,REPUBLICAN CONFERENCE,2013Q1,PERSONNEL COMPENSATION,"","STEVENS,PAMELA R",02/08/13,03/31/13,DIRECTOR OF MEDIA AFFAIRS,"18,402.78",2013,"","","","STEVENS,PAMELA R"
,REPUBLICAN CONFERENCE,2013Q1,PERSONNEL COMPENSATION,"","WHITTMAN,JOHN L",02/01/13,03/31/13,RAPID RESPONSE COORDINATOR,"7,500.00",2013,"","","","WHITTMAN,JOHN L"
,REPUBLICAN CONFERENCE,2013Q1,TRAVEL,02-14,DORNETTE MARJORIE F,02/01/13,02/01/13,TAXI/PARKING/TOLLS,11.00,2013,AP,Accounts payable,00621224,DORNETTE MARJORIE F
,REPUBLICAN CONFERENCE,2013Q1,TRAVEL,03-21,DORNETTE MARJORIE F,02/01/13,02/01/13,TAXI/PARKING/TOLLS,10.00,2013,AP,Accounts payable,00650502,DORNETTE MARJORIE F
,REPUBLICAN CONFERENCE,2013Q1,"RENT, COMMUNICATION, UTILITIES",03-12,CRAFT MEDIA DIGITAL,02/19/13,02/19/13,RECORDING (OUTSIDE),"4,000.00",2013,AP,Accounts payable,00639186,CRAFT MEDIA DIGITAL
,REPUBLICAN CONFERENCE,2013Q1,PRINTING AND REPRODUCTION,01-23,ACCURATE WORD LLC,01/08/13,01/08/13,PRINTING & REPRODUCTION,219.80,2013,AP,Accounts payable,00602054,ACCURATE WORD LLC
,REPUBLICAN CONFERENCE,2013Q1,PRINTING AND REPRODUCTION,01-23,ACCURATE WORD LLC,01/09/13,01/09/13,PRINTING & REPRODUCTION,274.75,2013,AP,Accounts payable,00602059,ACCURATE WORD LLC
,REPUBLICAN CONFERENCE,2013Q1,OTHER SERVICES,02-04,DATAGRAPHICS,01/25/13,01/25/13,NON-TECHNOLOGY SERVICE CONTR,"6,500.00",2013,AP,Accounts payable,00615103,DATAGRAPHICS
,REPUBLICAN CONFERENCE,2013Q1,OTHER SERVICES,02-14,O'DONNELL & ASSOC LTD,01/01/13,03/31/13,TRAINING,"7,500.00",2013,AP,Accounts payable,00621223,O'DONNELL & ASSOC LTD
,REPUBLICAN CONFERENCE,2013Q1,OTHER SERVICES,03-12,DATAGRAPHICS,03/01/13,03/01/13,"WEB DEV HST,EMAIL & RLTD SERV","15,000.00",2013,AP,Accounts payable,00639187,DATAGRAPHICS
,REPUBLICAN CONFERENCE,2013Q1,OTHER SERVICES,03-12,CAPITOL CONTENDER,02/04/13,02/04/13,CONSULTANT CONTRACT SERVICE,"5,000.00",2013,AP,Accounts payable,00639229,CAPITOL CONTENDER
,REPUBLICAN CONFERENCE,2013Q1,OTHER SERVICES,03-12,CAPITOL CONTENDER,02/04/13,02/04/13,"WEB DEV HST,EMAIL & RLTD SERV","4,975.00",2013,AP,Accounts payable,00639230,CAPITOL CONTENDER
,REPUBLICAN CONFERENCE,2013Q1,OTHER SERVICES,03-21,CITI PCARD-ECSUITE.COM,01/29/13,02/28/13,NON-TECHNOLOGY SERVICE CONTR,5.95,2013,AP,Accounts payable,00650124,CITI PCARD-ECSUITE.COM
,REPUBLICAN CONFERENCE,2013Q1,SUPPLIES AND MATERIALS,01-23,THE WALL STREET JOURNAL,01/26/13,01/15/14,PUBLICATIONS/REFERENCE MAT'L,"1,047.00",2013,AP,Accounts payable,00602853,THE WALL STREET JOURNAL
,REPUBLICAN CONFERENCE,2013Q1,SUPPLIES AND MATERIALS,01-28,DORNETTE MARJORIE F,01/11/13,01/11/13,FOOD & BEVERAGE,324.32,2013,AP,Accounts payable,00611415,DORNETTE MARJORIE F
,REPUBLICAN CONFERENCE,2013Q1,SUPPLIES AND MATERIALS,01-30,DORNETTE MARJORIE F,01/23/13,01/23/13,FOOD & BEVERAGE,53.70,2013,AP,Accounts payable,00612752,DORNETTE MARJORIE F
,REPUBLICAN CONFERENCE,2013Q1,SUPPLIES AND MATERIALS,01-30,THE WALL STREET JOURNAL,01/26/13,01/25/14,PUBLICATIONS/REFERENCE MAT'L,"1,047.00",2013,AP,Accounts payable,00612753,THE WALL STREET JOURNAL
,REPUBLICAN CONFERENCE,2013Q1,SUPPLIES AND MATERIALS,02-04,DORNETTE MARJORIE F,01/31/13,01/31/13,FOOD & BEVERAGE,775.20,2013,AP,Accounts payable,00615100,DORNETTE MARJORIE F
,REPUBLICAN CONFERENCE,2013Q1,SUPPLIES AND MATERIALS,02-04,DORNETTE MARJORIE F,01/29/13,01/29/13,FOOD & BEVERAGE,444.67,2013,AP,Accounts payable,00615101,DORNETTE MARJORIE F
,REPUBLICAN CONFERENCE,2013Q1,SUPPLIES AND MATERIALS,02-07,"HODSON, NATHAN",01/25/13,01/25/13,FOOD & BEVERAGE,297.33,2013,AP,Accounts payable,00617291,"HODSON, NATHAN"
,REPUBLICAN CONFERENCE,2013Q1,SUPPLIES AND MATERIALS,02-14,"HODSON, NATHAN",02/08/13,02/08/13,FOOD & BEVERAGE,393.23,2013,AP,Accounts payable,00621221,"HODSON, NATHAN"
,REPUBLICAN CONFERENCE,2013Q1,SUPPLIES AND MATERIALS,02-14,DORNETTE MARJORIE F,02/06/13,02/06/13,FOOD & BEVERAGE,64.58,2013,AP,Accounts payable,00621225,DORNETTE MARJORIE F
,REPUBLICAN CONFERENCE,2013Q1,SUPPLIES AND MATERIALS,02-26,DORNETTE MARJORIE F,02/14/13,02/14/13,FOOD & BEVERAGE,237.56,2013,AP,Accounts payable,00631114,DORNETTE MARJORIE F
,REPUBLICAN CONFERENCE,2013Q1,SUPPLIES AND MATERIALS,02-26,"HODSON, NATHAN",02/15/13,02/15/13,FOOD & BEVERAGE,364.80,2013,AP,Accounts payable,00631123,"HODSON, NATHAN"
,REPUBLICAN CONFERENCE,2013Q1,SUPPLIES AND MATERIALS,02-26,CAPITOLHOST,01/04/13,01/04/13,FOOD & BEVERAGE,740.40,2013,AP,Accounts payable,00631133,CAPITOLHOST
,REPUBLICAN CONFERENCE,2013Q1,SUPPLIES AND MATERIALS,02-26,CAPITOLHOST,01/15/13,01/15/13,FOOD & BEVERAGE,740.40,2013,AP,Accounts payable,00631136,CAPITOLHOST
,REPUBLICAN CONFERENCE,2013Q1,SUPPLIES AND MATERIALS,02-26,CAPITOLHOST,01/22/13,01/22/13,FOOD & BEVERAGE,420.00,2013,AP,Accounts payable,00631141,CAPITOLHOST
,REPUBLICAN CONFERENCE,2013Q1,SUPPLIES AND MATERIALS,02-27,DORNETTE MARJORIE F,02/12/13,02/12/13,FOOD & BEVERAGE,309.71,2013,AP,Accounts payable,00631115,DORNETTE MARJORIE F
,REPUBLICAN CONFERENCE,2013Q1,SUPPLIES AND MATERIALS,02-27,DORNETTE MARJORIE F,02/12/13,02/12/13,FOOD & BEVERAGE,226.81,2013,AP,Accounts payable,00631119,DORNETTE MARJORIE F
,REPUBLICAN CONFERENCE,2013Q1,SUPPLIES AND MATERIALS,03-12,TV EYES INC,03/01/13,02/28/14,PUBLICATIONS/REFERENCE MAT'L,"3,600.00",2013,AP,Accounts payable,00639189,TV EYES INC
,REPUBLICAN CONFERENCE,2013Q1,SUPPLIES AND MATERIALS,03-12,"HODSON, NATHAN",03/01/13,03/01/13,FOOD & BEVERAGE,252.55,2013,AP,Accounts payable,00639190,"HODSON, NATHAN"
,REPUBLICAN CONFERENCE,2013Q1,SUPPLIES AND MATERIALS,03-12,CAPITOLHOST,02/15/13,02/15/13,FOOD & BEVERAGE,315.00,2013,AP,Accounts payable,00639192,CAPITOLHOST
,REPUBLICAN CONFERENCE,2013Q1,SUPPLIES AND MATERIALS,03-12,DORNETTE MARJORIE F,03/05/13,03/05/13,FOOD & BEVERAGE,196.73,2013,AP,Accounts payable,00639194,DORNETTE MARJORIE F
,REPUBLICAN CONFERENCE,2013Q1,SUPPLIES AND MATERIALS,03-12,DORNETTE MARJORIE F,02/21/13,02/21/13,FOOD & BEVERAGE,283.37,2013,AP,Accounts payable,00639196,DORNETTE MARJORIE F
,REPUBLICAN CONFERENCE,2013Q1,SUPPLIES AND MATERIALS,03-12,DORNETTE MARJORIE F,02/27/13,02/27/13,FOOD & BEVERAGE,10.60,2013,AP,Accounts payable,00639200,DORNETTE MARJORIE F
,REPUBLICAN CONFERENCE,2013Q1,SUPPLIES AND MATERIALS,03-12,CAPITOLHOST,02/05/13,02/05/13,FOOD & BEVERAGE,740.40,2013,AP,Accounts payable,00639213,CAPITOLHOST
,REPUBLICAN CONFERENCE,2013Q1,SUPPLIES AND MATERIALS,03-12,CAPITOLHOST,02/14/13,02/14/13,FOOD & BEVERAGE,315.00,2013,AP,Accounts payable,00639226,CAPITOLHOST
,REPUBLICAN CONFERENCE,2013Q1,SUPPLIES AND MATERIALS,03-12,DORNETTE MARJORIE F,02/22/13,02/22/13,FOOD & BEVERAGE,297.33,2013,AP,Accounts payable,00640478,DORNETTE MARJORIE F
,REPUBLICAN CONFERENCE,2013Q1,SUPPLIES AND MATERIALS,03-13,DORNETTE MARJORIE F,03/08/13,03/08/13,FOOD & BEVERAGE,307.34,2013,AP,Accounts payable,00641123,DORNETTE MARJORIE F
,REPUBLICAN CONFERENCE,2013Q1,SUPPLIES AND MATERIALS,03-14,"PINEGAR, PHILLIP",03/06/13,03/06/13,FOOD & BEVERAGE,27.72,2013,AP,Accounts payable,00641128,"PINEGAR, PHILLIP"
,REPUBLICAN CONFERENCE,2013Q1,SUPPLIES AND MATERIALS,03-14,"MURPHY, SHAUGHNESSY",03/06/13,03/06/13,FOOD & BEVERAGE,174.90,2013,AP,Accounts payable,00641134,"MURPHY, SHAUGHNESSY"
,REPUBLICAN CONFERENCE,2013Q1,SUPPLIES AND MATERIALS,03-14,CAPITOLHOST,02/13/13,02/13/13,FOOD & BEVERAGE,315.00,2013,AP,Accounts payable,00641138,CAPITOLHOST
,REPUBLICAN CONFERENCE,2013Q1,SUPPLIES AND MATERIALS,03-21,"HODSON, NATHAN",03/15/13,03/15/13,FOOD & BEVERAGE,476.50,2013,AP,Accounts payable,00650510,"HODSON, NATHAN"
,REPUBLICAN CONFERENCE,2013Q1,SUPPLIES AND MATERIALS,03-21,DORNETTE MARJORIE F,03/14/13,03/14/13,FOOD & BEVERAGE,74.05,2013,AP,Accounts payable,00650515,DORNETTE MARJORIE F
,REPUBLICAN CONFERENCE,2013Q1,SUPPLIES AND MATERIALS,03-21,"CARPENTER, MARY F",03/13/13,03/13/13,FOOD & BEVERAGE,51.59,2013,AP,Accounts payable,00650518,"CARPENTER, MARY F"
,REPUBLICAN CONFERENCE,2013Q1,SUPPLIES AND MATERIALS,03-21,CAPITOLHOST,02/28/13,02/28/13,FOOD & BEVERAGE,315.00,2013,AP,Accounts payable,00650520,CAPITOLHOST
,REPUBLICAN CONFERENCE,2013Q1,SUPPLIES AND MATERIALS,03-21,"CARPENTER, MARY F",02/27/13,02/27/13,FOOD & BEVERAGE,72.20,2013,AP,Accounts payable,00650525,"CARPENTER, MARY F"
,REPUBLICAN CONFERENCE,2013Q1,SUPPLIES AND MATERIALS,03-21,DORNETTE MARJORIE F,03/14/13,03/14/13,FOOD & BEVERAGE,9.70,2013,AP,Accounts payable,00650529,DORNETTE MARJORIE F
,REPUBLICAN CONFERENCE,2013Q1,SUPPLIES AND MATERIALS,03-27,DORNETTE MARJORIE F,03/21/13,03/21/13,FOOD & BEVERAGE,4.40,2013,AP,Accounts payable,00654012,DORNETTE MARJORIE F
,REPUBLICAN CONFERENCE,2013Q1,SUPPLIES AND MATERIALS,03-27,"HODSON, NATHAN",03/22/13,03/22/13,FOOD & BEVERAGE,271.50,2013,AP,Accounts payable,00654023,"HODSON, NATHAN"
,REPUBLICAN CONFERENCE,2013Q1,"RENT, COMMUNICATION, UTILITIES",01-30,TALKING HEAD PRODUCTIONS INC,08/30/12,08/30/12,RECORDING (OUTSIDE),750.00,2012,AP,Accounts payable,00612808,TALKING HEAD PRODUCTIONS INC
,REPUBLICAN CONFERENCE,2013Q1,SUPPLIES AND MATERIALS,02-05,CAPITOLHOST,02/01/12,02/01/12,FOOD & BEVERAGE,740.00,2012,AP,Accounts payable,00616103,CAPITOLHOST
,REPUBLICAN CONFERENCE,2013Q1,SUPPLIES AND MATERIALS,02-22,CITI PCARD-HUNAN DYNASTY RESTAURA,12/29/12,01/02/13,FOOD & BEVERAGE,621.75,2012,AP,Accounts payable,00629027,CITI PCARD-HUNAN DYNASTY RESTAURA
,REPUBLICAN CONFERENCE,2013Q1,SUPPLIES AND MATERIALS,02-22,CITI PCARD-LEDO PIZZA,12/29/12,01/02/13,FOOD & BEVERAGE,961.66,2012,AP,Accounts payable,00629027,CITI PCARD-LEDO PIZZA
,REPUBLICAN CONFERENCE,2013Q1,SUPPLIES AND MATERIALS,02-22,CITI PCARD-QDOBA,12/29/12,01/02/13,FOOD & BEVERAGE,"2,528.80",2012,AP,Accounts payable,00629027,CITI PCARD-QDOBA
,REPUBLICAN CONFERENCE,2013Q1,SUPPLIES AND MATERIALS,02-26,SHADOW TV INC,01/01/13,02/14/13,PUBLICATIONS/REFERENCE MAT'L,750.00,2012,AP,Accounts payable,00631145,SHADOW TV INC
,OFFICE OF THE SPEAKER,2013Q1,SUPPLIES AND MATERIALS,03-21,CITI PCARD-CAFE RIO MEXICAN GRILL,01/29/13,02/28/13,FOOD & BEVERAGE,285.45,2013,AP,Accounts payable,00650124,CITI PCARD-CAFE RIO MEXICAN GRILL
,OFFICE OF THE SPEAKER,2013Q1,SUPPLIES AND MATERIALS,03-21,CITI PCARD-CAPITOL HOST (RIDGEWEL,01/29/13,02/28/13,FOOD & BEVERAGE,"1,567.75",2013,AP,Accounts payable,00650124,CITI PCARD-CAPITOL HOST (RIDGEWEL
,OFFICE OF THE SPEAKER,2013Q1,SUPPLIES AND MATERIALS,03-21,CITI PCARD-CHILI'S GRILL & BAR,01/29/13,02/28/13,FOOD & BEVERAGE,133.72,2013,AP,Accounts payable,00650124,CITI PCARD-CHILI'S GRILL & BAR
,OFFICE OF THE SPEAKER,2013Q1,SUPPLIES AND MATERIALS,03-21,CITI PCARD-CORNER BAKERY,01/29/13,02/28/13,FOOD & BEVERAGE,748.50,2013,AP,Accounts payable,00650124,CITI PCARD-CORNER BAKERY
,OFFICE OF THE SPEAKER,2013Q1,SUPPLIES AND MATERIALS,03-21,CITI PCARD-DUNKIN,01/29/13,02/28/13,FOOD & BEVERAGE,28.41,2013,AP,Accounts payable,00650124,CITI PCARD-DUNKIN
,OFFICE OF THE SPEAKER,2013Q1,SUPPLIES AND MATERIALS,03-21,CITI PCARD-PORT OF PIRAEUS II,01/29/13,02/28/13,FOOD & BEVERAGE,608.95,2013,AP,Accounts payable,00650124,CITI PCARD-PORT OF PIRAEUS II
,OFFICE OF THE SPEAKER,2013Q1,SUPPLIES AND MATERIALS,03-21,CITI PCARD-SENATECATERING,01/29/13,02/28/13,FOOD & BEVERAGE,"2,479.50",2013,AP,Accounts payable,00650124,CITI PCARD-SENATECATERING
,OFFICE OF THE SPEAKER,2013Q1,SUPPLIES AND MATERIALS,03-21,CITI PCARD-TAYLOR GOURMET,01/29/13,02/28/13,FOOD & BEVERAGE,350.55,2013,AP,Accounts payable,00650124,CITI PCARD-TAYLOR GOURMET
,OFFICE OF THE SPEAKER,2013Q1,SUPPLIES AND MATERIALS,04-30,CITIBANK P CARD,01/03/13,01/28/13,FOOD & BEVERAGE,"8,170.55",2013,AP,Accounts payable,00636390,CITIBANK P CARD
,OFFICE OF THE SPEAKER,2013Q1,PERSONNEL COMPENSATION,"","ANDREWS,THOMAS S",01/01/13,01/02/13,SENIOR STAFF ASSISTANT,200.00,2012,"","","","ANDREWS,THOMAS S"
,OFFICE OF THE SPEAKER,2013Q1,PERSONNEL COMPENSATION,"","ANDREWS,THOMAS S",12/01/12,12/31/12,SENIOR STAFF ASSISTANT (OVERTIME),"1,317.53",2012,"","","","ANDREWS,THOMAS S"
,OFFICE OF THE SPEAKER,2013Q1,PERSONNEL COMPENSATION,"","AVONDOGLIO,BRYANT J",01/01/13,01/02/13,ADVANCE & DIGITAL PRODUC MGR,444.44,2012,"","","","AVONDOGLIO,BRYANT J"
,OFFICE OF THE SPEAKER,2013Q1,PERSONNEL COMPENSATION,"","BECKER,ALEXANDER M",01/01/13,01/02/13,STAFF ASSISTANT,177.78,2012,"","","","BECKER,ALEXANDER M"
,OFFICE OF THE SPEAKER,2013Q1,PERSONNEL COMPENSATION,"","BECKER,ALEXANDER M",12/01/12,12/31/12,STAFF ASSISTANT (OVERTIME),611.53,2012,"","","","BECKER,ALEXANDER M"
,OFFICE OF THE SPEAKER,2013Q1,PERSONNEL COMPENSATION,"","BENJAMIN, WILLIAM C",01/01/13,01/02/13,DIR OF INFORMATION TECHNOLOGY,516.67,2012,"","","","BENJAMIN, WILLIAM C"
,OFFICE OF THE SPEAKER,2013Q1,PERSONNEL COMPENSATION,"","BLAKE,KRISTENE",01/01/13,01/02/13,DIRECTOR OF SCHDLNG/EXEC ASST,486.11,2012,"","","","BLAKE,KRISTENE"
,OFFICE OF THE SPEAKER,2013Q1,PERSONNEL COMPENSATION,"","BOYD,KATHRYN E",01/01/13,01/02/13,ASST COMMUNICATIONS DIRECTOR,444.44,2012,"","","","BOYD,KATHRYN E"
,OFFICE OF THE SPEAKER,2013Q1,PERSONNEL COMPENSATION,"","BOZA-HOLMAN, SOFIA M",01/01/13,01/02/13,STAFF ASSISTANT,177.78,2012,"","","","BOZA-HOLMAN, SOFIA M"
,OFFICE OF THE SPEAKER,2013Q1,PERSONNEL COMPENSATION,"","BOZA-HOLMAN, SOFIA M",12/01/12,12/31/12,STAFF ASSISTANT (OVERTIME),288.46,2012,"","","","BOZA-HOLMAN, SOFIA M"
,OFFICE OF THE SPEAKER,2013Q1,PERSONNEL COMPENSATION,"","BROWN,MARYAM S",01/01/13,01/02/13,ASST TO SPEAKER FOR POLICY,933.33,2012,"","","","BROWN,MARYAM S"
,OFFICE OF THE SPEAKER,2013Q1,PERSONNEL COMPENSATION,"","BUCK, BRENDAN K",01/01/13,01/02/13,PRESS SECRETARY,766.67,2012,"","","","BUCK, BRENDAN K"
,OFFICE OF THE SPEAKER,2013Q1,PERSONNEL COMPENSATION,"","BUNKER,ANDREW R",01/01/13,01/02/13,FLOOR ASSISTANT,188.89,2012,"","","","BUNKER,ANDREW R"
,OFFICE OF THE SPEAKER,2013Q1,PERSONNEL COMPENSATION,"","CALIO,LYDIA E",01/01/13,01/02/13,DEPUTY FLOOR DIRECTOR,444.44,2012,"","","","CALIO,LYDIA E"
,OFFICE OF THE SPEAKER,2013Q1,PERSONNEL COMPENSATION,"","CASSIDY, ED",01/01/13,01/02/13,DIRECTOR OF HOUSE OPERATIONS,933.33,2012,"","","","CASSIDY, ED"
,OFFICE OF THE SPEAKER,2013Q1,PERSONNEL COMPENSATION,"","DESTEFANO,JOHN",01/01/13,01/02/13,SR ADVISOR FOR MEMBER SERVICES,916.67,2012,"","","","DESTEFANO,JOHN"
,OFFICE OF THE SPEAKER,2013Q1,PERSONNEL COMPENSATION,"","DEUTSCH,JEREMY",01/01/13,01/02/13,SHARED EMPLOYEE,444.44,2012,"","","","DEUTSCH,JEREMY"
,OFFICE OF THE SPEAKER,2013Q1,PERSONNEL COMPENSATION,"","EASBY-SMITH,ANNE S",01/01/13,01/02/13,STAFF ASSISTANT,177.78,2012,"","","","EASBY-SMITH,ANNE S"
,OFFICE OF THE SPEAKER,2013Q1,PERSONNEL COMPENSATION,"","EASBY-SMITH,ANNE S",12/01/12,12/31/12,STAFF ASSISTANT (OVERTIME),565.38,2012,"","","","EASBY-SMITH,ANNE S"
,OFFICE OF THE SPEAKER,2013Q1,PERSONNEL COMPENSATION,"","ECKARD,NASTASHA",01/01/13,01/02/13,LEGISLATIVE ASSISTANT,372.22,2012,"","","","ECKARD,NASTASHA"
,OFFICE OF THE SPEAKER,2013Q1,PERSONNEL COMPENSATION,"","EICHHORN, JARED D",01/01/13,01/02/13,FLOOR ASSISTANT,266.67,2012,"","","","EICHHORN, JARED D"
,OFFICE OF THE SPEAKER,2013Q1,PERSONNEL COMPENSATION,"","EMBLER, ELIZABETH G",01/01/13,01/02/13,DIRECTOR OF ADVANCE,416.11,2012,"","","","EMBLER, ELIZABETH G"
,OFFICE OF THE SPEAKER,2013Q1,PERSONNEL COMPENSATION,"","FINNEGAN,PATRICK",01/01/13,01/02/13,SPECIAL ASSISTANT TO THE SPEAK,238.89,2012,"","","","FINNEGAN,PATRICK"
,OFFICE OF THE SPEAKER,2013Q1,PERSONNEL COMPENSATION,"","GILLESPIE,MAURA M",01/01/13,01/02/13,DEPUTY SCHEDULER,222.22,2012,"","","","GILLESPIE,MAURA M"
,OFFICE OF THE SPEAKER,2013Q1,PERSONNEL COMPENSATION,"","GREEN, JO-MARIE S",01/01/13,01/02/13,GEN COUNSEL & CHIEF OF LEG OPS,958.33,2012,"","","","GREEN, JO-MARIE S"
,OFFICE OF THE SPEAKER,2013Q1,PERSONNEL COMPENSATION,"","GREENE,WILLIAM P",01/01/13,01/02/13,DIRECTOR-OUTREACH,751.67,2012,"","","","GREENE,WILLIAM P"
,OFFICE OF THE SPEAKER,2013Q1,PERSONNEL COMPENSATION,"","HALEY, KATHERINE C",01/01/13,01/02/13,ASST TO SPEAKER FOR POLICY,491.67,2012,"","","","HALEY, KATHERINE C"
,OFFICE OF THE SPEAKER,2013Q1,PERSONNEL COMPENSATION,"","HARROUN, TIMOTHY J",01/01/13,01/02/13,MANAGER REPUBLICAN CLOAKROOM,739.72,2012,"","","","HARROUN, TIMOTHY J"
,OFFICE OF THE SPEAKER,2013Q1,PERSONNEL COMPENSATION,"","HERRLE, CYNTHIA A",01/01/13,01/02/13,ASST TO THE SPEAKER FOR POLICY,790.00,2012,"","","","HERRLE, CYNTHIA A"
,OFFICE OF THE SPEAKER,2013Q1,PERSONNEL COMPENSATION,"","KAMIS,KYLA M",01/01/13,01/02/13,DIRECTOR OF SPECIAL EVENTS,305.56,2012,"","","","KAMIS,KYLA M"
,OFFICE OF THE SPEAKER,2013Q1,PERSONNEL COMPENSATION,"","KINZEL,WILL C",01/01/13,01/02/13,ASST TO THE SPEAKER FOR POLICY,635.56,2012,"","","","KINZEL,WILL C"
,OFFICE OF THE SPEAKER,2013Q1,PERSONNEL COMPENSATION,"","KOLEGO, TREVOR W",01/01/13,01/02/13,DEPUTY DIR MEMBER SERVICES,722.22,2012,"","","","KOLEGO, TREVOR W"
,OFFICE OF THE SPEAKER,2013Q1,PERSONNEL COMPENSATION,"","LAMPERT,JUSTIN",01/01/13,01/02/13,RESEARCH ASSISTANT,250.00,2012,"","","","LAMPERT,JUSTIN"
,OFFICE OF THE SPEAKER,2013Q1,PERSONNEL COMPENSATION,"","LEOPOLD,PATRICK R",01/01/13,01/02/13,SHARED EMPLOYEE,414.81,2012,"","","","LEOPOLD,PATRICK R"
,OFFICE OF THE SPEAKER,2013Q1,PERSONNEL COMPENSATION,"","LOHMEYER,SONJA M",01/01/13,01/02/13,DIRECTOR OF PUBLIC LIASION,722.22,2012,"","","","LOHMEYER,SONJA M"
,OFFICE OF THE SPEAKER,2013Q1,PERSONNEL COMPENSATION,"","LOPER,BRETT S",01/01/13,01/02/13,DEPUTY CHIEF OF STAFF,958.33,2012,"","","","LOPER,BRETT S"
,OFFICE OF THE SPEAKER,2013Q1,PERSONNEL COMPENSATION,"","LOZUPONE, AMY S",01/01/13,01/02/13,DIRECTOR OF ADMIN OPERATIONS,916.67,2012,"","","","LOZUPONE, AMY S"
,OFFICE OF THE SPEAKER,2013Q1,PERSONNEL COMPENSATION,"","LUKEMAN,KATHERINE A",01/01/13,01/02/13,ASSIST TO THE SPEAKER F/POLICY,491.67,2012,"","","","LUKEMAN,KATHERINE A"
,OFFICE OF THE SPEAKER,2013Q1,PERSONNEL COMPENSATION,"","MACDONALD, B",01/01/13,01/02/13,SHARED EMPLOYEE,444.44,2012,"","","","MACDONALD, B"
,OFFICE OF THE SPEAKER,2013Q1,PERSONNEL COMPENSATION,"","MILLER,WILLIAM",01/01/13,01/02/13,STAFF ASSISTANT,177.78,2012,"","","","MILLER,WILLIAM"
,OFFICE OF THE SPEAKER,2013Q1,PERSONNEL COMPENSATION,"","MILLER,WILLIAM",12/01/12,12/31/12,STAFF ASSISTANT (OVERTIME),755.76,2012,"","","","MILLER,WILLIAM"
,OFFICE OF THE SPEAKER,2013Q1,PERSONNEL COMPENSATION,"","MINKLER,ANN W",01/01/13,01/02/13,FLOOR ASSISTANT,183.33,2012,"","","","MINKLER,ANN W"
,OFFICE OF THE SPEAKER,2013Q1,PERSONNEL COMPENSATION,"","PORTER, EMILY S",01/01/13,01/02/13,ASST TO THE SPEAKER FOR POLICY,611.11,2012,"","","","PORTER, EMILY S"
,OFFICE OF THE SPEAKER,2013Q1,PERSONNEL COMPENSATION,"","PROPP,ELIZABETH R",01/01/13,01/02/13,DEPUTY PRESS SECRETARY,316.67,2012,"","","","PROPP,ELIZABETH R"
,OFFICE OF THE SPEAKER,2013Q1,PERSONNEL COMPENSATION,"","RATCLIFFE,RAMSEY E",01/01/13,01/02/13,SPECIAL EVENTS COORDINATOR,194.44,2012,"","","","RATCLIFFE,RAMSEY E"
,OFFICE OF THE SPEAKER,2013Q1,PERSONNEL COMPENSATION,"","REED, HEATHER E",01/01/13,01/02/13,ASSISTANT PRESS SECRETARY,250.00,2012,"","","","REED, HEATHER E"
,OFFICE OF THE SPEAKER,2013Q1,PERSONNEL COMPENSATION,"","REED, MARY K",01/01/13,01/02/13,SHARED EMPLOYEE,191.11,2012,"","","","REED, MARY K"
,OFFICE OF THE SPEAKER,2013Q1,PERSONNEL COMPENSATION,"","RENZ, BRANDON",01/01/13,01/02/13,SHARED EMPLOYEE,414.81,2012,"","","","RENZ, BRANDON"
,OFFICE OF THE SPEAKER,2013Q1,PERSONNEL COMPENSATION,"","RICCI,MICHAEL",01/01/13,01/02/13,DIRECTOR OF SPEECHWRITING,766.67,2012,"","","","RICCI,MICHAEL"
,OFFICE OF THE SPEAKER,2013Q1,PERSONNEL COMPENSATION,"","SAGER,MICHAEL J",01/01/13,01/02/13,SYSTEMS ADMINISTRATOR,444.44,2012,"","","","SAGER,MICHAEL J"
,OFFICE OF THE SPEAKER,2013Q1,PERSONNEL COMPENSATION,"","SCHNITTGER, DAVID M",01/01/13,01/02/13,DEPUTY CHIEF OF STAFF,958.33,2012,"","","","SCHNITTGER, DAVID M"
,OFFICE OF THE SPEAKER,2013Q1,PERSONNEL COMPENSATION,"","SEYMOUR JR, DONALD P",01/01/13,01/02/13,DIGITAL COMMUNICATIONS DIRECTO,727.78,2012,"","","","SEYMOUR JR, DONALD P"
,OFFICE OF THE SPEAKER,2013Q1,PERSONNEL COMPENSATION,"","SMITH, KEVIN",01/01/13,01/02/13,DIRECTOR OF COMMUNICATIONS,863.89,2012,"","","","SMITH, KEVIN"
,OFFICE OF THE SPEAKER,2013Q1,PERSONNEL COMPENSATION,"","SOMMERS, MICHAEL J",01/01/13,01/02/13,CHIEF OF STAFF,958.33,2012,"","","","SOMMERS, MICHAEL J"
,OFFICE OF THE SPEAKER,2013Q1,PERSONNEL COMPENSATION,"","STEEL, MICHAEL",01/01/13,01/02/13,PRESS SECRETARY,833.33,2012,"","","","STEEL, MICHAEL"
,OFFICE OF THE SPEAKER,2013Q1,PERSONNEL COMPENSATION,"","STEWART, DAVID B",01/01/13,01/02/13,ASST TO SPEAKER FOR POLICY,916.67,2012,"","","","STEWART, DAVID B"
,OFFICE OF THE SPEAKER,2013Q1,PERSONNEL COMPENSATION,"","STEWART, JENNIFER M",01/01/13,01/02/13,ASST TO SPEAKER FOR POLICY,611.11,2012,"","","","STEWART, JENNIFER M"
,OFFICE OF THE SPEAKER,2013Q1,PERSONNEL COMPENSATION,"","STRUNK, JEFFREY A",01/01/13,01/02/13,DEPUTY FLOOR DIRECTOR,416.67,2012,"","","","STRUNK, JEFFREY A"
,OFFICE OF THE SPEAKER,2013Q1,PERSONNEL COMPENSATION,"","SWANSON,RANDY A",01/01/13,01/02/13,SHARED EMPLOYEE,414.81,2012,"","","","SWANSON,RANDY A"
,OFFICE OF THE SPEAKER,2013Q1,PERSONNEL COMPENSATION,"","THORSEN, ANNE B",01/01/13,01/02/13,FLOOR DIRECTOR,916.67,2012,"","","","THORSEN, ANNE B"
,OFFICE OF THE SPEAKER,2013Q1,PERSONNEL COMPENSATION,"","WORTH,BRIAN A",01/01/13,01/02/13,SHARED EMPLOYEE,518.52,2012,"","","","WORTH,BRIAN A"
,OFFICE OF THE SPEAKER,2013Q1,TRAVEL,01-22,"SOMMERS,MICHAEL",10/03/12,10/03/12,TAXI/PARKING/TOLLS,20.00,2012,AP,Accounts payable,00605911,"SOMMERS,MICHAEL"
,OFFICE OF THE SPEAKER,2013Q1,TRAVEL,01-22,"HALEY, KATHERINE C",10/16/12,11/08/12,TAXI/PARKING/TOLLS,34.00,2012,AP,Accounts payable,00605913,"HALEY, KATHERINE C"
,OFFICE OF THE SPEAKER,2013Q1,TRAVEL,01-22,"HALEY, KATHERINE C",11/08/12,12/07/12,TAXI/PARKING/TOLLS,50.43,2012,AP,Accounts payable,00605914,"HALEY, KATHERINE C"
,OFFICE OF THE SPEAKER,2013Q1,"RENT, COMMUNICATION, UTILITIES",01-25,"CITI PCARD-DC PARTY RENTALS, LLC",11/29/12,12/28/12,EQUIP RENTAL (EFF 1/3/03),241.68,2012,AP,Accounts payable,00610459,"CITI PCARD-DC PARTY RENTALS, LLC"
,OFFICE OF THE SPEAKER,2013Q1,"RENT, COMMUNICATION, UTILITIES",02-20,CITIBANK P CARD,11/29/12,12/28/12,EQUIP RENTAL (EFF 1/3/03),-241.68,2012,AP,Accounts payable,00627618,CITIBANK P CARD
,OFFICE OF THE SPEAKER,2013Q1,SUPPLIES AND MATERIALS,01-22,HAGUE QUALITY WATER OF MD INC,12/04/12,12/04/12,WATER,252.00,2012,AP,Accounts payable,00605915,HAGUE QUALITY WATER OF MD INC
,OFFICE OF THE SPEAKER,2013Q1,SUPPLIES AND MATERIALS,01-22,JOE RAGAN'S COFFEE LTD,12/04/12,12/04/12,FOOD & BEVERAGE,427.28,2012,AP,Accounts payable,00605927,JOE RAGAN'S COFFEE LTD
,OFFICE OF THE SPEAKER,2013Q1,SUPPLIES AND MATERIALS,01-22,JOE RAGAN'S COFFEE LTD,12/11/12,12/11/12,FOOD & BEVERAGE,925.85,2012,AP,Accounts payable,00605929,JOE RAGAN'S COFFEE LTD
,OFFICE OF THE SPEAKER,2013Q1,SUPPLIES AND MATERIALS,01-22,JOE RAGAN'S COFFEE LTD,12/18/12,12/18/12,FOOD & BEVERAGE,512.06,2012,AP,Accounts payable,00605939,JOE RAGAN'S COFFEE LTD
,OFFICE OF THE SPEAKER,2013Q1,SUPPLIES AND MATERIALS,01-23,TV EYES INC,01/01/13,12/31/14,PUBLICATIONS/REFERENCE MAT'L,"2,400.00",2012,AP,Accounts payable,00605900,TV EYES INC
,OFFICE OF THE SPEAKER,2013Q1,SUPPLIES AND MATERIALS,01-23,"KAMIS, KYLA M",12/19/12,12/19/12,FOOD & BEVERAGE,39.22,2012,AP,Accounts payable,00605917,"KAMIS, KYLA M"
,OFFICE OF THE SPEAKER,2013Q1,SUPPLIES AND MATERIALS,01-23,COCA-COLA REFRESHMENTS,12/20/12,12/20/12,FOOD & BEVERAGE,132.48,2012,AP,Accounts payable,00605919,COCA-COLA REFRESHMENTS
,OFFICE OF THE SPEAKER,2013Q1,SUPPLIES AND MATERIALS,01-23,COCA-COLA REFRESHMENTS,12/18/12,12/18/12,FOOD & BEVERAGE,110.40,2012,AP,Accounts payable,00605921,COCA-COLA REFRESHMENTS
,OFFICE OF THE SPEAKER,2013Q1,SUPPLIES AND MATERIALS,01-23,LEADERSHIP DIRECTORIES INC,12/02/12,12/01/13,PUBLICATIONS/REFERENCE MAT'L,420.00,2012,AP,Accounts payable,00605925,LEADERSHIP DIRECTORIES INC
,OFFICE OF THE SPEAKER,2013Q1,SUPPLIES AND MATERIALS,01-23,"LOHMEYER, SONJA M",12/31/12,12/31/12,FOOD & BEVERAGE,34.30,2012,AP,Accounts payable,00609426,"LOHMEYER, SONJA M"
,OFFICE OF THE SPEAKER,2013Q1,SUPPLIES AND MATERIALS,01-25,CITI PCARD-CAFE RIO MEXICAN GRILL,11/29/12,12/28/12,FOOD & BEVERAGE,250.91,2012,AP,Accounts payable,00610459,CITI PCARD-CAFE RIO MEXICAN GRILL
,OFFICE OF THE SPEAKER,2013Q1,SUPPLIES AND MATERIALS,01-25,CITI PCARD-CAPITOL HOST (RIDGEWEL,11/29/12,12/28/12,FOOD & BEVERAGE,60.00,2012,AP,Accounts payable,00610459,CITI PCARD-CAPITOL HOST (RIDGEWEL
,OFFICE OF THE SPEAKER,2013Q1,SUPPLIES AND MATERIALS,01-25,CITI PCARD-CORNER BAKERY,11/29/12,12/28/12,FOOD & BEVERAGE,320.47,2012,AP,Accounts payable,00610459,CITI PCARD-CORNER BAKERY
,OFFICE OF THE SPEAKER,2013Q1,SUPPLIES AND MATERIALS,01-25,CITI PCARD-ELI S RESTAURANT,11/29/12,12/28/12,FOOD & BEVERAGE,410.00,2012,AP,Accounts payable,00610459,CITI PCARD-ELI S RESTAURANT
,OFFICE OF THE SPEAKER,2013Q1,SUPPLIES AND MATERIALS,01-25,CITI PCARD-MATCHBOX CAPITOL HILL,11/29/12,12/28/12,FOOD & BEVERAGE,493.00,2012,AP,Accounts payable,00610459,CITI PCARD-MATCHBOX CAPITOL HILL
,OFFICE OF THE SPEAKER,2013Q1,SUPPLIES AND MATERIALS,01-25,CITI PCARD-PORT OF PIRAEUS III,11/29/12,12/28/12,FOOD & BEVERAGE,223.75,2012,AP,Accounts payable,00610459,CITI PCARD-PORT OF PIRAEUS III
,OFFICE OF THE SPEAKER,2013Q1,SUPPLIES AND MATERIALS,01-25,CITI PCARD-TAYLOR GOURMET,11/29/12,12/28/12,FOOD & BEVERAGE,212.25,2012,AP,Accounts payable,00610459,CITI PCARD-TAYLOR GOURMET
,OFFICE OF THE SPEAKER,2013Q1,SUPPLIES AND MATERIALS,01-25,"CITI PCARD-WE, THE PIZZA",11/29/12,12/28/12,FOOD & BEVERAGE,176.32,2012,AP,Accounts payable,00610459,"CITI PCARD-WE, THE PIZZA"
,OFFICE OF THE SPEAKER,2013Q1,SUPPLIES AND MATERIALS,01-25,CITI PCARD-WHOLEFDS PST,11/29/12,12/28/12,FOOD & BEVERAGE,"3,324.25",2012,AP,Accounts payable,00610459,CITI PCARD-WHOLEFDS PST
,OFFICE OF THE SPEAKER,2013Q1,SUPPLIES AND MATERIALS,02-07,DESIGN CUISINE,11/16/12,11/16/12,FOOD & BEVERAGE,"4,354.00",2012,AP,Accounts payable,00617041,DESIGN CUISINE
,OFFICE OF THE SPEAKER,2013Q1,SUPPLIES AND MATERIALS,02-27,AMARYLLIS INC,11/16/12,11/16/12,HABITATION EXPENSE,200.00,2012,AP,Accounts payable,00632452,AMARYLLIS INC
,OFFICE OF THE SPEAKER,2013Q1,SUPPLIES AND MATERIALS,02-28,CITIBANK P CARD,12/29/12,01/02/13,FOOD & BEVERAGE,"1,302.75",2012,AP,Accounts payable,00636600,CITIBANK P CARD
,OFFICE OF THE SPEAKER,2013Q1,SUPPLIES AND MATERIALS,03-14,COCA-COLA REFRESHMENTS,12/04/12,12/04/12,FOOD & BEVERAGE,154.56,2012,AP,Accounts payable,00641541,COCA-COLA REFRESHMENTS
,OFFICE OF THE MAJORITY LEADER,2013Q1,PERSONNEL COMPENSATION,"","BARRERA,AMY D",01/01/13,01/02/13,DIRECTOR OF ADMINISTRATION,138.89,2012,"","","","BARRERA,AMY D"
,OFFICE OF THE MAJORITY LEADER,2013Q1,PERSONNEL COMPENSATION,"","BRADLEY, NEIL L",01/01/13,01/02/13,DEPUTY CHIEF OF STAFF,958.33,2012,"","","","BRADLEY, NEIL L"
,OFFICE OF THE MAJORITY LEADER,2013Q1,PERSONNEL COMPENSATION,"","CHRISTENSEN, AUTUMN",01/01/13,01/02/13,SHARED EMPLOYEE,66.67,2012,"","","","CHRISTENSEN, AUTUMN"
,OFFICE OF THE MAJORITY LEADER,2013Q1,PERSONNEL COMPENSATION,"","COOPER,RORY S",01/01/13,01/02/13,DIRECTOR OF COMMUNICATIONS,805.56,2012,"","","","COOPER,RORY S"
,OFFICE OF THE MAJORITY LEADER,2013Q1,PERSONNEL COMPENSATION,"","CUMMINGS,TIMOTHY P",01/01/13,01/02/13,STAFF ASSISTANT,133.33,2012,"","","","CUMMINGS,TIMOTHY P"
,OFFICE OF THE MAJORITY LEADER,2013Q1,PERSONNEL COMPENSATION,"","DOLBOW, WILLIAM R",01/01/13,01/02/13,SENIOR ADVISOR,191.67,2012,"","","","DOLBOW, WILLIAM R"
,OFFICE OF THE MAJORITY LEADER,2013Q1,PERSONNEL COMPENSATION,"","FARRAR,KATHARINE D",01/01/13,01/02/13,STAFF ASSISTANT,138.89,2012,"","","","FARRAR,KATHARINE D"
,OFFICE OF THE MAJORITY LEADER,2013Q1,PERSONNEL COMPENSATION,"","FERENCE, MICHAEL J",01/01/13,01/02/13,DIRECTOR OF OUTREACH,935.62,2012,"","","","FERENCE, MICHAEL J"
,OFFICE OF THE MAJORITY LEADER,2013Q1,PERSONNEL COMPENSATION,"","GUSTAFSON,NICOLE M",01/01/13,01/02/13,POLICY ADVISOR/COUNSEL,344.44,2012,"","","","GUSTAFSON,NICOLE M"
,OFFICE OF THE MAJORITY LEADER,2013Q1,PERSONNEL COMPENSATION,"","HEYE,DOUGLAS R",01/01/13,01/02/13,DEPUTY CHIEF OF STAFF-COMMUNIC,933.33,2012,"","","","HEYE,DOUGLAS R"
,OFFICE OF THE MAJORITY LEADER,2013Q1,PERSONNEL COMPENSATION,"","JAEGER, CHERYL L",01/01/13,01/02/13,SENIOR POLICY ADVISOR,458.89,2012,"","","","JAEGER, CHERYL L"
,OFFICE OF THE MAJORITY LEADER,2013Q1,PERSONNEL COMPENSATION,"","JOSEPH,COURTNEY E",01/01/13,01/02/13,CONGRESSIONAL STAFF,111.11,2012,"","","","JOSEPH,COURTNEY E"
,OFFICE OF THE MAJORITY LEADER,2013Q1,PERSONNEL COMPENSATION,"","KAREM,ROBERT S",01/01/13,01/02/13,SENIOR POLICY ADVISOR,650.00,2012,"","","","KAREM,ROBERT S"
,OFFICE OF THE MAJORITY LEADER,2013Q1,PERSONNEL COMPENSATION,"","KEECH,EMILY H",01/01/13,01/02/13,DEPUTY DIRECTOR OF MEMBER SVCS,166.67,2012,"","","","KEECH,EMILY H"
,OFFICE OF THE MAJORITY LEADER,2013Q1,PERSONNEL COMPENSATION,"","KISH,SARAH M",01/01/13,01/02/13,FLOOR ASSISTANT,277.78,2012,"","","","KISH,SARAH M"
,OFFICE OF THE MAJORITY LEADER,2013Q1,PERSONNEL COMPENSATION,"","LIRA,MATHEW L",01/01/13,01/02/13,DIRECTOR OF DIGITAL MEDIA,527.78,2012,"","","","LIRA,MATHEW L"
,OFFICE OF THE MAJORITY LEADER,2013Q1,PERSONNEL COMPENSATION,"","MAHAN,ROGER A",01/01/13,01/02/13,POLICY ADVISOR,319.44,2012,"","","","MAHAN,ROGER A"
,OFFICE OF THE MAJORITY LEADER,2013Q1,PERSONNEL COMPENSATION,"","NELSON, VALERIE S",01/01/13,01/02/13,DIR OF MEMBER SERVICES,638.89,2012,"","","","NELSON, VALERIE S"
,OFFICE OF THE MAJORITY LEADER,2013Q1,PERSONNEL COMPENSATION,"","NEVINS, KYLE W",01/01/13,01/02/13,DEPUTY CHIEF OF STAFF,958.33,2012,"","","","NEVINS, KYLE W"
,OFFICE OF THE MAJORITY LEADER,2013Q1,PERSONNEL COMPENSATION,"","STOMBRES, STEVEN C",01/01/13,01/02/13,CHIEF OF STAFF,958.33,2012,"","","","STOMBRES, STEVEN C"
,OFFICE OF THE MAJORITY LEADER,2013Q1,PERSONNEL COMPENSATION,"","STRAUS,JESSICA",01/01/13,01/02/13,ASSISTANT PRESS SECRETARY,300.00,2012,"","","","STRAUS,JESSICA"
,OFFICE OF THE MAJORITY LEADER,2013Q1,PERSONNEL COMPENSATION,"","VIESON, CHRISTOPHER W",01/01/13,01/02/13,DEPUTY DIRECTOR OF FLOOR OPERA,650.00,2012,"","","","VIESON, CHRISTOPHER W"
,OFFICE OF THE MAJORITY LEADER,2013Q1,PERSONNEL COMPENSATION,"","WALSH,WILLIAM C",01/01/13,01/02/13,DEPUTY DIR OF DIGITAL SERVICES,222.22,2012,"","","","WALSH,WILLIAM C"
,OFFICE OF THE MAJORITY LEADER,2013Q1,PERSONNEL COMPENSATION,"","WILLIAMS, KELLY K",01/01/13,01/02/13,FINANCIAL ADMINISTRATOR,200.00,2012,"","","","WILLIAMS, KELLY K"
,OFFICE OF THE MAJORITY LEADER,2013Q1,PERSONNEL COMPENSATION,"","ZACKON,MATTHEW R",01/01/13,01/02/13,SPECIAL ASSISTANT,138.89,2012,"","","","ZACKON,MATTHEW R"
,OFFICE OF THE MAJORITY LEADER,2013Q1,TRAVEL,01-08,"MAHAN, ROGER A",12/17/12,12/17/12,COMMERCIAL TRANSPORTATION,510.60,2012,AP,Accounts payable,00597759,"MAHAN, ROGER A"
,OFFICE OF THE MAJORITY LEADER,2013Q1,TRAVEL,01-08,"MAHAN, ROGER A",12/17/12,12/17/12,TAXI/PARKING/TOLLS,20.00,2012,AP,Accounts payable,00597797,"MAHAN, ROGER A"
,OFFICE OF THE MAJORITY LEADER,2013Q1,PRINTING AND REPRODUCTION,01-25,CITI PCARD-GETTY IMAGES,11/29/12,12/28/12,PRINTING & REPRODUCTION,49.00,2012,AP,Accounts payable,00610459,CITI PCARD-GETTY IMAGES
,OFFICE OF THE MAJORITY LEADER,2013Q1,SUPPLIES AND MATERIALS,01-08,TV EYES INC,01/01/13,12/31/13,PUBLICATIONS/REFERENCE MAT'L,"1,200.00",2012,AP,Accounts payable,00597754,TV EYES INC
,OFFICE OF THE MAJORITY LEADER,2013Q1,SUPPLIES AND MATERIALS,01-25,CITI PCARD-DEER PARK WATER,11/29/12,12/28/12,WATER,207.01,2012,AP,Accounts payable,00610459,CITI PCARD-DEER PARK WATER
,OFFICE OF THE MAJORITY LEADER,2013Q1,SUPPLIES AND MATERIALS,01-25,CITI PCARD-DUNKIN DONUTS COM,11/29/12,12/28/12,FOOD & BEVERAGE,140.16,2012,AP,Accounts payable,00610459,CITI PCARD-DUNKIN DONUTS COM
,OFFICE OF THE MAJORITY LEADER,2013Q1,SUPPLIES AND MATERIALS,01-25,CITI PCARD-HARRIS TEETER,11/29/12,12/28/12,FOOD & BEVERAGE,185.38,2012,AP,Accounts payable,00610459,CITI PCARD-HARRIS TEETER
,OFFICE OF THE MAJORITY LEADER,2013Q1,SUPPLIES AND MATERIALS,01-25,CITI PCARD-NEW YORK TIMES DIGITAL,11/29/12,12/28/12,PUBLICATIONS/REFERENCE MAT'L,37.10,2012,AP,Accounts payable,00610459,CITI PCARD-NEW YORK TIMES DIGITAL
,OFFICE OF THE MAJORITY LEADER,2013Q1,SUPPLIES AND MATERIALS,01-25,CITI PCARD-NEWSPAPER DIRECT INQPS,11/29/12,12/28/12,PUBLICATIONS/REFERENCE MAT'L,29.95,2012,AP,Accounts payable,00610459,CITI PCARD-NEWSPAPER DIRECT INQPS
,OFFICE OF THE MAJORITY LEADER,2013Q1,SUPPLIES AND MATERIALS,01-25,CITI PCARD-SAFEWAY STORE,11/29/12,12/28/12,FOOD & BEVERAGE,18.54,2012,AP,Accounts payable,00610459,CITI PCARD-SAFEWAY STORE
,OFFICE OF THE MAJORITY LEADER,2013Q1,SUPPLIES AND MATERIALS,01-29,DEER PARK WATER,11/30/12,12/26/12,WATER,400.48,2012,AP,Accounts payable,00611728,DEER PARK WATER
,OFFICE OF THE MAJORITY LEADER,2013Q1,SUPPLIES AND MATERIALS,03-14,BLOOMBERG FINANCE LP,01/01/13,12/31/13,PUBLICATIONS/REFERENCE MAT'L,"5,850.00",2012,AP,Accounts payable,00641591,BLOOMBERG FINANCE LP
,OFFICE OF THE MINORITY LEADER,2013Q1,PERSONNEL COMPENSATION,"","ABOUCHAR, KEITH S",01/01/13,01/02/13,SENIOR POLICY ADVISOR,726.67,2012,"","","","ABOUCHAR, KEITH S"
,OFFICE OF THE MINORITY LEADER,2013Q1,PERSONNEL COMPENSATION,"","BARRY,MARY K",01/01/13,01/02/13,DEPUTY DIRECTOR OF ADVANCE,416.67,2012,"","","","BARRY,MARY K"
,OFFICE OF THE MINORITY LEADER,2013Q1,PERSONNEL COMPENSATION,"","BLOOM, MICHAEL T",01/01/13,01/02/13,DEPUTY POLICY DIRECTOR,429.79,2012,"","","","BLOOM, MICHAEL T"
,OFFICE OF THE MINORITY LEADER,2013Q1,PERSONNEL COMPENSATION,"","CAPRON, MARGARET W",01/01/13,01/02/13,SENIOR ADV POLICY & COMM,709.43,2012,"","","","CAPRON, MARGARET W"
,OFFICE OF THE MINORITY LEADER,2013Q1,PERSONNEL COMPENSATION,"","CASHMAN,MARY D",01/01/13,01/02/13,ASST TO THE CHIEF OF STAFF,400.00,2012,"","","","CASHMAN,MARY D"
,OFFICE OF THE MINORITY LEADER,2013Q1,PERSONNEL COMPENSATION,"","CHARVILLE,BRIDGET F",01/01/13,01/02/13,DIRECTOR OF PROTOCOL,654.82,2012,"","","","CHARVILLE,BRIDGET F"
,OFFICE OF THE MINORITY LEADER,2013Q1,PERSONNEL COMPENSATION,"","CHERRY,STEPHANIE",01/01/13,01/02/13,PRESS ADVISOR,399.16,2012,"","","","CHERRY,STEPHANIE"
,OFFICE OF THE MINORITY LEADER,2013Q1,PERSONNEL COMPENSATION,"","COVEY-BRANDT, ALEXIS",01/01/13,01/02/13,FLOOR DIRECTOR,951.67,2012,"","","","COVEY-BRANDT, ALEXIS"
,OFFICE OF THE MINORITY LEADER,2013Q1,PERSONNEL COMPENSATION,"","DAY,TAMIKA K",01/01/13,01/02/13,SR STAFF ASST SYS ADMIN,277.78,2012,"","","","DAY,TAMIKA K"
,OFFICE OF THE MINORITY LEADER,2013Q1,PERSONNEL COMPENSATION,"","DEGRAFF, KENNETH B",01/01/13,01/02/13,SENIOR POLICY ADVISOR,638.89,2012,"","","","DEGRAFF, KENNETH B"
,OFFICE OF THE MINORITY LEADER,2013Q1,PERSONNEL COMPENSATION,"","DEVLIN, PATRICK J",01/01/13,01/02/13,COMMUNICATIONS DIRECTOR,694.44,2012,"","","","DEVLIN, PATRICK J"
,OFFICE OF THE MINORITY LEADER,2013Q1,PERSONNEL COMPENSATION,"","DEWHIRST, DIANE",01/01/13,01/02/13,SENIOR ADVISOR,655.55,2012,"","","","DEWHIRST, DIANE"
,OFFICE OF THE MINORITY LEADER,2013Q1,PERSONNEL COMPENSATION,"","ELLISON,MATTHEW B",01/01/13,01/02/13,RESEARCH ASSISTANT,166.67,2012,"","","","ELLISON,MATTHEW B"
,OFFICE OF THE MINORITY LEADER,2013Q1,PERSONNEL COMPENSATION,"","ELSHAMI,NADEEM",01/01/13,01/02/13,COMM DIR/SENIOR ADV (STAT),958.33,2012,"","","","ELSHAMI,NADEEM"
,OFFICE OF THE MINORITY LEADER,2013Q1,PERSONNEL COMPENSATION,"","FISCHER JR, ROBERT V",01/01/13,01/02/13,ASST FLOOR CHIEF,739.77,2012,"","","","FISCHER JR, ROBERT V"
,OFFICE OF THE MINORITY LEADER,2013Q1,PERSONNEL COMPENSATION,"","GEORGE,EVANGELINE M",01/01/13,01/02/13,PRESS ADVISOR,308.33,2012,"","","","GEORGE,EVANGELINE M"
,OFFICE OF THE MINORITY LEADER,2013Q1,PERSONNEL COMPENSATION,"","GREENER, APRIL L",01/01/13,01/02/13,RESEARCH DIRECTOR,472.22,2012,"","","","GREENER, APRIL L"
,OFFICE OF THE MINORITY LEADER,2013Q1,PERSONNEL COMPENSATION,"","HAMMILL, ANDREW T",01/01/13,01/02/13,PRESS SEC & DEP COMM DIR,910.40,2012,"","","","HAMMILL, ANDREW T"
,OFFICE OF THE MINORITY LEADER,2013Q1,PERSONNEL COMPENSATION,"","HARTZ, JERRY",01/01/13,01/02/13,DIRECTOR OF FLOOR OPERATIONS,958.33,2012,"","","","HARTZ, JERRY"
,OFFICE OF THE MINORITY LEADER,2013Q1,PERSONNEL COMPENSATION,"","HAYNES JR, WILFRED J",01/01/13,01/02/13,IT DIRECTOR,545.12,2012,"","","","HAYNES JR, WILFRED J"
,OFFICE OF THE MINORITY LEADER,2013Q1,PERSONNEL COMPENSATION,"","HUGHES,JOHN C",01/01/13,01/02/13,SENIOR POLICY ADVISOR,715.56,2012,"","","","HUGHES,JOHN C"
,OFFICE OF THE MINORITY LEADER,2013Q1,PERSONNEL COMPENSATION,"","IVESTER, WREN",01/01/13,01/02/13,ASST FLOOR CHIEF,666.10,2012,"","","","IVESTER, WREN"
,OFFICE OF THE MINORITY LEADER,2013Q1,PERSONNEL COMPENSATION,"","JUDGE, KRISTINE A",01/01/13,01/02/13,SENIOR ADV/POLICY COMM,709.43,2012,"","","","JUDGE, KRISTINE A"
,OFFICE OF THE MINORITY LEADER,2013Q1,PERSONNEL COMPENSATION,"","KEITA,KAMILAH Z",01/01/13,01/02/13,DEP INFORMATION TECH. DIRECT,495.18,2012,"","","","KEITA,KAMILAH Z"
,OFFICE OF THE MINORITY LEADER,2013Q1,PERSONNEL COMPENSATION,"","KING,RYAN M",01/01/13,01/02/13,PRESS ASSISTANT,183.33,2012,"","","","KING,RYAN M"
,OFFICE OF THE MINORITY LEADER,2013Q1,PERSONNEL COMPENSATION,"","KING,RYAN M",12/01/12,12/31/12,PRESS ASSISTANT (OVERTIME),"1,461.94",2012,"","","","KING,RYAN M"
,OFFICE OF THE MINORITY LEADER,2013Q1,PERSONNEL COMPENSATION,"","KUNDANIS, GEORGE",01/01/13,01/02/13,DEPUTY CHIEF OF STAFF,958.33,2012,"","","","KUNDANIS, GEORGE"
,OFFICE OF THE MINORITY LEADER,2013Q1,PERSONNEL COMPENSATION,"","LAWRENCE, JOHN A",01/01/13,01/02/13,CHIEF OF STAFF,958.33,2012,"","","","LAWRENCE, JOHN A"
,OFFICE OF THE MINORITY LEADER,2013Q1,PERSONNEL COMPENSATION,"","LIZARRAGA, JAIME E",01/01/13,01/02/13,SR ADV & DIR OF MEMBER SVC,886.79,2012,"","","","LIZARRAGA, JAIME E"
,OFFICE OF THE MINORITY LEADER,2013Q1,PERSONNEL COMPENSATION,"","LONG,MICHAEL G",01/01/13,01/02/13,DEPUTY DIR OF MEMBER SVCS,416.67,2012,"","","","LONG,MICHAEL G"
,OFFICE OF THE MINORITY LEADER,2013Q1,PERSONNEL COMPENSATION,"","MAHR,THOMAS",01/01/13,01/02/13,POLICY DIRECTOR,660.00,2012,"","","","MAHR,THOMAS"
,OFFICE OF THE MINORITY LEADER,2013Q1,PERSONNEL COMPENSATION,"","MANGRUM, PEARL J",01/01/13,01/02/13,FINANCIAL ADMINISTRATOR,286.11,2012,"","","","MANGRUM, PEARL J"
,OFFICE OF THE MINORITY LEADER,2013Q1,PERSONNEL COMPENSATION,"","MEDLIN,MELINDA L",01/01/13,01/02/13,DIRECTOR OF SCHEDULING,796.60,2012,"","","","MEDLIN,MELINDA L"
,OFFICE OF THE MINORITY LEADER,2013Q1,PERSONNEL COMPENSATION,"","MELTZER,RICHARD",01/01/13,01/02/13,POLICY DIRECTOR,958.33,2012,"","","","MELTZER,RICHARD"
,OFFICE OF THE MINORITY LEADER,2013Q1,PERSONNEL COMPENSATION,"","MERZ, JULIE E",01/01/13,01/02/13,DIR OF MEMBER SERVICES,555.55,2012,"","","","MERZ, JULIE E"
,OFFICE OF THE MINORITY LEADER,2013Q1,PERSONNEL COMPENSATION,"","MILLER,AMY M",01/01/13,01/02/13,SENIOR ADVISOR,555.56,2012,"","","","MILLER,AMY M"
,OFFICE OF THE MINORITY LEADER,2013Q1,PERSONNEL COMPENSATION,"","O'NEILL, CATLIN W",01/01/13,01/02/13,CHIEF OF STAFF,416.67,2012,"","","","O'NEILL, CATLIN W"
,OFFICE OF THE MINORITY LEADER,2013Q1,PERSONNEL COMPENSATION,"","PARDUE, LAURA E",01/01/13,01/02/13,DEPUTY DIR.- FL OPERATIONS,694.44,2012,"","","","PARDUE, LAURA E"
,OFFICE OF THE MINORITY LEADER,2013Q1,PERSONNEL COMPENSATION,"","PARKER, WYNDEE R",01/01/13,01/02/13,SENIOR POLICY ADVISOR,958.33,2012,"","","","PARKER, WYNDEE R"
,OFFICE OF THE MINORITY LEADER,2013Q1,PERSONNEL COMPENSATION,"","PATTI,VERNA A",01/01/13,01/02/13,DISTRIC SCHEDULER,66.67,2012,"","","","PATTI,VERNA A"
,OFFICE OF THE MINORITY LEADER,2013Q1,PERSONNEL COMPENSATION,"","POWELL,JONATHAN M",01/01/13,01/02/13,DEPUTY SPEECHWRITER,444.44,2012,"","","","POWELL,JONATHAN M"
,OFFICE OF THE MINORITY LEADER,2013Q1,PERSONNEL COMPENSATION,"","PRICE, REVA B",01/01/13,01/02/13,OUTREACH DIRECTOR & ADV,709.43,2012,"","","","PRICE, REVA B"
,OFFICE OF THE MINORITY LEADER,2013Q1,PERSONNEL COMPENSATION,"","PRIMUS, WENDELL E",01/01/13,01/02/13,SENIOR POLICY ADVISOR,958.33,2012,"","","","PRIMUS, WENDELL E"
,OFFICE OF THE MINORITY LEADER,2013Q1,PERSONNEL COMPENSATION,"","REPKO,MARY F",01/01/13,01/02/13,SENIOR POLICY ADVISOR,732.22,2012,"","","","REPKO,MARY F"
,OFFICE OF THE MINORITY LEADER,2013Q1,PERSONNEL COMPENSATION,"","ROLLAND,STACEY L",01/01/13,01/02/13,POLICY ADVISOR -TAX,666.67,2012,"","","","ROLLAND,STACEY L"
,OFFICE OF THE MINORITY LEADER,2013Q1,PERSONNEL COMPENSATION,"","ROMICK, BRIAN",01/01/13,01/02/13,MEMBER SERVICES DIRECTOR,798.89,2012,"","","","ROMICK, BRIAN"
,OFFICE OF THE MINORITY LEADER,2013Q1,PERSONNEL COMPENSATION,"","SANCHEZ, CARLOS S",01/01/13,01/02/13,PRESS ADVISOR,444.44,2012,"","","","SANCHEZ, CARLOS S"
,OFFICE OF THE MINORITY LEADER,2013Q1,PERSONNEL COMPENSATION,"","SANCHEZ, CARLOS S",01/01/13,01/02/13,PRESS ADVISOR,444.44,2012,"","","","SANCHEZ, CARLOS S"
,OFFICE OF THE MINORITY LEADER,2013Q1,PERSONNEL COMPENSATION,"","SHAKIR,FAIZ R",01/01/13,01/02/13,DIR OF NEW MEDIA & SR ADV,750.00,2012,"","","","SHAKIR,FAIZ R"
,OFFICE OF THE MINORITY LEADER,2013Q1,PERSONNEL COMPENSATION,"","SINGLETARY, BARVETTA",01/01/13,01/02/13,POLICY DIRECTOR,738.89,2012,"","","","SINGLETARY, BARVETTA"
,OFFICE OF THE MINORITY LEADER,2013Q1,PERSONNEL COMPENSATION,"","SKEWES-COX,CHRISTINA J",01/01/13,01/02/13,ADVANCE DIRECTOR,444.44,2012,"","","","SKEWES-COX,CHRISTINA J"
,OFFICE OF THE MINORITY LEADER,2013Q1,PERSONNEL COMPENSATION,"","SKEWES-COX,CHRISTINA J",12/01/12,12/01/12,ADVANCE DIRECTOR (OTHER COMPENSATION),"6,666.67",2012,"","","","SKEWES-COX,CHRISTINA J"
,OFFICE OF THE MINORITY LEADER,2013Q1,PERSONNEL COMPENSATION,"","SMITH,KELSEY L",01/01/13,01/02/13,DEPUTY DIRECTOR OF SCHEDULING,252.78,2012,"","","","SMITH,KELSEY L"
,OFFICE OF THE MINORITY LEADER,2013Q1,PERSONNEL COMPENSATION,"","SMITH,KELSEY L",12/01/12,12/31/12,DEPUTY DIRECTOR OF SCHEDULING (OVERTIME),"1,501.16",2012,"","","","SMITH,KELSEY L"
,OFFICE OF THE MINORITY LEADER,2013Q1,PERSONNEL COMPENSATION,"","STIVERS, JONATHAN",01/01/13,01/02/13,SENIOR ADVISOR,777.78,2012,"","","","STIVERS, JONATHAN"
,OFFICE OF THE MINORITY LEADER,2013Q1,PERSONNEL COMPENSATION,"","SULLIVAN, BARRY K",01/01/13,01/02/13,CHIEF FLOOR SERVICE (MIN),958.33,2012,"","","","SULLIVAN, BARRY K"
,OFFICE OF THE MINORITY LEADER,2013Q1,PERSONNEL COMPENSATION,"","SURGEON,BINA G",01/01/13,01/02/13,SPECIAL ASST TO THE LEADER,388.89,2012,"","","","SURGEON,BINA G"
,OFFICE OF THE MINORITY LEADER,2013Q1,PERSONNEL COMPENSATION,"","TECKLENBURG, MICHAEL H",01/01/13,01/02/13,COUNSEL,722.22,2012,"","","","TECKLENBURG, MICHAEL H"
,OFFICE OF THE MINORITY LEADER,2013Q1,PERSONNEL COMPENSATION,"","UENG,STEPHANIE L",01/01/13,01/02/13,OUTREACH ADVISOR,304.03,2012,"","","","UENG,STEPHANIE L"
,OFFICE OF THE MINORITY LEADER,2013Q1,PERSONNEL COMPENSATION,"","UENG,STEPHANIE L",12/01/12,12/01/12,OUTREACH ADVISOR (OTHER COMPENSATION),"4,560.50",2012,"","","","UENG,STEPHANIE L"
,OFFICE OF THE MINORITY LEADER,2013Q1,PERSONNEL COMPENSATION,"","WATKINS, YELBERTON R",01/01/13,01/02/13,CHIEF OF STAFF,916.67,2012,"","","","WATKINS, YELBERTON R"
,OFFICE OF THE MINORITY LEADER,2013Q1,PERSONNEL COMPENSATION,"","WEST,JULIUS L",01/01/13,01/02/13,DISTRICT ASSISTANT,250.00,2012,"","","","WEST,JULIUS L"
,OFFICE OF THE MINORITY LEADER,2013Q1,PERSONNEL COMPENSATION,"","WILEDEN,LYDIA",01/01/13,01/02/13,STAFF ASST/PERSONAL CORR,183.33,2012,"","","","WILEDEN,LYDIA"
,OFFICE OF THE MINORITY LEADER,2013Q1,PERSONNEL COMPENSATION,"","WILEDEN,LYDIA",12/01/12,12/31/12,STAFF ASST/PERSONAL CORR (OVERTIME),"2,868.72",2012,"","","","WILEDEN,LYDIA"
,OFFICE OF THE MINORITY LEADER,2013Q1,PERSONNEL COMPENSATION,"","WOLTERS, KATE",01/01/13,01/02/13,PERSONAL ASSISTANT,858.81,2012,"","","","WOLTERS, KATE"
,OFFICE OF THE MINORITY LEADER,2013Q1,TRAVEL,01-18,"WOLTERS, KATE",12/27/12,12/27/12,COMMERCIAL TRANSPORTATION,816.10,2012,AP,Accounts payable,00602036,"WOLTERS, KATE"
,OFFICE OF THE MINORITY LEADER,2013Q1,TRAVEL,01-18,"LIZARRAGA, JAIME E",12/11/12,12/11/12,TAXI/PARKING/TOLLS,19.00,2012,AP,Accounts payable,00602041,"LIZARRAGA, JAIME E"
,OFFICE OF THE MINORITY LEADER,2013Q1,TRAVEL,01-18,"STIVERS, JONATHAN",11/07/12,12/12/12,TAXI/PARKING/TOLLS,23.50,2012,AP,Accounts payable,00602045,"STIVERS, JONATHAN"
,OFFICE OF THE MINORITY LEADER,2013Q1,TRAVEL,02-01,"BARRY, MARY-KATE",12/06/12,12/31/12,TAXI/PARKING/TOLLS,21.00,2012,AP,Accounts payable,00613980,"BARRY, MARY-KATE"
,OFFICE OF THE MINORITY LEADER,2013Q1,"RENT, COMMUNICATION, UTILITIES",01-17,FEDEX,12/18/12,12/18/12,POSTAGE / COURIER / BOX RENTAL,11.34,2012,AP,Accounts payable,00603972,FEDEX
,OFFICE OF THE MINORITY LEADER,2013Q1,"RENT, COMMUNICATION, UTILITIES",01-17,FEDEX,12/12/12,12/13/12,POSTAGE / COURIER / BOX RENTAL,76.99,2012,AP,Accounts payable,00603976,FEDEX
,OFFICE OF THE MINORITY LEADER,2013Q1,"RENT, COMMUNICATION, UTILITIES",01-17,FEDEX,12/12/12,12/12/12,POSTAGE / COURIER / BOX RENTAL,27.55,2012,AP,Accounts payable,00603979,FEDEX
,OFFICE OF THE MINORITY LEADER,2013Q1,"RENT, COMMUNICATION, UTILITIES",01-17,FEDEX,12/22/12,12/22/12,POSTAGE / COURIER / BOX RENTAL,4.82,2012,AP,Accounts payable,00603983,FEDEX
,OFFICE OF THE MINORITY LEADER,2013Q1,"RENT, COMMUNICATION, UTILITIES",01-25,CITI PCARD-TIV TIVO SERVICE,11/29/12,12/28/12,RECORDING (OUTSIDE),45.38,2012,AP,Accounts payable,00610459,CITI PCARD-TIV TIVO SERVICE
,OFFICE OF THE MINORITY LEADER,2013Q1,"RENT, COMMUNICATION, UTILITIES",02-01,FEDEX,12/31/12,12/31/12,POSTAGE / COURIER / BOX RENTAL,113.24,2012,AP,Accounts payable,00613990,FEDEX
,OFFICE OF THE MINORITY LEADER,2013Q1,OTHER SERVICES,01-10,BERNARD RAIMO,12/01/12,12/31/12,CONSULTANT CONTRACT SERVICE,"7,628.00",2012,AP,Accounts payable,00600512,BERNARD RAIMO
,OFFICE OF THE MINORITY LEADER,2013Q1,OTHER SERVICES,02-01,GSL SOLUTIONS,12/01/12,12/31/12,"WEB DEV HST,EMAIL & RLTD SERV",75.00,2012,AP,Accounts payable,00613987,GSL SOLUTIONS
,OFFICE OF THE MINORITY LEADER,2013Q1,SUPPLIES AND MATERIALS,01-17,CRYSTAL SPRINGS,12/01/12,12/31/12,FOOD & BEVERAGE,205.27,2012,AP,Accounts payable,00603986,CRYSTAL SPRINGS
,OFFICE OF THE MINORITY LEADER,2013Q1,SUPPLIES AND MATERIALS,01-18,"O'NEILL, CATLIN W",01/02/13,01/02/13,FOOD & BEVERAGE,204.66,2012,AP,Accounts payable,00602039,"O'NEILL, CATLIN W"
,OFFICE OF THE MINORITY LEADER,2013Q1,SUPPLIES AND MATERIALS,01-22,BURRELLESLUCE INFORMATION SERVICES,12/01/12,12/31/12,PUBLICATIONS/REFERENCE MAT'L,506.41,2012,AP,Accounts payable,00605881,BURRELLESLUCE INFORMATION SERVICES
,OFFICE OF THE MINORITY LEADER,2013Q1,SUPPLIES AND MATERIALS,01-25,CITI PCARD-CORNER BAKERY,11/29/12,12/28/12,FOOD & BEVERAGE,650.94,2012,AP,Accounts payable,00610459,CITI PCARD-CORNER BAKERY
,OFFICE OF THE MINORITY LEADER,2013Q1,SUPPLIES AND MATERIALS,01-25,CITI PCARD-COSI,11/29/12,12/28/12,FOOD & BEVERAGE,175.33,2012,AP,Accounts payable,00610459,CITI PCARD-COSI
,OFFICE OF THE MINORITY LEADER,2013Q1,SUPPLIES AND MATERIALS,01-25,CITI PCARD-DUNKIN,11/29/12,12/28/12,FOOD & BEVERAGE,31.96,2012,AP,Accounts payable,00610459,CITI PCARD-DUNKIN
,OFFICE OF THE MINORITY LEADER,2013Q1,SUPPLIES AND MATERIALS,01-25,CITI PCARD-GIANT FOOD INC,11/29/12,12/28/12,FOOD & BEVERAGE,70.89,2012,AP,Accounts payable,00610459,CITI PCARD-GIANT FOOD INC
,OFFICE OF THE MINORITY LEADER,2013Q1,SUPPLIES AND MATERIALS,01-25,CITI PCARD-JOHNSON S FLWR & GRDN,11/29/12,12/28/12,HABITATION EXPENSE,63.58,2012,AP,Accounts payable,00610459,CITI PCARD-JOHNSON S FLWR & GRDN
,OFFICE OF THE MINORITY LEADER,2013Q1,SUPPLIES AND MATERIALS,01-25,CITI PCARD-TARGET,11/29/12,12/28/12,FOOD & BEVERAGE,265.41,2012,AP,Accounts payable,00610459,CITI PCARD-TARGET
,OFFICE OF THE MINORITY LEADER,2013Q1,SUPPLIES AND MATERIALS,01-25,CITI PCARD-WHOLEFDS PST,11/29/12,12/28/12,FOOD & BEVERAGE,303.78,2012,AP,Accounts payable,00610459,CITI PCARD-WHOLEFDS PST
,OFFICE OF THE MINORITY LEADER,2013Q1,SUPPLIES AND MATERIALS,01-28,OCCASIONS CATERERS,12/05/12,12/05/12,FOOD & BEVERAGE,"5,396.50",2012,AP,Accounts payable,00611310,OCCASIONS CATERERS
,OFFICE OF THE MINORITY LEADER,2013Q1,SUPPLIES AND MATERIALS,01-28,OCCASIONS CATERERS,12/05/12,12/05/12,FOOD & BEVERAGE,"8,674.50",2012,AP,Accounts payable,00611311,OCCASIONS CATERERS
,OFFICE OF THE MINORITY LEADER,2013Q1,SUPPLIES AND MATERIALS,01-28,OCCASIONS CATERERS,12/13/12,12/13/12,FOOD & BEVERAGE,136.50,2012,AP,Accounts payable,00611312,OCCASIONS CATERERS
,OFFICE OF THE MINORITY LEADER,2013Q1,SUPPLIES AND MATERIALS,01-28,OCCASIONS CATERERS,12/19/12,12/19/12,FOOD & BEVERAGE,428.00,2012,AP,Accounts payable,00611313,OCCASIONS CATERERS
,OFFICE OF THE MINORITY LEADER,2013Q1,SUPPLIES AND MATERIALS,02-01,SOUTHWEST DISTRIBUTION INC,01/01/13,03/31/13,PUBLICATIONS/REFERENCE MAT'L,"3,639.65",2012,AP,Accounts payable,00615211,SOUTHWEST DISTRIBUTION INC
,OFFICE OF THE MAJORITY WHIP,2013Q1,PERSONNEL COMPENSATION,"","BARNES,FREDERIC W",01/01/13,01/02/13,FLOOR ASSISTANT,266.67,2012,"","","","BARNES,FREDERIC W"
,OFFICE OF THE MAJORITY WHIP,2013Q1,PERSONNEL COMPENSATION,"","BERRY,TIMOTHY J",01/01/13,01/02/13,CHIEF OF STAFF,958.33,2012,"","","","BERRY,TIMOTHY J"
,OFFICE OF THE MAJORITY WHIP,2013Q1,PERSONNEL COMPENSATION,"","BUCHANAN,NATALIE L",01/01/13,01/02/13,DIR OF MEMBER SERVICES,500.00,2012,"","","","BUCHANAN,NATALIE L"
,OFFICE OF THE MAJORITY WHIP,2013Q1,PERSONNEL COMPENSATION,"","CAREY,BRITTANY M",01/01/13,01/02/13,STAFF ASSISTANT,250.00,2012,"","","","CAREY,BRITTANY M"
,OFFICE OF THE MAJORITY WHIP,2013Q1,PERSONNEL COMPENSATION,"","DIXON, KELLY A",01/01/13,01/02/13,DEPUTY DIRECTOR OF FLOOR OPERA,533.33,2012,"","","","DIXON, KELLY A"
,OFFICE OF THE MAJORITY WHIP,2013Q1,PERSONNEL COMPENSATION,"","ELLIOTT,ERICA L",01/01/13,01/02/13,DIRECTOR OF COMMUNICATIONS,716.67,2012,"","","","ELLIOTT,ERICA L"
,OFFICE OF THE MAJORITY WHIP,2013Q1,PERSONNEL COMPENSATION,"","HENEHAN, EMILY A",01/01/13,01/02/13,POLICY ADVISOR,500.00,2012,"","","","HENEHAN, EMILY A"
,OFFICE OF THE MAJORITY WHIP,2013Q1,PERSONNEL COMPENSATION,"","HOWARD,BENJAMIN R",01/01/13,01/02/13,FLOOR ASSISTANT,300.00,2012,"","","","HOWARD,BENJAMIN R"
,OFFICE OF THE MAJORITY WHIP,2013Q1,PERSONNEL COMPENSATION,"","LOFRANCO, JUSTIN V",01/01/13,01/02/13,DIGITAL DIRECTOR,383.33,2012,"","","","LOFRANCO, JUSTIN V"
,OFFICE OF THE MAJORITY WHIP,2013Q1,PERSONNEL COMPENSATION,"","LONG,MICHAEL P",01/01/13,01/02/13,PRESS SECRETARY,383.33,2012,"","","","LONG,MICHAEL P"
,OFFICE OF THE MAJORITY WHIP,2013Q1,PERSONNEL COMPENSATION,"","MCCLELLAND, WESLEY R",01/01/13,01/02/13,POLICY ADVISOR,500.00,2012,"","","","MCCLELLAND, WESLEY R"
,OFFICE OF THE MAJORITY WHIP,2013Q1,PERSONNEL COMPENSATION,"","METTLER,ASHLEY",01/01/13,01/02/13,SENIOR STAFF ASSISTANT,250.00,2012,"","","","METTLER,ASHLEY"
,OFFICE OF THE MAJORITY WHIP,2013Q1,PERSONNEL COMPENSATION,"","MIN, JAMES B",01/01/13,01/02/13,DEPUTY CHIEF OF STAFF,333.33,2012,"","","","MIN, JAMES B"
,OFFICE OF THE MAJORITY WHIP,2013Q1,PERSONNEL COMPENSATION,"","MOORE,STEVEN E",01/01/13,01/02/13,CHIEF OF STAFF TO THE DEP WHIP,333.33,2012,"","","","MOORE,STEVEN E"
,OFFICE OF THE MAJORITY WHIP,2013Q1,PERSONNEL COMPENSATION,"","PATAKI,TIMOTHY A",01/01/13,01/02/13,SPECIAL ASST TO CHIEF DEPUTY W,166.67,2012,"","","","PATAKI,TIMOTHY A"
,OFFICE OF THE MAJORITY WHIP,2013Q1,PERSONNEL COMPENSATION,"","PINKOS,STEPHEN M",01/01/13,01/02/13,POLICY DIR AND GENERAL COUNSEL,833.33,2012,"","","","PINKOS,STEPHEN M"
,OFFICE OF THE MAJORITY WHIP,2013Q1,PERSONNEL COMPENSATION,"","SPARKS, MATTHEW E",01/01/13,01/02/13,DEPUTY PRESS SECRETARY,266.67,2012,"","","","SPARKS, MATTHEW E"
,OFFICE OF THE MAJORITY WHIP,2013Q1,PERSONNEL COMPENSATION,"","STIPICEVIC, JOHN A",01/01/13,01/02/13,DIRECTOR OF FLOOR OPERATIONS,716.67,2012,"","","","STIPICEVIC, JOHN A"
,OFFICE OF THE MAJORITY WHIP,2013Q1,PERSONNEL COMPENSATION,"","THOMSON, KRISTIN",01/01/13,01/02/13,EXECUTIVE ASSISTANT,333.33,2012,"","","","THOMSON, KRISTIN"
,OFFICE OF THE MAJORITY WHIP,2013Q1,PERSONNEL COMPENSATION,"","WORTH,BRIAN A",01/01/13,01/02/13,DIRECTOR OF COALITIONS,216.67,2012,"","","","WORTH,BRIAN A"
,OFFICE OF THE MAJORITY WHIP,2013Q1,TRAVEL,01-14,"LOFRANCO, JUSTIN V",12/07/12,12/08/12,TRAVEL SUBSISTENCE,473.10,2012,AP,Accounts payable,00600795,"LOFRANCO, JUSTIN V"
,OFFICE OF THE MAJORITY WHIP,2013Q1,PRINTING AND REPRODUCTION,01-22,ICONSTITUENT LLC,11/16/12,12/31/12,ADVERTISEMENTS,"6,000.00",2012,AP,Accounts payable,00605687,ICONSTITUENT LLC
,OFFICE OF THE MAJORITY WHIP,2013Q1,SUPPLIES AND MATERIALS,01-14,"THOMSON, KRISTIN",12/20/12,12/20/12,FOOD & BEVERAGE,13.52,2012,AP,Accounts payable,00600703,"THOMSON, KRISTIN"
,OFFICE OF THE MAJORITY WHIP,2013Q1,SUPPLIES AND MATERIALS,01-14,"CAREY, BRITTANY M",12/29/12,12/29/12,FOOD & BEVERAGE,171.80,2012,AP,Accounts payable,00600705,"CAREY, BRITTANY M"
,OFFICE OF THE MAJORITY WHIP,2013Q1,SUPPLIES AND MATERIALS,01-14,TV EYES INC,01/02/13,01/02/15,PUBLICATIONS/REFERENCE MAT'L,"2,400.00",2012,AP,Accounts payable,00600713,TV EYES INC
,OFFICE OF THE MAJORITY WHIP,2013Q1,SUPPLIES AND MATERIALS,01-14,DEER PARK WATER,11/27/12,12/26/12,WATER,290.53,2012,AP,Accounts payable,00600787,DEER PARK WATER
,OFFICE OF THE MAJORITY WHIP,2013Q1,SUPPLIES AND MATERIALS,01-25,CITI PCARD-CHICK-FIL-A,11/29/12,12/28/12,FOOD & BEVERAGE,"5,371.50",2012,AP,Accounts payable,00610459,CITI PCARD-CHICK-FIL-A
,OFFICE OF THE MAJORITY WHIP,2013Q1,SUPPLIES AND MATERIALS,01-25,CITI PCARD-CORNER BAKERY,11/29/12,12/28/12,FOOD & BEVERAGE,275.00,2012,AP,Accounts payable,00610459,CITI PCARD-CORNER BAKERY
,OFFICE OF THE MAJORITY WHIP,2013Q1,SUPPLIES AND MATERIALS,01-25,CITI PCARD-HARRIS TEETER,11/29/12,12/28/12,FOOD & BEVERAGE,38.37,2012,AP,Accounts payable,00610459,CITI PCARD-HARRIS TEETER
,OFFICE OF THE MAJORITY WHIP,2013Q1,SUPPLIES AND MATERIALS,01-25,CITI PCARD-JOE RAGAN S COFFEE,11/29/12,12/28/12,FOOD & BEVERAGE,939.58,2012,AP,Accounts payable,00610459,CITI PCARD-JOE RAGAN S COFFEE
,OFFICE OF THE MAJORITY WHIP,2013Q1,SUPPLIES AND MATERIALS,01-25,CITI PCARD-NEW YORK TIMES DIGITAL,11/29/12,12/28/12,PUBLICATIONS/REFERENCE MAT'L,37.10,2012,AP,Accounts payable,00610459,CITI PCARD-NEW YORK TIMES DIGITAL
,OFFICE OF THE MAJORITY WHIP,2013Q1,SUPPLIES AND MATERIALS,01-25,CITI PCARD-QDOBA,11/29/12,12/28/12,FOOD & BEVERAGE,"2,545.53",2012,AP,Accounts payable,00610459,CITI PCARD-QDOBA
,OFFICE OF THE MAJORITY WHIP,2013Q1,SUPPLIES AND MATERIALS,01-25,CITI PCARD-ZORBA S CAFE,11/29/12,12/28/12,FOOD & BEVERAGE,"2,459.00",2012,AP,Accounts payable,00610459,CITI PCARD-ZORBA S CAFE
,OFFICE OF THE MAJORITY WHIP,2013Q1,SUPPLIES AND MATERIALS,02-14,LEXIS-NEXIS,12/01/12,12/31/12,PUBLICATIONS/REFERENCE MAT'L,"7,500.00",2012,AP,Accounts payable,00621230,LEXIS-NEXIS
,OFFICE OF THE DEMOCRATIC WHIP,2013Q1,OTHER SERVICES,01-31,CITIBANK P CARD,11/29/12,12/28/12,LAUNDRY SERVICES,76.40,2012,AP,Accounts payable,00617399,CITIBANK P CARD
,OFFICE OF THE DEMOCRATIC WHIP,2013Q1,SUPPLIES AND MATERIALS,01-31,CAPITOLHOST,11/30/12,11/30/12,FOOD & BEVERAGE,42.30,2012,AP,Accounts payable,00617364,CAPITOLHOST
,OFFICE OF THE DEMOCRATIC WHIP,2013Q1,SUPPLIES AND MATERIALS,01-31,PANERA BREAD COMPANY,11/30/12,11/30/12,FOOD & BEVERAGE,85.75,2012,AP,Accounts payable,00617367,PANERA BREAD COMPANY
,OFFICE OF THE DEMOCRATIC WHIP,2013Q1,SUPPLIES AND MATERIALS,01-31,CAPITOL HOST,11/15/12,11/15/12,FOOD & BEVERAGE,28.20,2012,AP,Accounts payable,00617370,CAPITOL HOST
,OFFICE OF THE DEMOCRATIC WHIP,2013Q1,SUPPLIES AND MATERIALS,01-31,CAPITOLHOST,11/16/12,11/16/12,FOOD & BEVERAGE,84.60,2012,AP,Accounts payable,00617376,CAPITOLHOST
,OFFICE OF THE DEMOCRATIC WHIP,2013Q1,SUPPLIES AND MATERIALS,01-31,PANERA BREAD COMPANY,11/16/12,11/16/12,FOOD & BEVERAGE,152.91,2012,AP,Accounts payable,00617378,PANERA BREAD COMPANY
,OFFICE OF THE DEMOCRATIC WHIP,2013Q1,SUPPLIES AND MATERIALS,01-31,PANERA BREAD COMPANY,11/28/12,11/28/12,FOOD & BEVERAGE,159.91,2012,AP,Accounts payable,00617389,PANERA BREAD COMPANY
,OFFICE OF THE DEMOCRATIC WHIP,2013Q1,SUPPLIES AND MATERIALS,01-31,CAPITOL HOST,11/28/12,11/28/12,FOOD & BEVERAGE,90.00,2012,AP,Accounts payable,00617393,CAPITOL HOST
,OFFICE OF THE DEMOCRATIC WHIP,2013Q1,SUPPLIES AND MATERIALS,01-31,CITIBANK P CARD,11/29/12,12/28/12,FOOD & BEVERAGE,350.75,2012,AP,Accounts payable,00617396,CITIBANK P CARD
,OFFICE OF THE DEMOCRATIC WHIP,2013Q1,SUPPLIES AND MATERIALS,01-31,CITIBANK P CARD,11/29/12,12/28/12,PUBLICATIONS/REFERENCE MAT'L,37.10,2012,AP,Accounts payable,00617398,CITIBANK P CARD
,OFFICE OF THE DEMOCRATIC WHIP,2013Q1,PERSONNEL COMPENSATION,"","COBIA, LINDSEY G",12/01/12,12/31/12,STAFF ASSISTANT (OVERTIME),775.23,2012,"","","","COBIA, LINDSEY G"
,OFFICE OF THE DEMOCRATIC WHIP,2013Q1,PERSONNEL COMPENSATION,"","GENSEMER,ELLIOT J",12/01/12,12/31/12,STAFF ASSISTANT (OVERTIME),868.26,2012,"","","","GENSEMER,ELLIOT J"
,OFFICE OF THE DEMOCRATIC WHIP,2013Q1,OTHER SERVICES,01-25,CITI PCARD-LUSTRE CLEANERS & FORM,11/29/12,12/28/12,LAUNDRY SERVICES,76.40,2012,AP,Accounts payable,00610459,CITI PCARD-LUSTRE CLEANERS & FORM
,OFFICE OF THE DEMOCRATIC WHIP,2013Q1,OTHER SERVICES,01-30,CITIBANK P CARD,09/29/12,09/30/12,NON-TECHNOLOGY SERVICE CONTR,-63.97,2012,AP,Accounts payable,00613106,CITIBANK P CARD
,OFFICE OF THE DEMOCRATIC WHIP,2013Q1,OTHER SERVICES,01-31,CITIBANK P CARD,11/29/12,12/28/12,LAUNDRY SERVICES,-76.40,2012,AP,Accounts payable,00617399,CITIBANK P CARD
,OFFICE OF THE DEMOCRATIC WHIP,2013Q1,SUPPLIES AND MATERIALS,01-25,CITI PCARD-HELLO CUPCAKE,11/29/12,12/28/12,FOOD & BEVERAGE,166.35,2012,AP,Accounts payable,00610459,CITI PCARD-HELLO CUPCAKE
,OFFICE OF THE DEMOCRATIC WHIP,2013Q1,SUPPLIES AND MATERIALS,01-25,CITI PCARD-NEW YORK TIMES DIGITAL,11/29/12,12/28/12,PUBLICATIONS/REFERENCE MAT'L,37.10,2012,AP,Accounts payable,00610459,CITI PCARD-NEW YORK TIMES DIGITAL
,OFFICE OF THE DEMOCRATIC WHIP,2013Q1,SUPPLIES AND MATERIALS,01-25,CITI PCARD-STARBUCKS,11/29/12,12/28/12,FOOD & BEVERAGE,61.38,2012,AP,Accounts payable,00610459,CITI PCARD-STARBUCKS
,OFFICE OF THE DEMOCRATIC WHIP,2013Q1,SUPPLIES AND MATERIALS,01-25,"CITI PCARD-WE, THE PIZZA",11/29/12,12/28/12,FOOD & BEVERAGE,123.02,2012,AP,Accounts payable,00610459,"CITI PCARD-WE, THE PIZZA"
,OFFICE OF THE DEMOCRATIC WHIP,2013Q1,SUPPLIES AND MATERIALS,01-30,CITIBANK P CARD,09/29/12,09/30/12,FOOD & BEVERAGE,-176.87,2012,AP,Accounts payable,00613118,CITIBANK P CARD
,OFFICE OF THE DEMOCRATIC WHIP,2013Q1,SUPPLIES AND MATERIALS,01-30,CITIBANK P CARD,09/29/12,09/30/12,PUBLICATIONS/REFERENCE MAT'L,-236.10,2012,AP,Accounts payable,00613127,CITIBANK P CARD
,OFFICE OF THE DEMOCRATIC WHIP,2013Q1,SUPPLIES AND MATERIALS,01-31,CAPITOLHOST,11/30/12,11/30/12,FOOD & BEVERAGE,-42.30,2012,AP,Accounts payable,00617364,CAPITOLHOST
,OFFICE OF THE DEMOCRATIC WHIP,2013Q1,SUPPLIES AND MATERIALS,01-31,PANERA BREAD COMPANY,11/30/12,11/30/12,FOOD & BEVERAGE,-85.75,2012,AP,Accounts payable,00617367,PANERA BREAD COMPANY
,OFFICE OF THE DEMOCRATIC WHIP,2013Q1,SUPPLIES AND MATERIALS,01-31,CAPITOL HOST,11/15/12,11/15/12,FOOD & BEVERAGE,-28.20,2012,AP,Accounts payable,00617370,CAPITOL HOST
,OFFICE OF THE DEMOCRATIC WHIP,2013Q1,SUPPLIES AND MATERIALS,01-31,CAPITOLHOST,11/16/12,11/16/12,FOOD & BEVERAGE,-84.60,2012,AP,Accounts payable,00617376,CAPITOLHOST
,OFFICE OF THE DEMOCRATIC WHIP,2013Q1,SUPPLIES AND MATERIALS,01-31,PANERA BREAD COMPANY,11/16/12,11/16/12,FOOD & BEVERAGE,-152.91,2012,AP,Accounts payable,00617378,PANERA BREAD COMPANY
,OFFICE OF THE DEMOCRATIC WHIP,2013Q1,SUPPLIES AND MATERIALS,01-31,PANERA BREAD COMPANY,11/28/12,11/28/12,FOOD & BEVERAGE,-159.91,2012,AP,Accounts payable,00617389,PANERA BREAD COMPANY
,OFFICE OF THE DEMOCRATIC WHIP,2013Q1,SUPPLIES AND MATERIALS,01-31,CAPITOL HOST,11/28/12,11/28/12,FOOD & BEVERAGE,-90.00,2012,AP,Accounts payable,00617393,CAPITOL HOST
,OFFICE OF THE DEMOCRATIC WHIP,2013Q1,SUPPLIES AND MATERIALS,01-31,CITIBANK P CARD,11/29/12,12/28/12,FOOD & BEVERAGE,-350.75,2012,AP,Accounts payable,00617396,CITIBANK P CARD
,OFFICE OF THE DEMOCRATIC WHIP,2013Q1,SUPPLIES AND MATERIALS,01-31,CITIBANK P CARD,11/29/12,12/28/12,PUBLICATIONS/REFERENCE MAT'L,-37.10,2012,AP,Accounts payable,00617398,CITIBANK P CARD
,DEMOCRATIC CAUCUS,2013Q1,PERSONNEL COMPENSATION,"","ANDRES,DON CHRIS M",01/01/13,01/02/13,STAFF ASSISTANT,305.56,2012,"","","","ANDRES,DON CHRIS M"
,DEMOCRATIC CAUCUS,2013Q1,PERSONNEL COMPENSATION,"","AVERY,SAMUEL R",01/01/13,01/02/13,PRESS ASSISTANT,"-2,411.11",2012,"","","","AVERY,SAMUEL R"
,DEMOCRATIC CAUCUS,2013Q1,PERSONNEL COMPENSATION,"","AVERY,SAMUEL R",01/01/13,01/02/13,PRESS ASSISTANT,"2,683.33",2012,"","","","AVERY,SAMUEL R"
,DEMOCRATIC CAUCUS,2013Q1,PERSONNEL COMPENSATION,"","BRACHMAN, ELLIS A",01/01/13,01/02/13,COMMUNICATIONS DIRECTOR,890.00,2012,"","","","BRACHMAN, ELLIS A"
,DEMOCRATIC CAUCUS,2013Q1,PERSONNEL COMPENSATION,"","BRACHMAN, ELLIS A",01/01/13,01/02/13,COMMUNICATIONS DIRECTOR (OTHER COMPENSATION),"3,115.00",2012,"","","","BRACHMAN, ELLIS A"
,DEMOCRATIC CAUCUS,2013Q1,PERSONNEL COMPENSATION,"","DAGADAKIS,STAMATIOS",01/01/13,01/02/13,DEPUTY EXEC DIRECTOR,"-7,000.00",2012,"","","","DAGADAKIS,STAMATIOS"
,DEMOCRATIC CAUCUS,2013Q1,PERSONNEL COMPENSATION,"","DAGADAKIS,STAMATIOS",01/01/13,01/02/13,DEPUTY EXEC DIRECTOR,"7,916.67",2012,"","","","DAGADAKIS,STAMATIOS"
,DEMOCRATIC CAUCUS,2013Q1,PERSONNEL COMPENSATION,"","ESPARZA DIGGS,IRMA Y",01/01/13,01/02/13,EXECUTIVE DIRECTOR,902.80,2012,"","","","ESPARZA DIGGS,IRMA Y"
,DEMOCRATIC CAUCUS,2013Q1,PERSONNEL COMPENSATION,"","ESPARZA DIGGS,IRMA Y",01/01/13,01/02/13,EXECUTIVE DIRECTOR (OTHER COMPENSATION),"5,416.80",2012,"","","","ESPARZA DIGGS,IRMA Y"
,DEMOCRATIC CAUCUS,2013Q1,PERSONNEL COMPENSATION,"","GLEESON,JAMES M",01/01/13,01/02/13,PRESS SEC FOR THE VICE CHAIR,276.39,2012,"","","","GLEESON,JAMES M"
,DEMOCRATIC CAUCUS,2013Q1,PERSONNEL COMPENSATION,"","GRADY,KATHERINE K",01/01/13,01/02/13,POLICY & OUTREACH COORDINATOR,388.89,2012,"","","","GRADY,KATHERINE K"
,DEMOCRATIC CAUCUS,2013Q1,PERSONNEL COMPENSATION,"","HAWES-SAUNDERS,DONNICA L",01/01/13,01/02/13,STAFF ASSISTANT,305.56,2012,"","","","HAWES-SAUNDERS,DONNICA L"
,DEMOCRATIC CAUCUS,2013Q1,PERSONNEL COMPENSATION,"","JAWORSKI, KIMBERLY H",01/01/13,01/02/13,EVENTS AND PROJECTS COORDINATO,655.56,2012,"","","","JAWORSKI, KIMBERLY H"
,DEMOCRATIC CAUCUS,2013Q1,PERSONNEL COMPENSATION,"","KISSINGER,JUSTIN A",12/01/12,12/03/12,COUNSEL (OTHER COMPENSATION),"3,034.72",2012,"","","","KISSINGER,JUSTIN A"
,DEMOCRATIC CAUCUS,2013Q1,PERSONNEL COMPENSATION,"","LAWSON, ANITA S",01/01/13,01/02/13,FINANCIAL ADMINISTRATOR,132.78,2012,"","","","LAWSON, ANITA S"
,DEMOCRATIC CAUCUS,2013Q1,PERSONNEL COMPENSATION,"","MCMAHON,KYLE A",01/01/13,01/02/13,PRESS ASSISTANT,"-2,411.11",2012,"","","","MCMAHON,KYLE A"
,DEMOCRATIC CAUCUS,2013Q1,PERSONNEL COMPENSATION,"","MCMAHON,KYLE A",01/01/13,01/02/13,PRESS ASSISTANT,"2,738.89",2012,"","","","MCMAHON,KYLE A"
,DEMOCRATIC CAUCUS,2013Q1,PERSONNEL COMPENSATION,"","PERONACE,ANTONIO",01/01/13,01/02/13,CREATIVE DIRECTOR,"-6,222.22",2012,"","","","PERONACE,ANTONIO"
,DEMOCRATIC CAUCUS,2013Q1,PERSONNEL COMPENSATION,"","PERONACE,ANTONIO",01/01/13,01/02/13,CREATIVE DIRECTOR,"7,066.66",2012,"","","","PERONACE,ANTONIO"
,DEMOCRATIC CAUCUS,2013Q1,PERSONNEL COMPENSATION,"","PLATT,ANDREW J",01/01/13,01/02/13,RESEARCH & TECHNOLOGY ASST,327.78,2012,"","","","PLATT,ANDREW J"
,DEMOCRATIC CAUCUS,2013Q1,OTHER SERVICES,01-04,BOX INC,10/27/12,11/26/12,TECHNOLOGY SERVICE CONTRACTS,100.00,2012,AP,Accounts payable,00593279,BOX INC
,DEMOCRATIC CAUCUS,2013Q1,OTHER SERVICES,01-15,BOX INC,11/27/12,12/26/12,TECHNOLOGY SERVICE CONTRACTS,100.00,2012,AP,Accounts payable,00593287,BOX INC
,DEMOCRATIC CAUCUS,2013Q1,OTHER SERVICES,01-25,CITI PCARD-CAPITOL VALET,11/29/12,12/28/12,LAUNDRY SERVICES,220.00,2012,AP,Accounts payable,00610459,CITI PCARD-CAPITOL VALET
,DEMOCRATIC CAUCUS,2013Q1,SUPPLIES AND MATERIALS,01-25,CITI PCARD-CAPITAL C STOR,11/29/12,12/28/12,FOOD & BEVERAGE,31.03,2012,AP,Accounts payable,00610459,CITI PCARD-CAPITAL C STOR
,DEMOCRATIC CAUCUS,2013Q1,SUPPLIES AND MATERIALS,01-25,CITI PCARD-COSI,11/29/12,12/28/12,FOOD & BEVERAGE,"1,258.14",2012,AP,Accounts payable,00610459,CITI PCARD-COSI
,DEMOCRATIC CAUCUS,2013Q1,SUPPLIES AND MATERIALS,01-25,CITI PCARD-DREAMZ CATERING,11/29/12,12/28/12,FOOD & BEVERAGE,"2,578.75",2012,AP,Accounts payable,00610459,CITI PCARD-DREAMZ CATERING
,DEMOCRATIC CAUCUS,2013Q1,SUPPLIES AND MATERIALS,01-25,CITI PCARD-DUNKIN,11/29/12,12/28/12,FOOD & BEVERAGE,91.97,2012,AP,Accounts payable,00610459,CITI PCARD-DUNKIN
,DEMOCRATIC CAUCUS,2013Q1,SUPPLIES AND MATERIALS,01-25,CITI PCARD-HARRIS TEETER,11/29/12,12/28/12,FOOD & BEVERAGE,"1,486.42",2012,AP,Accounts payable,00610459,CITI PCARD-HARRIS TEETER
,DEMOCRATIC CAUCUS,2013Q1,SUPPLIES AND MATERIALS,02-05,LEXIS-NEXIS,12/01/12,12/31/12,PUBLICATIONS/REFERENCE MAT'L,416.67,2012,AP,Accounts payable,00616102,LEXIS-NEXIS
,DEMOCRATIC CAUCUS,2013Q1,SUPPLIES AND MATERIALS,02-14,DEER PARK,12/31/12,12/31/12,WATER,76.97,2012,AP,Accounts payable,00622106,DEER PARK
,REPUBLICAN CONFERENCE,2013Q1,PERSONNEL COMPENSATION,"","BAKER,GREGORY S",01/01/13,01/02/13,STAFF ASSISTANT,166.67,2012,"","","","BAKER,GREGORY S"
,REPUBLICAN CONFERENCE,2013Q1,PERSONNEL COMPENSATION,"","BEDARD,EDWARD A",01/01/13,01/02/13,STAFF ASSISTANT,166.67,2012,"","","","BEDARD,EDWARD A"
,REPUBLICAN CONFERENCE,2013Q1,PERSONNEL COMPENSATION,"","BETZ, KIMBERLY S",01/01/13,01/02/13,POLICY DIRECTOR,833.33,2012,"","","","BETZ, KIMBERLY S"
,REPUBLICAN CONFERENCE,2013Q1,PERSONNEL COMPENSATION,"","BROWN, CHELSEA E",01/01/13,01/02/13,DIRECTOR OF OPERATIONS,472.22,2012,"","","","BROWN, CHELSEA E"
,REPUBLICAN CONFERENCE,2013Q1,PERSONNEL COMPENSATION,"","COLLIGAN,DYLAN H",01/01/13,01/02/13,STAFF ASSISTANT,183.33,2012,"","","","COLLIGAN,DYLAN H"
,REPUBLICAN CONFERENCE,2013Q1,PERSONNEL COMPENSATION,"","COLLINS,LISA J",01/01/13,01/02/13,POLICY ADVISOR,"1,011.11",2012,"","","","COLLINS,LISA J"
,REPUBLICAN CONFERENCE,2013Q1,PERSONNEL COMPENSATION,"","CONNELL, MARJORIE F",01/01/13,01/02/13,DIRECTOR OF OPERATIONS,444.44,2012,"","","","CONNELL, MARJORIE F"
,REPUBLICAN CONFERENCE,2013Q1,PERSONNEL COMPENSATION,"","HILER,JONATHAN D",01/01/13,01/02/13,POLICY ADVISOR,294.44,2012,"","","","HILER,JONATHAN D"
,REPUBLICAN CONFERENCE,2013Q1,PERSONNEL COMPENSATION,"","KLINGLER,HANS J",01/01/13,01/02/13,DEPUTY CHIEF OF STAFF,804.86,2012,"","","","KLINGLER,HANS J"
,REPUBLICAN CONFERENCE,2013Q1,PERSONNEL COMPENSATION,"","KOENIG,ANDREW D",01/01/13,01/02/13,POLICY DIRECTOR,444.44,2012,"","","","KOENIG,ANDREW D"
,REPUBLICAN CONFERENCE,2013Q1,PERSONNEL COMPENSATION,"","MAKIN, SARAH E",01/01/13,01/02/13,"SR POL ADV, DIR OF COALITIONS",310.19,2012,"","","","MAKIN, SARAH E"
,REPUBLICAN CONFERENCE,2013Q1,PERSONNEL COMPENSATION,"","MURPHY,SHAUGHNESSY P",01/01/13,01/02/13,SENIOR ADVISOR,666.67,2012,"","","","MURPHY,SHAUGHNESSY P"
,REPUBLICAN CONFERENCE,2013Q1,PERSONNEL COMPENSATION,"","PATRU, KATHRYN M",01/01/13,01/02/13,DIR OF MEMBER SERVICES,777.78,2012,"","","","PATRU, KATHRYN M"
,REPUBLICAN CONFERENCE,2013Q1,PERSONNEL COMPENSATION,"","PINEGAR,PHILLIP",01/01/13,01/02/13,STAFF ASSISTANT,166.67,2012,"","","","PINEGAR,PHILLIP"
,REPUBLICAN CONFERENCE,2013Q1,PERSONNEL COMPENSATION,"","POPP, DAVID M",01/01/13,01/02/13,COMMUNICATIONS DIRECTOR,405.56,2012,"","","","POPP, DAVID M"
,REPUBLICAN CONFERENCE,2013Q1,PERSONNEL COMPENSATION,"","QUALTERE,THOMAS A",01/01/13,01/02/13,SPEECHWRITER,233.33,2012,"","","","QUALTERE,THOMAS A"
,REPUBLICAN CONFERENCE,2013Q1,PERSONNEL COMPENSATION,"","RABBITT,CAROLINE",01/01/13,01/02/13,DEPUTY PRESS SECRETARY,216.05,2012,"","","","RABBITT,CAROLINE"
,REPUBLICAN CONFERENCE,2013Q1,PERSONNEL COMPENSATION,"","SHORE,STANLEY",12/17/12,12/17/12,SENIOR ADVISOR,"5,833.33",2012,"","","","SHORE,STANLEY"
,REPUBLICAN CONFERENCE,2013Q1,PERSONNEL COMPENSATION,"","SHORE,STANLEY",01/01/13,01/02/13,SENIOR ADVISOR,833.33,2012,"","","","SHORE,STANLEY"
,REPUBLICAN CONFERENCE,2013Q1,TRAVEL,01-09,"MAKIN, SARAH E",01/02/13,01/02/13,TAXI/PARKING/TOLLS,11.00,2012,AP,Accounts payable,00598450,"MAKIN, SARAH E"
,REPUBLICAN CONFERENCE,2013Q1,TRAVEL,01-09,"MAKIN, SARAH E",01/02/13,01/02/13,TAXI/PARKING/TOLLS,11.00,2012,AP,Accounts payable,00598453,"MAKIN, SARAH E"
,REPUBLICAN CONFERENCE,2013Q1,PRINTING AND REPRODUCTION,01-14,ACCURATE WORD LLC,12/13/12,12/13/12,PRINTING & REPRODUCTION,378.95,2012,AP,Accounts payable,00600950,ACCURATE WORD LLC
,REPUBLICAN CONFERENCE,2013Q1,PRINTING AND REPRODUCTION,01-25,"CITI PCARD-ADOBE SYSTEMS, INC",11/29/12,12/28/12,PRINTING & REPRODUCTION,158.97,2012,AP,Accounts payable,00610459,"CITI PCARD-ADOBE SYSTEMS, INC"
,REPUBLICAN CONFERENCE,2013Q1,PRINTING AND REPRODUCTION,01-25,CITI PCARD-ISTOCK INTERNATIONAL,11/29/12,12/28/12,PRINTING & REPRODUCTION,540.00,2012,AP,Accounts payable,00610459,CITI PCARD-ISTOCK INTERNATIONAL
,REPUBLICAN CONFERENCE,2013Q1,PRINTING AND REPRODUCTION,01-25,CITI PCARD-PAYPAL ENVATO,11/29/12,12/28/12,PRINTING & REPRODUCTION,100.00,2012,AP,Accounts payable,00610459,CITI PCARD-PAYPAL ENVATO
,REPUBLICAN CONFERENCE,2013Q1,OTHER SERVICES,01-25,CITI PCARD-GEOTRUST,11/29/12,12/28/12,SECURITY SERVICE,873.00,2012,AP,Accounts payable,00610459,CITI PCARD-GEOTRUST
,REPUBLICAN CONFERENCE,2013Q1,SUPPLIES AND MATERIALS,01-03,"BROWN, CHELSEA E",12/21/12,12/21/12,FOOD & BEVERAGE,288.21,2012,AP,Accounts payable,00593266,"BROWN, CHELSEA E"
,REPUBLICAN CONFERENCE,2013Q1,SUPPLIES AND MATERIALS,01-04,"CRAWFORD, CHRISTOPHER K",12/12/12,12/12/12,FOOD & BEVERAGE,69.35,2012,AP,Accounts payable,00595666,"CRAWFORD, CHRISTOPHER K"
,REPUBLICAN CONFERENCE,2013Q1,SUPPLIES AND MATERIALS,01-04,"BROWN, CHELSEA E",12/17/12,12/30/12,FOOD & BEVERAGE,9.00,2012,AP,Accounts payable,00595669,"BROWN, CHELSEA E"
,REPUBLICAN CONFERENCE,2013Q1,SUPPLIES AND MATERIALS,01-14,CAPITOLHOST,12/05/12,12/05/12,FOOD & BEVERAGE,740.40,2012,AP,Accounts payable,00600952,CAPITOLHOST
,REPUBLICAN CONFERENCE,2013Q1,SUPPLIES AND MATERIALS,01-14,CAPITOLHOST,12/12/12,12/12/12,FOOD & BEVERAGE,740.40,2012,AP,Accounts payable,00600953,CAPITOLHOST
,REPUBLICAN CONFERENCE,2013Q1,SUPPLIES AND MATERIALS,01-14,CAPITOLHOST,12/18/12,12/18/12,FOOD & BEVERAGE,420.00,2012,AP,Accounts payable,00600954,CAPITOLHOST
,REPUBLICAN CONFERENCE,2013Q1,SUPPLIES AND MATERIALS,01-14,CAPITOLHOST,12/18/12,12/18/12,FOOD & BEVERAGE,740.40,2012,AP,Accounts payable,00600955,CAPITOLHOST
,REPUBLICAN CONFERENCE,2013Q1,SUPPLIES AND MATERIALS,01-25,CITI PCARD-CAPITOL HOST (RIDGEWEL,11/29/12,12/28/12,FOOD & BEVERAGE,597.20,2012,AP,Accounts payable,00610459,CITI PCARD-CAPITOL HOST (RIDGEWEL
,REPUBLICAN CONFERENCE,2013Q1,SUPPLIES AND MATERIALS,01-25,CITI PCARD-ECSUITE.COM,11/29/12,12/28/12,PUBLICATIONS/REFERENCE MAT'L,5.95,2012,AP,Accounts payable,00610459,CITI PCARD-ECSUITE.COM
,REPUBLICAN CONFERENCE,2013Q1,SUPPLIES AND MATERIALS,01-25,CITI PCARD-POTBELLY,11/29/12,12/28/12,FOOD & BEVERAGE,228.20,2012,AP,Accounts payable,00610459,CITI PCARD-POTBELLY
,REPUBLICAN CONFERENCE,2013Q1,SUPPLIES AND MATERIALS,01-28,DORNETTE MARJORIE F,01/02/13,01/02/13,FOOD & BEVERAGE,593.94,2012,AP,Accounts payable,00611409,DORNETTE MARJORIE F
,REPUBLICAN CONFERENCE,2013Q1,SUPPLIES AND MATERIALS,01-28,DORNETTE MARJORIE F,12/30/12,12/30/12,FOOD & BEVERAGE,25.79,2012,AP,Accounts payable,00611412,DORNETTE MARJORIE F
,REPUBLICAN CONFERENCE,2013Q1,SUPPLIES AND MATERIALS,02-14,DEER PARK,12/31/12,12/31/12,WATER,212.75,2012,AP,Accounts payable,00622106,DEER PARK
,OFFICE OF THE DEMOCRATIC WHIP,2013Q1,PRINTING AND REPRODUCTION,03-19,DAVID L. ANDRUKITUS INC,01/19/11,01/19/11,PRINTING & REPRODUCTION,289.50,2011,AP,Accounts payable,00633338,DAVID L. ANDRUKITUS INC
,OFFICE OF THE DEMOCRATIC WHIP,2013Q1,PRINTING AND REPRODUCTION,03-19,DAVID L. ANDRUKITUS INC,07/19/11,07/19/11,PRINTING & REPRODUCTION,80.00,2011,AP,Accounts payable,00633345,DAVID L. ANDRUKITUS INC
,OFFICE OF THE DEMOCRATIC WHIP,2013Q1,PRINTING AND REPRODUCTION,03-19,DAVID L. ANDRUKITUS INC,09/30/11,09/30/11,PRINTING & REPRODUCTION,40.00,2011,AP,Accounts payable,00633349,DAVID L. ANDRUKITUS INC
,OFFICE OF THE DEMOCRATIC WHIP,2013Q1,PRINTING AND REPRODUCTION,03-19,DAVID L. ANDRUKITUS INC,09/30/11,09/30/11,PRINTING & REPRODUCTION,57.50,2011,AP,Accounts payable,00633358,DAVID L. ANDRUKITUS INC
,OFFICE OF THE DEMOCRATIC WHIP,2013Q1,SUPPLIES AND MATERIALS,02-22,CITI PCARD-MAIN STREET CATERING BOWIE,08/29/11,09/28/11,FOOD & BEVERAGE,"1,681.75",2011,AP,Accounts payable,00629027,CITI PCARD-MAIN STREET CATERING BOWIE
,DEMOCRATIC CAUCUS,2013Q1,SUPPLIES AND MATERIALS,02-05,"DAGADAKIS,STAMATIOS",04/14/11,12/08/11,PUBLICATIONS/REFERENCE MAT'L,693.00,2011,AP,Accounts payable,00616100,"DAGADAKIS,STAMATIOS"
,CHIEF ADMIN OFCR OF THE HOUSE,2013Q1,PERSONNEL COMPENSATION,"","ABBOTT, JESSICA A",01/01/13,03/31/13,FINANCIAL ANALYST,"31,512.51",FISCAL YEAR 2013,"","","","ABBOTT, JESSICA A"
,CHIEF ADMIN OFCR OF THE HOUSE,2013Q1,PERSONNEL COMPENSATION,"","ABEL, TIMOTHY",01/01/13,03/31/13,SR TECHNICAL SUPPORT REP (A),"23,888.25",FISCAL YEAR 2013,"","","","ABEL, TIMOTHY"
,CHIEF ADMIN OFCR OF THE HOUSE,2013Q1,PERSONNEL COMPENSATION,"","ACUESTA,JULY J",01/01/13,03/31/13,SENIOR SYSTEMS ENGINEER,"26,759.92",FISCAL YEAR 2013,"","","","ACUESTA,JULY J"
,CHIEF ADMIN OFCR OF THE HOUSE,2013Q1,PERSONNEL COMPENSATION,"","ADDISON, TRACY",01/01/13,03/31/13,LOGISTICS & DIST SPEC (A),"11,274.00",FISCAL YEAR 2013,"","","","ADDISON, TRACY"
,CHIEF ADMIN OFCR OF THE HOUSE,2013Q1,PERSONNEL COMPENSATION,"","ADDISON, TRACY",12/01/12,12/31/12,LOGISTICS & DIST SPEC (A) (OVERTIME),"2,065.07",FISCAL YEAR 2013,"","","","ADDISON, TRACY"
,CHIEF ADMIN OFCR OF THE HOUSE,2013Q1,PERSONNEL COMPENSATION,"","ADELAKUN, DEEN A",01/01/13,03/31/13,SR TECH SOLUTIONS ENGINEER,"22,107.00",FISCAL YEAR 2013,"","","","ADELAKUN, DEEN A"
,CHIEF ADMIN OFCR OF THE HOUSE,2013Q1,PERSONNEL COMPENSATION,"","AGEE, MATTHEW P",01/01/13,03/31/13,RESOURCE MANAGER,"30,405.24",FISCAL YEAR 2013,"","","","AGEE, MATTHEW P"
,CHIEF ADMIN OFCR OF THE HOUSE,2013Q1,PERSONNEL COMPENSATION,"","AGEE, TINA M",01/01/13,03/31/13,DIRECTOR PHOTOGRAPHY,"26,928.51",FISCAL YEAR 2013,"","","","AGEE, TINA M"
,CHIEF ADMIN OFCR OF THE HOUSE,2013Q1,PERSONNEL COMPENSATION,"","AGNEW, ROSE M",01/01/13,03/31/13,PAYROLL & BENEFITS GENERALIST,"18,198.59",FISCAL YEAR 2013,"","","","AGNEW, ROSE M"
,CHIEF ADMIN OFCR OF THE HOUSE,2013Q1,PERSONNEL COMPENSATION,"","AGNEW, ROSE M",12/01/12,01/31/13,PAYROLL & BENEFITS GENERALIST (OVERTIME),"5,665.86",FISCAL YEAR 2013,"","","","AGNEW, ROSE M"
,CHIEF ADMIN OFCR OF THE HOUSE,2013Q1,PERSONNEL COMPENSATION,"","AKINSEGUN, PATRICIA A",01/01/13,03/31/13,TELEPHONE SYSTEMS CONSULTANT,"22,107.00",FISCAL YEAR 2013,"","","","AKINSEGUN, PATRICIA A"
,CHIEF ADMIN OFCR OF THE HOUSE,2013Q1,PERSONNEL COMPENSATION,"","ALEXANDER, GORDON",01/01/13,03/31/13,TECH SOLUTIONS ENGINEER,"17,735.76",FISCAL YEAR 2013,"","","","ALEXANDER, GORDON"
,CHIEF ADMIN OFCR OF THE HOUSE,2013Q1,PERSONNEL COMPENSATION,"","ALEXANDER, SHARYN B",01/01/13,03/31/13,SPECIAL ASSISTANT,"26,683.16",FISCAL YEAR 2013,"","","","ALEXANDER, SHARYN B"
,CHIEF ADMIN OFCR OF THE HOUSE,2013Q1,PERSONNEL COMPENSATION,"","ALLARD,KENNETH V",01/01/13,03/31/13,ADA AIDE,"6,839.67",FISCAL YEAR 2013,"","","","ALLARD,KENNETH V"
,CHIEF ADMIN OFCR OF THE HOUSE,2013Q1,PERSONNEL COMPENSATION,"","ALLARD,KENNETH V",12/01/12,12/31/12,ADA AIDE (OVERTIME),"2,229.99",FISCAL YEAR 2013,"","","","ALLARD,KENNETH V"
,CHIEF ADMIN OFCR OF THE HOUSE,2013Q1,PERSONNEL COMPENSATION,"","ALLISON, KEVIN M",01/01/13,03/31/13,LOGISTICS & DIST SPEC (A),"13,503.51",FISCAL YEAR 2013,"","","","ALLISON, KEVIN M"
,CHIEF ADMIN OFCR OF THE HOUSE,2013Q1,PERSONNEL COMPENSATION,"","ALLISON, KEVIN M",12/01/12,02/28/13,LOGISTICS & DIST SPEC (A) (OVERTIME),"2,408.53",FISCAL YEAR 2013,"","","","ALLISON, KEVIN M"
,CHIEF ADMIN OFCR OF THE HOUSE,2013Q1,PERSONNEL COMPENSATION,"","ALSTON,MARK A",01/01/13,03/31/13,TECH SOLUTIONS ENGINEER,"17,344.26",FISCAL YEAR 2013,"","","","ALSTON,MARK A"
,CHIEF ADMIN OFCR OF THE HOUSE,2013Q1,PERSONNEL COMPENSATION,"","ALVEY, LISA M",01/01/13,03/31/13,FINANCIAL COUNSELOR,"20,286.24",FISCAL YEAR 2013,"","","","ALVEY, LISA M"
,CHIEF ADMIN OFCR OF THE HOUSE,2013Q1,PERSONNEL COMPENSATION,"","ANDERSEN, FREDERIC E",01/01/13,03/31/13,2ND ASST SUPERINTENDENT,"22,107.00",FISCAL YEAR 2013,"","","","ANDERSEN, FREDERIC E"
,CHIEF ADMIN OFCR OF THE HOUSE,2013Q1,PERSONNEL COMPENSATION,"","ANDERSON, DONTRELL",01/01/13,03/31/13,FINANCIAL COUNSELOR,"15,401.76",FISCAL YEAR 2013,"","","","ANDERSON, DONTRELL"
,CHIEF ADMIN OFCR OF THE HOUSE,2013Q1,PERSONNEL COMPENSATION,"","ANDREWS-MOBLEY, RACHELLE G",01/01/13,03/31/13,PRINCIPAL TECHNICAL TRAINER,"24,150.51",FISCAL YEAR 2013,"","","","ANDREWS-MOBLEY, RACHELLE G"
,CHIEF ADMIN OFCR OF THE HOUSE,2013Q1,PERSONNEL COMPENSATION,"","ARMAS, KENTON A",01/01/13,03/31/13,JOURNEYMAN TEXTILE SPEC,"18,903.24",FISCAL YEAR 2013,"","","","ARMAS, KENTON A"
,CHIEF ADMIN OFCR OF THE HOUSE,2013Q1,PERSONNEL COMPENSATION,"","ARMSTRONG,JANCIERA C",01/01/13,03/31/13,"MANAGER, ACCOUNTING","25,403.76",FISCAL YEAR 2013,"","","","ARMSTRONG,JANCIERA C"
,CHIEF ADMIN OFCR OF THE HOUSE,2013Q1,PERSONNEL COMPENSATION,"","ARTHUR, CAMILLA S",01/01/13,03/31/13,ASSISTANT CAO,"39,794.25",FISCAL YEAR 2013,"","","","ARTHUR, CAMILLA S"
,CHIEF ADMIN OFCR OF THE HOUSE,2013Q1,PERSONNEL COMPENSATION,"","ATCHISON, DARRYL A",01/01/13,03/31/13,DEPUTY CHIEF ENGINEER,"30,405.24",FISCAL YEAR 2013,"","","","ATCHISON, DARRYL A"
,CHIEF ADMIN OFCR OF THE HOUSE,2013Q1,PERSONNEL COMPENSATION,"","AWAN, OMAR",01/01/13,03/31/13,SR BUSINESS PROCESS APPL SPEC,"35,160.75",FISCAL YEAR 2013,"","","","AWAN, OMAR"
,CHIEF ADMIN OFCR OF THE HOUSE,2013Q1,PERSONNEL COMPENSATION,"","BABCOCK, TIMOTHY W",01/01/13,03/31/13,JOURNEYMAN TEXTILE SPEC,"14,470.50",FISCAL YEAR 2013,"","","","BABCOCK, TIMOTHY W"
,CHIEF ADMIN OFCR OF THE HOUSE,2013Q1,PERSONNEL COMPENSATION,"","BABCOCK, TIMOTHY W",12/01/12,01/31/13,JOURNEYMAN TEXTILE SPEC (OVERTIME),"2,414.04",FISCAL YEAR 2013,"","","","BABCOCK, TIMOTHY W"
,CHIEF ADMIN OFCR OF THE HOUSE,2013Q1,PERSONNEL COMPENSATION,"","BAER, PETER L",01/01/13,03/31/13,BUSINESS PROC APPLIC SPEC,"32,010.99",FISCAL YEAR 2013,"","","","BAER, PETER L"
,CHIEF ADMIN OFCR OF THE HOUSE,2013Q1,PERSONNEL COMPENSATION,"","BAHAM,TODD",01/01/13,03/31/13,BROADCAST PRODUCTION TECHNICIA,"18,719.25",FISCAL YEAR 2013,"","","","BAHAM,TODD"
,CHIEF ADMIN OFCR OF THE HOUSE,2013Q1,PERSONNEL COMPENSATION,"","BAHAM,TODD",12/01/12,02/28/13,BROADCAST PRODUCTION TECHNICIA (OVERTIME),"2,456.87",FISCAL YEAR 2013,"","","","BAHAM,TODD"
,CHIEF ADMIN OFCR OF THE HOUSE,2013Q1,PERSONNEL COMPENSATION,"","BAILEY, DAVID E",01/01/13,03/31/13,SR TECHNICAL SUPPORT REP (A),"23,888.25",FISCAL YEAR 2013,"","","","BAILEY, DAVID E"
,CHIEF ADMIN OFCR OF THE HOUSE,2013Q1,PERSONNEL COMPENSATION,"","BAKER, DARRELL F",01/01/13,03/31/13,SENIOR NETWORK TECHNICIAN,"24,595.50",FISCAL YEAR 2013,"","","","BAKER, DARRELL F"
,CHIEF ADMIN OFCR OF THE HOUSE,2013Q1,PERSONNEL COMPENSATION,"","BANFIELD,KELLI C",01/01/13,03/31/13,BROADCAST ENGINEER/PROD SPEC,"20,771.49",FISCAL YEAR 2013,"","","","BANFIELD,KELLI C"
,CHIEF ADMIN OFCR OF THE HOUSE,2013Q1,PERSONNEL COMPENSATION,"","BANKS,BIANCA N",01/01/13,03/31/13,RETAIL INVENTORY SPECIALIST,"16,569.24",FISCAL YEAR 2013,"","","","BANKS,BIANCA N"
,CHIEF ADMIN OFCR OF THE HOUSE,2013Q1,PERSONNEL COMPENSATION,"","BARBEE, GLENN",01/01/13,03/31/13,NETWORK TECHNICIAN,"21,663.00",FISCAL YEAR 2013,"","","","BARBEE, GLENN"
,CHIEF ADMIN OFCR OF THE HOUSE,2013Q1,PERSONNEL COMPENSATION,"","BARBEE,DONELL G",01/01/13,03/31/13,RETAIL INVENTORY SPECIALIST,"9,801.00",FISCAL YEAR 2013,"","","","BARBEE,DONELL G"
,CHIEF ADMIN OFCR OF THE HOUSE,2013Q1,PERSONNEL COMPENSATION,"","BARBEE,DONELL G",12/01/12,01/31/13,RETAIL INVENTORY SPECIALIST (OVERTIME),310.99,FISCAL YEAR 2013,"","","","BARBEE,DONELL G"
,CHIEF ADMIN OFCR OF THE HOUSE,2013Q1,PERSONNEL COMPENSATION,"","BARBOUR, JUNE M",01/01/13,03/31/13,BROADCAST PRODUCTION TECHNICIA,"18,719.25",FISCAL YEAR 2013,"","","","BARBOUR, JUNE M"
,CHIEF ADMIN OFCR OF THE HOUSE,2013Q1,PERSONNEL COMPENSATION,"","BARBOUR, JUNE M",12/01/12,01/31/13,BROADCAST PRODUCTION TECHNICIA (OVERTIME),998.95,FISCAL YEAR 2013,"","","","BARBOUR, JUNE M"
,CHIEF ADMIN OFCR OF THE HOUSE,2013Q1,PERSONNEL COMPENSATION,"","BARCINIAK, DANA L",01/01/13,03/31/13,SENIOR PHOTOGRAPHER,"21,069.99",FISCAL YEAR 2013,"","","","BARCINIAK, DANA L"
,CHIEF ADMIN OFCR OF THE HOUSE,2013Q1,PERSONNEL COMPENSATION,"","BARCINIAK, DANA L",01/01/13,02/28/13,SENIOR PHOTOGRAPHER (OVERTIME),886.35,FISCAL YEAR 2013,"","","","BARCINIAK, DANA L"
,CHIEF ADMIN OFCR OF THE HOUSE,2013Q1,PERSONNEL COMPENSATION,"","BAREFOOT,JEFFREY",12/01/12,03/31/13,PRODUCTION/ENGINEER SPEC (TEMP,"9,345.98",FISCAL YEAR 2013,"","","","BAREFOOT,JEFFREY"
,CHIEF ADMIN OFCR OF THE HOUSE,2013Q1,PERSONNEL COMPENSATION,"","BARNABAE, MONICA M",01/01/13,03/31/13,DIRECTOR-HOUSE CHILD CARE CNTR,"26,422.74",FISCAL YEAR 2013,"","","","BARNABAE, MONICA M"
,CHIEF ADMIN OFCR OF THE HOUSE,2013Q1,PERSONNEL COMPENSATION,"","BARRETT, ROBERT R",01/01/13,03/31/13,"MANAGER, SUPPORT SYSTEMS","33,938.25",FISCAL YEAR 2013,"","","","BARRETT, ROBERT R"
,CHIEF ADMIN OFCR OF THE HOUSE,2013Q1,PERSONNEL COMPENSATION,"","BARTHOLOMEW, DEBORAH",01/01/13,03/31/13,ADMIN-FINANCE & PAYROLL,"22,510.00",FISCAL YEAR 2013,"","","","BARTHOLOMEW, DEBORAH"
,CHIEF ADMIN OFCR OF THE HOUSE,2013Q1,PERSONNEL COMPENSATION,"","BASILIO, TYRONE A",01/01/13,03/31/13,TECHNICAL SUPPORT REP,"19,110.75",FISCAL YEAR 2013,"","","","BASILIO, TYRONE A"
,CHIEF ADMIN OFCR OF THE HOUSE,2013Q1,PERSONNEL COMPENSATION,"","BATES, DEBORAH A",12/01/12,03/31/13,PRODUCTION/ENGINEER SPEC (TEMP,"5,125.22",FISCAL YEAR 2013,"","","","BATES, DEBORAH A"
,CHIEF ADMIN OFCR OF THE HOUSE,2013Q1,PERSONNEL COMPENSATION,"","BAULEY, PATRICK J",01/01/13,03/31/13,TECHNICAL DIRECTOR (A),"28,962.75",FISCAL YEAR 2013,"","","","BAULEY, PATRICK J"
,CHIEF ADMIN OFCR OF THE HOUSE,2013Q1,PERSONNEL COMPENSATION,"","BAULEY, PATRICK J",12/01/12,02/28/13,TECHNICAL DIRECTOR (A) (OVERTIME),"1,420.28",FISCAL YEAR 2013,"","","","BAULEY, PATRICK J"
,CHIEF ADMIN OFCR OF THE HOUSE,2013Q1,PERSONNEL COMPENSATION,"","BEAUBIAN, TRACI R",01/01/13,03/31/13,CHIEF FINANCIAL OFFICER,"42,102.75",FISCAL YEAR 2013,"","","","BEAUBIAN, TRACI R"
,CHIEF ADMIN OFCR OF THE HOUSE,2013Q1,PERSONNEL COMPENSATION,"","BEAUDOIN, GORDON",01/01/13,02/28/13,VOICE & VIDEO BRANCH MGR (A),"24,259.34",FISCAL YEAR 2013,"","","","BEAUDOIN, GORDON"
,CHIEF ADMIN OFCR OF THE HOUSE,2013Q1,PERSONNEL COMPENSATION,"","BEAUDOIN, GORDON",02/01/13,02/28/13,VOICE & VIDEO BRANCH MGR (A) (OTHER COMPENSATION),808.64,FISCAL YEAR 2013,"","","","BEAUDOIN, GORDON"
,CHIEF ADMIN OFCR OF THE HOUSE,2013Q1,PERSONNEL COMPENSATION,"","BEIDEL, BERNARD E",01/01/13,03/31/13,"DIR, OFFICE OF EMPLOYEE ASSIST","42,102.75",FISCAL YEAR 2013,"","","","BEIDEL, BERNARD E"
,CHIEF ADMIN OFCR OF THE HOUSE,2013Q1,PERSONNEL COMPENSATION,"","BELL,FRANK E",01/01/13,03/31/13,SENIOR TECHNICAL ADVISOR,"32,096.01",FISCAL YEAR 2013,"","","","BELL,FRANK E"
,CHIEF ADMIN OFCR OF THE HOUSE,2013Q1,PERSONNEL COMPENSATION,"","BENAVIDEZ, OSCAR",01/01/13,03/31/13,LOGISTICS & DIST SPEC (A),"12,128.08",FISCAL YEAR 2013,"","","","BENAVIDEZ, OSCAR"
,CHIEF ADMIN OFCR OF THE HOUSE,2013Q1,PERSONNEL COMPENSATION,"","BENAVIDEZ, OSCAR",12/01/12,12/31/12,LOGISTICS & DIST SPEC (A) (OVERTIME),"1,607.77",FISCAL YEAR 2013,"","","","BENAVIDEZ, OSCAR"
,CHIEF ADMIN OFCR OF THE HOUSE,2013Q1,PERSONNEL COMPENSATION,"","BENN, PHILLIP F",01/01/13,03/31/13,ELECTRONICS TECHNICIAN (A),"22,551.00",FISCAL YEAR 2013,"","","","BENN, PHILLIP F"
,CHIEF ADMIN OFCR OF THE HOUSE,2013Q1,PERSONNEL COMPENSATION,"","BENN, PHILLIP F",02/01/13,02/28/13,ELECTRONICS TECHNICIAN (A) (OVERTIME),130.10,FISCAL YEAR 2013,"","","","BENN, PHILLIP F"
,CHIEF ADMIN OFCR OF THE HOUSE,2013Q1,PERSONNEL COMPENSATION,"","BENNETT, GERALD E",01/01/13,03/31/13,CHIEF LOGISTICS OFFICER,"42,102.75",FISCAL YEAR 2013,"","","","BENNETT, GERALD E"
,CHIEF ADMIN OFCR OF THE HOUSE,2013Q1,PERSONNEL COMPENSATION,"","BERGER, DONALD W",01/01/13,03/31/13,BROADCAST PRODUCTION TECHNICIA,"20,622.24",FISCAL YEAR 2013,"","","","BERGER, DONALD W"
,CHIEF ADMIN OFCR OF THE HOUSE,2013Q1,PERSONNEL COMPENSATION,"","BERGER, DONALD W",12/01/12,12/31/12,BROADCAST PRODUCTION TECHNICIA (OVERTIME),967.32,FISCAL YEAR 2013,"","","","BERGER, DONALD W"
,CHIEF ADMIN OFCR OF THE HOUSE,2013Q1,PERSONNEL COMPENSATION,"","BERISKO,PHILIP J",01/01/13,02/04/13,SUPERVISOR,"8,785.60",FISCAL YEAR 2013,"","","","BERISKO,PHILIP J"
,CHIEF ADMIN OFCR OF THE HOUSE,2013Q1,PERSONNEL COMPENSATION,"","BERISKO,PHILIP J",02/01/13,02/04/13,SUPERVISOR (OTHER COMPENSATION),"4,715.80",FISCAL YEAR 2013,"","","","BERISKO,PHILIP J"
,CHIEF ADMIN OFCR OF THE HOUSE,2013Q1,PERSONNEL COMPENSATION,"","BEST, CHARLENE",01/01/13,03/31/13,MANAGER,"22,958.00",FISCAL YEAR 2013,"","","","BEST, CHARLENE"
,CHIEF ADMIN OFCR OF THE HOUSE,2013Q1,PERSONNEL COMPENSATION,"","BETHEA,LASHON L",01/01/13,03/31/13,TECHNICAL TRAINER,"24,894.84",FISCAL YEAR 2013,"","","","BETHEA,LASHON L"
,CHIEF ADMIN OFCR OF THE HOUSE,2013Q1,PERSONNEL COMPENSATION,"","BILLARD, MICHAEL A",01/01/13,03/31/13,COMMUNICATIONS SPEC,"24,595.50",FISCAL YEAR 2013,"","","","BILLARD, MICHAEL A"
,CHIEF ADMIN OFCR OF THE HOUSE,2013Q1,PERSONNEL COMPENSATION,"","BILLUPS, BRIAN E",01/01/13,03/31/13,NETWORK TECHNICIAN (A),"19,110.75",FISCAL YEAR 2013,"","","","BILLUPS, BRIAN E"
,CHIEF ADMIN OFCR OF THE HOUSE,2013Q1,PERSONNEL COMPENSATION,"","BLAKNEY, HAROLD",01/01/13,03/31/13,SENIOR SYSTEMS ENGINEER,"37,001.25",FISCAL YEAR 2013,"","","","BLAKNEY, HAROLD"
,CHIEF ADMIN OFCR OF THE HOUSE,2013Q1,PERSONNEL COMPENSATION,"","BOGAN, DAVID S",01/01/13,03/31/13,"SUPERVISOR, RETAIL INVENTORY","19,110.75",FISCAL YEAR 2013,"","","","BOGAN, DAVID S"
,CHIEF ADMIN OFCR OF THE HOUSE,2013Q1,PERSONNEL COMPENSATION,"","BOGER, KELLY M",01/01/13,03/31/13,ACCOUNT MANAGEMENT COUNSELOR,"19,502.49",FISCAL YEAR 2013,"","","","BOGER, KELLY M"
,CHIEF ADMIN OFCR OF THE HOUSE,2013Q1,PERSONNEL COMPENSATION,"","BOGER, KELLY M",12/01/12,02/28/13,ACCOUNT MANAGEMENT COUNSELOR (OVERTIME),"16,023.76",FISCAL YEAR 2013,"","","","BOGER, KELLY M"
,CHIEF ADMIN OFCR OF THE HOUSE,2013Q1,PERSONNEL COMPENSATION,"","BOOKER, CARLOS",01/01/13,03/31/13,SALES SPECIALIST,"10,095.75",FISCAL YEAR 2013,"","","","BOOKER, CARLOS"
,CHIEF ADMIN OFCR OF THE HOUSE,2013Q1,PERSONNEL COMPENSATION,"","BOOKER, CARLOS",12/01/12,02/28/13,SALES SPECIALIST (OVERTIME),397.99,FISCAL YEAR 2013,"","","","BOOKER, CARLOS"
,CHIEF ADMIN OFCR OF THE HOUSE,2013Q1,PERSONNEL COMPENSATION,"","BOONE, RUSSELL",01/01/13,03/31/13,TECHNICAL SUPPORT REP,"21,854.01",FISCAL YEAR 2013,"","","","BOONE, RUSSELL"
,CHIEF ADMIN OFCR OF THE HOUSE,2013Q1,PERSONNEL COMPENSATION,"","BOWERS,KAREN L",01/01/13,03/31/13,FINANCIAL COUNSELOR,"18,719.25",FISCAL YEAR 2013,"","","","BOWERS,KAREN L"
,CHIEF ADMIN OFCR OF THE HOUSE,2013Q1,PERSONNEL COMPENSATION,"","BOWLDING, SONIA R",01/01/13,03/31/13,REC/WAREHOUSE SPEC (A),"10,980.00",FISCAL YEAR 2013,"","","","BOWLDING, SONIA R"
,CHIEF ADMIN OFCR OF THE HOUSE,2013Q1,PERSONNEL COMPENSATION,"","BOWLDING, SONIA R",12/01/12,12/31/12,REC/WAREHOUSE SPEC (A) (OVERTIME),"1,013.52",FISCAL YEAR 2013,"","","","BOWLDING, SONIA R"
,CHIEF ADMIN OFCR OF THE HOUSE,2013Q1,PERSONNEL COMPENSATION,"","BOWLES JR, FREDERICK H",01/01/13,03/31/13,"SUPERVISOR-LOGISTICS, SUPP EQU","23,888.25",FISCAL YEAR 2013,"","","","BOWLES JR, FREDERICK H"
,CHIEF ADMIN OFCR OF THE HOUSE,2013Q1,PERSONNEL COMPENSATION,"","BOWLES, JAMES A",01/01/13,03/31/13,JOURNEYMAN FURNITURE SPEC,"18,903.24",FISCAL YEAR 2013,"","","","BOWLES, JAMES A"
,CHIEF ADMIN OFCR OF THE HOUSE,2013Q1,PERSONNEL COMPENSATION,"","BOWLES, JAMES A",12/01/12,12/31/12,JOURNEYMAN FURNITURE SPEC. (OVERTIME),290.82,FISCAL YEAR 2013,"","","","BOWLES, JAMES A"
,CHIEF ADMIN OFCR OF THE HOUSE,2013Q1,PERSONNEL COMPENSATION,"","BOWLING-STOKES,CHAUNETTE L",01/01/13,03/31/13,SUPERVISOR,"22,809.00",FISCAL YEAR 2013,"","","","BOWLING-STOKES,CHAUNETTE L"
,CHIEF ADMIN OFCR OF THE HOUSE,2013Q1,PERSONNEL COMPENSATION,"","BOWMAN,SHELIA",01/01/13,03/31/13,FINANCIAL COUNSELOR,"16,049.16",FISCAL YEAR 2013,"","","","BOWMAN,SHELIA"
,CHIEF ADMIN OFCR OF THE HOUSE,2013Q1,PERSONNEL COMPENSATION,"","BOYD, KRISTIE N",12/01/12,02/05/13,PHOTOGRAPHER/LAB TECH (TEMP),"13,265.27",FISCAL YEAR 2013,"","","","BOYD, KRISTIE N"
,CHIEF ADMIN OFCR OF THE HOUSE,2013Q1,PERSONNEL COMPENSATION,"","BOYD, PETRINA",01/01/13,03/31/13,SALES SPECIALIST,"11,146.50",FISCAL YEAR 2013,"","","","BOYD, PETRINA"
,CHIEF ADMIN OFCR OF THE HOUSE,2013Q1,PERSONNEL COMPENSATION,"","BOYD, PETRINA",12/01/12,02/28/13,SALES SPECIALIST (OVERTIME),310.82,FISCAL YEAR 2013,"","","","BOYD, PETRINA"
,CHIEF ADMIN OFCR OF THE HOUSE,2013Q1,PERSONNEL COMPENSATION,"","BOYLE, KEVIN J",01/01/13,03/31/13,SR BUSINESS PROCESS APPL SPEC,"37,613.25",FISCAL YEAR 2013,"","","","BOYLE, KEVIN J"
,CHIEF ADMIN OFCR OF THE HOUSE,2013Q1,PERSONNEL COMPENSATION,"","BRACKENS, ROBERT",01/01/13,03/31/13,BROADCAST PRODUCTION TECHNICIA,"21,066.99",FISCAL YEAR 2013,"","","","BRACKENS, ROBERT"
,CHIEF ADMIN OFCR OF THE HOUSE,2013Q1,PERSONNEL COMPENSATION,"","BRACKENS, ROBERT",12/01/12,01/31/13,BROADCAST PRODUCTION TECHNICIA (OVERTIME),479.34,FISCAL YEAR 2013,"","","","BRACKENS, ROBERT"
,CHIEF ADMIN OFCR OF THE HOUSE,2013Q1,PERSONNEL COMPENSATION,"","BRANCH,PAMELA J",01/01/13,03/31/13,SENIOR BENEFITS SPECIALIST,"25,939.74",FISCAL YEAR 2013,"","","","BRANCH,PAMELA J"
,CHIEF ADMIN OFCR OF THE HOUSE,2013Q1,PERSONNEL COMPENSATION,"","BRAXTON, BRANDON A",01/01/13,03/31/13,LOGISTICS & DIST SPEC (A),"10,684.50",FISCAL YEAR 2013,"","","","BRAXTON, BRANDON A"
,CHIEF ADMIN OFCR OF THE HOUSE,2013Q1,PERSONNEL COMPENSATION,"","BRAXTON, BRANDON A",12/01/12,12/31/12,LOGISTICS & DIST SPEC (A) (OVERTIME),"1,309.86",FISCAL YEAR 2013,"","","","BRAXTON, BRANDON A"
,CHIEF ADMIN OFCR OF THE HOUSE,2013Q1,PERSONNEL COMPENSATION,"","BRAYE, LORENZO",01/01/13,03/31/13,SR BROADCAST ENG/PROD SPECLST,"23,704.50",FISCAL YEAR 2013,"","","","BRAYE, LORENZO"
,CHIEF ADMIN OFCR OF THE HOUSE,2013Q1,PERSONNEL COMPENSATION,"","BREWSTER III,JAMES E",01/01/13,03/31/13,LOGISTICS & DIST SPEC (A),"9,002.49",FISCAL YEAR 2013,"","","","BREWSTER III,JAMES E"
,CHIEF ADMIN OFCR OF THE HOUSE,2013Q1,PERSONNEL COMPENSATION,"","BREWSTER III,JAMES E",12/01/12,12/31/12,LOGISTICS & DIST SPEC (A) (OVERTIME),"1,294.10",FISCAL YEAR 2013,"","","","BREWSTER III,JAMES E"
,CHIEF ADMIN OFCR OF THE HOUSE,2013Q1,PERSONNEL COMPENSATION,"","BREWSTER,CHRISTOPHER A",01/01/13,03/31/13,ADMINISTRATIVE COUNSEL,"42,102.75",FISCAL YEAR 2013,"","","","BREWSTER,CHRISTOPHER A"
,CHIEF ADMIN OFCR OF THE HOUSE,2013Q1,PERSONNEL COMPENSATION,"","BRIDGEFORTH, TOINETTA A",01/01/13,03/31/13,CONTRACTS SPECIALIST,"22,107.00",FISCAL YEAR 2013,"","","","BRIDGEFORTH, TOINETTA A"
,CHIEF ADMIN OFCR OF THE HOUSE,2013Q1,PERSONNEL COMPENSATION,"","BRISCOE, KEVIN",01/01/13,03/31/13,LOGISTICS & DIST SPEC (A),"10,684.50",FISCAL YEAR 2013,"","","","BRISCOE, KEVIN"
,CHIEF ADMIN OFCR OF THE HOUSE,2013Q1,PERSONNEL COMPENSATION,"","BRISCOE, KEVIN",12/01/12,12/31/12,LOGISTICS & DIST SPEC (A) (OVERTIME),"1,376.64",FISCAL YEAR 2013,"","","","BRISCOE, KEVIN"
,CHIEF ADMIN OFCR OF THE HOUSE,2013Q1,PERSONNEL COMPENSATION,"","BRITT,SHANNON W",01/01/13,03/31/13,SR HUMAN RESOURCES GENERALIST,"17,544.51",FISCAL YEAR 2013,"","","","BRITT,SHANNON W"
,CHIEF ADMIN OFCR OF THE HOUSE,2013Q1,PERSONNEL COMPENSATION,"","BROBBEY-MENSAH, KWAME",01/01/13,03/31/13,SR INFO SYST. SECURITY ANALYST,"28,115.51",FISCAL YEAR 2013,"","","","BROBBEY-MENSAH, KWAME"
,CHIEF ADMIN OFCR OF THE HOUSE,2013Q1,PERSONNEL COMPENSATION,"","BROWN SR, DEMETRICE T",01/01/13,03/31/13,SUPERVISOR,"25,912.74",FISCAL YEAR 2013,"","","","BROWN SR, DEMETRICE T"
,CHIEF ADMIN OFCR OF THE HOUSE,2013Q1,PERSONNEL COMPENSATION,"","BROWN, ANNETTE G",01/01/13,03/31/13,SR SOFTWARE ENGINEER,"26,384.49",FISCAL YEAR 2013,"","","","BROWN, ANNETTE G"
,CHIEF ADMIN OFCR OF THE HOUSE,2013Q1,PERSONNEL COMPENSATION,"","BROWN, KEITH S",01/01/13,03/31/13,REC/WAREHOUSE SPEC (A),"13,798.50",FISCAL YEAR 2013,"","","","BROWN, KEITH S"
,CHIEF ADMIN OFCR OF THE HOUSE,2013Q1,PERSONNEL COMPENSATION,"","BROWN, KEITH S",12/01/12,12/31/12,REC/WAREHOUSE SPEC (A) (OVERTIME),252.08,FISCAL YEAR 2013,"","","","BROWN, KEITH S"
,CHIEF ADMIN OFCR OF THE HOUSE,2013Q1,PERSONNEL COMPENSATION,"","BROWN, PAMELA L",01/01/13,03/31/13,CUSTOMER SOLUTIONS REP,"18,123.51",FISCAL YEAR 2013,"","","","BROWN, PAMELA L"
,CHIEF ADMIN OFCR OF THE HOUSE,2013Q1,PERSONNEL COMPENSATION,"","BROWN,DAVID D",01/01/13,03/31/13,FINANCIAL COUNSELOR,"15,401.76",FISCAL YEAR 2013,"","","","BROWN,DAVID D"
,CHIEF ADMIN OFCR OF THE HOUSE,2013Q1,PERSONNEL COMPENSATION,"","BROWN,JASON",01/01/13,03/31/13,BROADCAST PRODUCTION TECHNICIA,"18,719.25",FISCAL YEAR 2013,"","","","BROWN,JASON"
,CHIEF ADMIN OFCR OF THE HOUSE,2013Q1,PERSONNEL COMPENSATION,"","BROWN,KIMBERLY K",01/01/13,03/31/13,RESOURCE ANALYST,"16,569.24",FISCAL YEAR 2013,"","","","BROWN,KIMBERLY K"
,CHIEF ADMIN OFCR OF THE HOUSE,2013Q1,PERSONNEL COMPENSATION,"","BROWN,LAWRENCE",01/01/13,03/31/13,BROADCAST ENGINEER/PROD SPEC,"21,214.74",FISCAL YEAR 2013,"","","","BROWN,LAWRENCE"
,CHIEF ADMIN OFCR OF THE HOUSE,2013Q1,PERSONNEL COMPENSATION,"","BROWN,LAWRENCE",12/01/12,02/28/13,BROADCAST ENGINEER/PROD SPEC. (OVERTIME),"1,086.22",FISCAL YEAR 2013,"","","","BROWN,LAWRENCE"
,CHIEF ADMIN OFCR OF THE HOUSE,2013Q1,PERSONNEL COMPENSATION,"","BRUMMELL,JENELLE L",01/01/13,03/31/13,PARALEGAL,"16,569.24",FISCAL YEAR 2013,"","","","BRUMMELL,JENELLE L"
,CHIEF ADMIN OFCR OF THE HOUSE,2013Q1,PERSONNEL COMPENSATION,"","BUCKLER, RICKY L",01/01/13,03/31/13,PURCHASING AGENT,"18,329.01",FISCAL YEAR 2013,"","","","BUCKLER, RICKY L"
,CHIEF ADMIN OFCR OF THE HOUSE,2013Q1,PERSONNEL COMPENSATION,"","BUCKLER, TROY D",01/01/13,03/31/13,PURCHASING AGENT,"15,830.01",FISCAL YEAR 2013,"","","","BUCKLER, TROY D"
,CHIEF ADMIN OFCR OF THE HOUSE,2013Q1,PERSONNEL COMPENSATION,"","BUFORD, MARCIA L",01/01/13,03/31/13,COMPUTER FAC OP SUPERVISOR,"26,384.49",FISCAL YEAR 2013,"","","","BUFORD, MARCIA L"
,CHIEF ADMIN OFCR OF THE HOUSE,2013Q1,PERSONNEL COMPENSATION,"","BURCH, KENNETH J",01/01/13,03/31/13,BUSINESS PROC APPLIC SPEC,"29,470.74",FISCAL YEAR 2013,"","","","BURCH, KENNETH J"
,CHIEF ADMIN OFCR OF THE HOUSE,2013Q1,PERSONNEL COMPENSATION,"","BURNHAM, ELIZABETH",01/01/13,03/31/13,PAYROLL & BENEFITS MANAGER,"26,928.51",FISCAL YEAR 2013,"","","","BURNHAM, ELIZABETH"
,CHIEF ADMIN OFCR OF THE HOUSE,2013Q1,PERSONNEL COMPENSATION,"","BUTLER, CLARENCE G",01/01/13,03/31/13,JOURNEYMAN FURNITURE SPEC,"15,155.76",FISCAL YEAR 2013,"","","","BUTLER, CLARENCE G"
,CHIEF ADMIN OFCR OF THE HOUSE,2013Q1,PERSONNEL COMPENSATION,"","BUTLER, CLARENCE G",12/01/12,12/31/12,JOURNEYMAN FURNITURE SPEC. (OVERTIME),932.65,FISCAL YEAR 2013,"","","","BUTLER, CLARENCE G"
,CHIEF ADMIN OFCR OF THE HOUSE,2013Q1,PERSONNEL COMPENSATION,"","BUTLER, JAMES F",01/01/13,03/31/13,PAYROLL & BENEFITS MANAGER,"25,491.51",FISCAL YEAR 2013,"","","","BUTLER, JAMES F"
,CHIEF ADMIN OFCR OF THE HOUSE,2013Q1,PERSONNEL COMPENSATION,"","CAIN, MOLLY J",01/01/13,03/31/13,5TH ASST SUPERINTENDENT,"15,155.76",FISCAL YEAR 2013,"","","","CAIN, MOLLY J"
,CHIEF ADMIN OFCR OF THE HOUSE,2013Q1,PERSONNEL COMPENSATION,"","CALLAWAY, ROBERT M",01/01/13,03/31/13,SR BROADCAST ENG./PROD SPEC,"23,704.50",FISCAL YEAR 2013,"","","","CALLAWAY, ROBERT M"
,CHIEF ADMIN OFCR OF THE HOUSE,2013Q1,PERSONNEL COMPENSATION,"","CANNON, DREW",01/01/13,03/31/13,4TH ASST SUPERINTENDENT,"17,344.26",FISCAL YEAR 2013,"","","","CANNON, DREW"
,CHIEF ADMIN OFCR OF THE HOUSE,2013Q1,PERSONNEL COMPENSATION,"","CANNON,SUSANNAH",01/01/13,03/31/13,CUSTOMER SOLUTIONS REP,"13,460.01",FISCAL YEAR 2013,"","","","CANNON,SUSANNAH"
,CHIEF ADMIN OFCR OF THE HOUSE,2013Q1,PERSONNEL COMPENSATION,"","CARCAMO, ALICIA L",01/01/13,03/31/13,ACCOUNTING TECHNICIAN,"18,903.24",FISCAL YEAR 2013,"","","","CARCAMO, ALICIA L"
,CHIEF ADMIN OFCR OF THE HOUSE,2013Q1,PERSONNEL COMPENSATION,"","CARLSON,STACY",01/01/13,03/31/13,DEPUTY CAO,"42,674.01",FISCAL YEAR 2013,"","","","CARLSON,STACY"
,CHIEF ADMIN OFCR OF THE HOUSE,2013Q1,PERSONNEL COMPENSATION,"","CARNNIA,CASEY",01/01/13,03/31/13,INTERNET SYSTEMS SPECIALIST,"19,110.75",FISCAL YEAR 2013,"","","","CARNNIA,CASEY"
,CHIEF ADMIN OFCR OF THE HOUSE,2013Q1,PERSONNEL COMPENSATION,"","CARR, JOSH D",01/01/13,03/31/13,SENIOR SYSTEMS ENGINEER,"24,595.50",FISCAL YEAR 2013,"","","","CARR, JOSH D"
